Workbook

Sheet AER CF (hidden)
B1: AER CONDITIONAL FORMATTING
B3: CELLS FLAGED "Y" and greyed out will be greyed out in the worksheets.
B4: CONDITIONAL FORMATTING MAP
F5: =INDEX(dms_CF_3.6.1, MATCH(dms_TradingName,dms_CF_TradingName))="Y" | G5: =INDEX(dms_CF_3.6.5, MATCH(dms_TradingName,dms_CF_TradingName))="Y" | H5: =INDEX(dms_CF_3.6.6.1, MATCH(dms_TradingName,dms_CF_TradingName))="Y" | I5: =INDEX(dms_CF_3.6.6.2, MATCH(dms_TradingName,dms_CF_TradingName))="Y" | J5: =INDEX(dms_CF_3.6.6.3, MATCH(dms_TradingName,dms_CF_TradingName))="Y" | K5: =INDEX(dms_CF_3.6.7.1, MATCH(dms_TradingName,dms_CF_TradingName))="Y" | L5: =INDEX(dms_CF_3.6.7.2, MATCH(dms_TradingName,dms_CF_TradingName))="Y" | M5: =INDEX(dms_CF_3.6.7.3, MATCH(dms_TradingName,dms_CF_TradingName))="Y" | N5: =INDEX(dms_CF_3.6.7.4, MATCH(dms_TradingName,dms_CF_TradingName))="Y" | O5: =INDEX(dms_CF_3.6.8, MATCH(dms_TradingName,dms_CF_TradingName))="Y" | P5: =INDEX(dms_CF_4.1, MATCH(dms_TradingName,dms_CF_TradingName))="Y" | Q5: =INDEX(dms_CF_6.8, MATCH(dms_TradingName,dms_CF_TradingName))="Y" | R5: =INDEX(dms_CF_7.12, MATCH(dms_TradingName,dms_CF_TradingName))="Y" | S5: =INDEX(dms_CF_8.1_A, MATCH(dms_TradingName,dms_CF_TradingName))="Y" | T5: =INDEX(dms_CF_8.1_B, MATCH(dms_TradingName,dms_CF_TradingName))="Y" | U5: =INDEX(dms_CF_8.1_Neg, MATCH(dms_TradingName,dms_CF_TradingName))="Y" -> TRUE | V5: =INDEX(dms_CF_4.4.1_Neg, MATCH(dms_TradingName,dms_CF_TradingName))="Y" | Y5: =INDEX(dms_CF_F10, MATCH(dms_TradingName,dms_CF_TradingName))="Y"
B6: dms_CF_TradingName | C6: JurisdictionList | D6: Sector | E6: Segment | F6: dms_CF_3.6.1 | G6: dms_CF_3.6.5 | H6: dms_CF_3.6.6.1 | I6: dms_CF_3.6.6.2 | J6: dms_CF_3.6.6.3 | K6: dms_CF_3.6.7.1 | L6: dms_CF_3.6.7.2 | M6: dms_CF_3.6.7.3 | N6: dms_CF_3.6.7.4 | O6: dms_CF_3.6.8 | P6: dms_CF_4.1 | Q6: dms_CF_6.8 (set from dms_MAIFI_flag) | R6: dms_CF_7.12 | S6: dms_CF_8.1_A (and 8.4) | T6: dms_CF_8.1_B (and 8.4) | U6: dms_CF_8.1_Neg (and 8.4) | V6: dms_CF_4.4.1 | W6: dms_CF_MAIFI_flag (set from dms_MAIFI_flag) | X6: 9.5 TUOS (set from Jurisdiction) | Y6: dms_CF_F10
B7: Ausgrid | C7: NSW | D7: Electricity | E7: Distribution | G7: Y | H7: N | I7: Y | J7: Y | K7: N | L7: N | M7: N | N7: Y | O7: N | P7: N | Q7: =IFERROR(IF(dms_MAIFI_flag="Yes","N","Y"),"Y") -> Y | R7: Y | S7: N | T7: Y | U7: Y | V7: N | W7: =IFERROR(LEFT(dms_MAIFI_flag),"N") -> N | X7: =IF('AER CF'!$C7="Vic","Y","N") -> N
B8: Ausgrid (Tx Assets) | C8: NSW | D8: Electricity | E8: Distribution | G8: Y | H8: N | I8: Y | J8: Y | K8: N | L8: N | M8: N | N8: Y | O8: N | P8: N | Q8: Y | R8: Y | S8: N | T8: Y | U8: Y | V8: N | W8: =IFERROR(LEFT(dms_MAIFI_flag),"N") -> N | X8: =IF('AER CF'!$C8="Vic","Y","N") -> N
B9: AusNet (D) | C9: Vic | D9: Electricity | E9: Distribution | G9: N | H9: N | K9: N | L9: N | M9: N | N9: N | O9: N | P9: N | Q9: Y | R9: N | S9: N | T9: N | U9: Y | V9: N | W9: =IFERROR(LEFT(dms_MAIFI_flag),"N") -> N | X9: =IF('AER CF'!$C9="Vic","Y","N") -> Y
B10: AusNet (T) | C10: Vic | D10: Electricity | E10: Transmission | G10: N | K10: N | L10: N | M10: N | N10: N | O10: N | P10: Y | Q10: Y | R10: N | S10: N | T10: N | U10: Y | V10: N | W10: N | X10: =IF('AER CF'!$C10="Vic","Y","N") -> Y
B11: Amadeus | C11: NT | D11: Gas | E11: Transmission | G11: N | K11: N | L11: N | M11: N | N11: N | O11: N | P11: Y | Q11: Y | R11: N | S11: N | T11: N | U11: Y | V11: N | W11: N | X11: =IF('AER CF'!$C11="Vic","Y","N") -> N | Y11: N
B12: APA GasNet | C12: Vic | D12: Gas | E12: Transmission | G12: N | K12: N | L12: N | M12: N | N12: N | O12: N | P12: Y | Q12: Y | R12: N | S12: N | T12: N | U12: Y | V12: N | W12: N | X12: =IF('AER CF'!$C12="Vic","Y","N") -> Y | Y12: Y
B13: Australian Distribution Co. | C13: NSW | D13: Electricity | E13: Distribution | F13: N | G13: N | H13: N | I13: N | K13: N | L13: N | M13: N | N13: N | O13: N | P13: N | Q13: Y | R13: N | S13: N | T13: N | U13: N | V13: N | W13: N | X13: =IF('AER CF'!$C13="Vic","Y","N") -> N
B14: Australian Distribution Co. (Vic) | C14: Vic | D14: Electricity | E14: Distribution | F14: N | G14: N | H14: N | I14: N | K14: N | L14: N | M14: N | N14: N | O14: N | P14: N | Q14: Y | R14: N | S14: N | T14: N | U14: N | V14: N | W14: N | X14: =IF('AER CF'!$C14="Vic","Y","N") -> Y
B15: CitiPower | C15: Vic | D15: Electricity | E15: Distribution | G15: N | H15: N | K15: N | L15: N | M15: N | N15: N | O15: N | P15: N | Q15: Y | R15: N | S15: N | T15: N | U15: Y | V15: N | W15: N | X15: =IF('AER CF'!$C15="Vic","Y","N") -> Y
B16: Directlink | C16: Qld | D16: Electricity | E16: Transmission | G16: N | K16: N | L16: N | M16: N | N16: N | O16: N | P16: Y | Q16: Y | R16: N | S16: N | T16: Y | U16: Y | V16: N | W16: N | X16: =IF('AER CF'!$C16="Vic","Y","N") -> N
B17: ElectraNet | C17: SA | D17: Electricity | E17: Transmission | G17: N | K17: N | L17: N | M17: N | N17: N | O17: N | P17: Y | Q17: Y | R17: N | S17: N | T17: Y | U17: Y | V17: N | W17: N | X17: =IF('AER CF'!$C17="Vic","Y","N") -> N
B18: Endeavour Energy | C18: NSW | D18: Electricity | E18: Distribution | G18: Y | H18: N | I18: Y | J18: Y | K18: N | L18: N | M18: N | N18: Y | O18: N | P18: N | Q18: Y | R18: Y | S18: N | T18: Y | U18: Y | V18: Y | W18: N | X18: =IF('AER CF'!$C18="Vic","Y","N") -> N
B19: Energex | C19: Qld | D19: Electricity | E19: Distribution | G19: Y | H19: N | K19: N | L19: N | M19: N | N19: N | O19: N | P19: N | Q19: Y | R19: Y | S19: N | T19: Y | U19: Y | V19: Y | W19: N | X19: =IF('AER CF'!$C19="Vic","Y","N") -> N
B20: Ergon Energy | C20: Qld | D20: Electricity | E20: Distribution | G20: Y | H20: N | I20: Y | J20: Y | K20: N | L20: N | M20: N | N20: N | O20: N | P20: N | Q20: Y | R20: Y | S20: N | T20: Y | U20: Y | V20: N | W20: N | X20: =IF('AER CF'!$C20="Vic","Y","N") -> N
B21: Essential Energy | C21: NSW | D21: Electricity | E21: Distribution | G21: Y | H21: N | I21: Y | J21: Y | K21: N | L21: N | M21: N | N21: Y | O21: N | P21: N | Q21: Y | R21: Y | S21: N | T21: Y | U21: Y | V21: N | W21: N | X21: =IF('AER CF'!$C21="Vic","Y","N") -> N
B22: Evoenergy Distribution | C22: ACT | D22: Electricity | E22: Distribution | G22: Y | H22: N | I22: Y | J22: Y | K22: Y | L22: Y | M22: N | N22: Y | O22: N | P22: Y | Q22: Y | R22: Y | S22: N | T22: Y | U22: Y | V22: N | W22: N | X22: =IF('AER CF'!$C22="Vic","Y","N") -> N
B23: Evoenergy Distribution (Tx Assets) | C23: ACT | D23: Electricity | E23: Distribution | G23: Y | H23: N | I23: Y | J23: Y | K23: Y | L23: Y | M23: N | N23: Y | O23: N | P23: Y | Q23: Y | R23: Y | S23: N | T23: Y | U23: Y | V23: N | W23: N | X23: =IF('AER CF'!$C23="Vic","Y","N") -> N
B24: Jemena Electricity | C24: Vic | D24: Electricity | E24: Distribution | G24: N | H24: N | K24: N | L24: N | M24: N | N24: N | O24: N | P24: N | Q24: Y | R24: N | S24: N | T24: N | U24: Y | V24: N | W24: N | X24: =IF('AER CF'!$C24="Vic","Y","N") -> Y
B25: Murraylink | C25: SA | D25: Electricity | E25: Transmission | G25: N | K25: N | L25: N | M25: N | N25: N | O25: N | P25: Y | Q25: Y | R25: N | S25: N | T25: Y | U25: Y | V25: N | W25: N | X25: =IF('AER CF'!$C25="Vic","Y","N") -> N
B26: Power and Water | C26: NT | D26: Electricity | E26: Distribution | G26: N | H26: N | K26: N | L26: Y | M26: N | N26: N | O26: N | P26: Y | Q26: Y | R26: Y | S26: N | T26: Y | U26: Y | V26: N | W26: N | X26: =IF('AER CF'!$C26="Vic","Y","N") -> N
B27: Powercor Australia | C27: Vic | D27: Electricity | E27: Distribution | G27: N | H27: N | K27: N | L27: N | M27: N | N27: N | O27: N | P27: N | Q27: Y | R27: N | S27: N | T27: N | U27: Y | V27: N | W27: N | X27: =IF('AER CF'!$C27="Vic","Y","N") -> Y
B28: Powerlink | C28: Qld | D28: Electricity | E28: Transmission | G28: N | K28: N | L28: N | M28: N | N28: N | O28: N | P28: Y | Q28: Y | R28: N | S28: N | T28: Y | U28: Y | V28: N | W28: N | X28: =IF('AER CF'!$C28="Vic","Y","N") -> N
B29: Roma to Brisbane Pipeline | C29: Qld | D29: Gas | E29: Transmission | G29: N | K29: N | L29: N | M29: N | N29: N | O29: N | P29: Y | Q29: Y | R29: N | S29: N | T29: N | U29: Y | V29: N | W29: N | X29: =IF('AER CF'!$C29="Vic","Y","N") -> N | Y29: Y
B30: SA Power Networks | C30: SA | D30: Electricity | E30: Distribution | G30: Y | H30: N | K30: N | L30: N | M30: N | N30: N | O30: N | P30: N | Q30: Y | R30: Y | S30: N | T30: Y | U30: N | V30: N | W30: N | X30: =IF('AER CF'!$C30="Vic","Y","N") -> N
B31: TasNetworks (D) | C31: Tas | D31: Electricity | E31: Distribution | G31: Y | H31: N | K31: N | L31: N | M31: N | N31: N | O31: N | P31: N | Q31: Y | R31: Y | S31: N | T31: Y | U31: Y | V31: N | W31: N | X31: =IF('AER CF'!$C31="Vic","Y","N") -> N
B32: TasNetworks (T) | C32: Tas | D32: Electricity | E32: Transmission | G32: N | K32: N | L32: N | M32: N | N32: N | O32: N | P32: Y | Q32: Y | R32: N | S32: N | T32: Y | U32: Y | V32: N | W32: N | X32: =IF('AER CF'!$C32="Vic","Y","N") -> N
B33: TransGrid | C33: NSW | D33: Electricity | E33: Transmission | G33: N | K33: N | L33: N | M33: N | N33: N | O33: N | P33: Y | Q33: Y | R33: N | S33: N | T33: Y | U33: Y | V33: N | W33: N | X33: =IF('AER CF'!$C33="Vic","Y","N") -> N
B34: United Energy | C34: Vic | D34: Electricity | E34: Distribution | G34: N | H34: N | K34: N | L34: N | M34: N | N34: N | O34: N | P34: N | Q34: Y | R34: N | S34: N | T34: N | U34: Y | V34: N | W34: N | X34: =IF('AER CF'!$C34="Vic","Y","N") -> Y
B37: Confidential
B38: Amended
B40: Worksheet 6.2 STPIS reliability
B41: Formula | F41: Applied to:
B43: =INDEX(dms_CBD_flag,MATCH(dms_TradingName,dms_TradingName_List))="NO" | F43: $D$11,$D$17,$D$23,$D$33,$D$39,$D$45,$D$55,$D$61,$D$67,$D$77,$D$83,$D$89
B44: =INDEX(dms_Urban_flag,MATCH(dms_TradingName,dms_TradingName_List))="NO" | F44: $D$12,$D$18,$D$24,$D$56,$D$62,$D$78,$D$68,$D$84
B45: =INDEX(dms_ShortRural_flag,MATCH(dms_TradingName,dms_TradingName_List))="NO" | F45: $D$13,$D$19,$D$25,$D$57,$D$63,$D$69,$D$79,$D$85
B46: =INDEX(dms_LongRural_flag,MATCH(dms_TradingName,dms_TradingName_List))="NO" | F46: $D$14,$D$20,$D$26,$D$58,$D$64,$D$65,$D$70,$D$71,$D$80,$D$86
B47: =INDEX(dms_FeederType_5_flag,MATCH(dms_TradingName,dms_TradingName_List))="NO" | F47: $D$87,$D$81,$D$71,$D$65,$D$59,$D$49,$D$43,$D$37,$D$21,$D$15
B48: =dms_MAIFI_Flag="No" | F48: $D$55:$D$72
B51: Business & other details
B52: =(INDEX(dms_Model_Span,MATCH(dms_Model,dms_Model_List))>1)
B53: =(INDEX(dms_Model_Span,MATCH(dms_Model,dms_Model_List))=1)
B56: STYLES IN USE
B57: HEADING ONE | C57: dms_1
B58: HEADING TWO | C58: dms_2
B59: HEADING THREE | C59: dms_3
B60: HEADING FOUR | C60: dms_4
B61: HEADING FIVE | C61: dms_5
B62: 5.111 | C62: dms_NUM
B63: 0.0545 | C63: dms_NUM%
B64: 5.5555 | C64: dms_NUM3d
B65: Text description | C65: dms_Row_Locked
B66: Text description | C66: dms_Row1
B67: Text description | C67: dms_Row2
B68: Total | C68: dms_T1
B69: Total | C69: dms_T2
B70: EXPENSES | C70: dms_BH
B71: 2019 | C71: dms_BY1
B72: 2019 | C72: dms_BY2
B73: VOLUMES | C73: dms_GH
B74: 2019 | C74: dms_GY1
B75: 2019 | C75: dms_GY2

Sheet AER NRs (hidden)
B1: AER NAMED RANGES
B3: DROP DOWN SELECTORS USED IN WORKBOOKS
B5: COVER SHEET | C5: dms_DataQuality_List | D5: dms_Confid_status_List
C6: -- select -- | D6: -- select --
C7: Actual | D7: Public
C8: Estimate | D8: Confidential
C9: Consolidated
C12: For all files either AER or business needs to be able to specify the type of submission | D12: For PTRM & RFM templates we must provide a choice in case they change their form of control - otherwise it is drawn from the business specific lookup table above.
C13: dms_SourceList | D13: dms_FormControl_Choices
C14: -- select -- | D14: Revenue cap
C15: After appeal | D15: Revenue yield
C16: Draft decision | D16: Weighted average price cap
C17: Final decision
C18: PTRM update 1
C19: PTRM update 2
C20: PTRM update 3
C21: PTRM update 4
C22: PTRM update 5
C23: PTRM update 6
C24: PTRM update 7
C25: Recast
C26: Regulatory proposal
C27: Reporting
C28: Revised regulatory proposal
K31: This is used to create an image to insert on 6.3 STPIS sheet - not for dropdown lists. | N31: GAS
B32: CA & RESET RINS DNSP | C32: dms_DNSP_020301_SubstationType | D32: dms_DNSP_020301_ProjectType | E32: dms_DNSP_020301_ProjectTrigger | F32: dms_DNSP_020302_ProjectType | G32: dms_DNSP_020302_ProjectTrigger | H32: dms_STPIS_Exclusion_List | I32: dms_Reason_Interruption | J32: dms_Reason_Interruption_Detailed | K32: Reason for interruption | N32: dms_N0205_AssetType
C33: Subtransmission substation | D33: New substation establishment | E33: Demand growth | F33: New line on new route - single circuit | G33: Demand growth | H33: Weather | I33: Animal | J33: Animal impact | K33: Animal | L33: Animal impact | N33: Cast Iron
C34: Zone substation | D34: Substation upgrade - capacity | E34: Voltage issues | F34: New line on new route - dual circuit | G34: Voltage issues | H34: Equipment failure | I34: Asset failure | J34: Animal nesting/burrowing, etc and other | L34: Animal nesting/burrowing, etc and other | N34: PVC
C35: Switching station | D35: Substation upgrade - voltage | E35: Reactive power issue | F35: New line on new route - other | G35: Reactive power issue | H35: Operational error | I35: Other | J35: Other | L35: Other | N35: Polyamide
C36: Other | D36: Other | E36: Fault level issues | F36: Line rebuild over existing route - single circuit | G36: Fault level issues | H36: Vegetation | I36: Overloads | J36: LV | K36: Asset failure | L36: LV | N36: High density polyethylene (80)
E37: Safety | F37: Line rebuild over existing route - dual circuit | G37: Net market benefit | H37: Animals | I37: Planned | J37: Distribution substation | L37: Distribution substation | N37: High density polyethylene (100)
E38: Environment | F38: Reconductor - Single circuit | G38: Safety | H38: Third party impacts | I38: Network business | J38: HV | L38: HV | N38: High density polyethylene (250)
E39: Other | F39: Reconductor - Dual circuit | G39: Environment | H39: Transmission failure | I39: Third party | J39: Zone substation | L39: Zone substation | N39: High density polyethylene (575)
F40: Reconductor - Other | G40: Other | H40: Load shedding | I40: Unknown | J40: Subtransmission | L40: Subtransmission | N40: Medium density polyethylene
F41: Line upgrade - raising/retensoring | H41: Inter-distributor connection failure | I41: Vegetation | J41: insert description of 'other' | K41: Other | L41: insert description of 'other' | N41: Unprotected steel
F42: Line upgrade - voltage upgrade | H42: Other | I42: Weather | J42: Network error | K42: Overloads | N42: Protected steel
F43: Line upgrade - capacity | I43: 2 - STPIS Exclusion (3.3)(a) | J43: Switching and protection error | K43: Planned | N43: Other
F44: String spare circuit | I44: 3 - STPIS Exclusion (3.3)(a) | J44: Fire | K44: Network business | L44: Network error
F45: Other | I45: 4 - STPIS Exclusion (3.3)(a) | J45: Other | L45: Switching and protection error
I46: 5 - STPIS Exclusion (3.3)(a) | J46: Dig-in | K46: Third party | L46: Fire
I47: 6 - STPIS Exclusion (3.3)(a) | J47: Unauthorised access | L47: Other
I48: 7 - STPIS Exclusion (3.3)(a) | J48: Vehicle impact | L48: Dig-in
J49: Unknown | L49: Unauthorised access
J50: Blow-in/Fall-in - NSP responsibility | L50: Vehicle impact
J51: Grow-in - NSP responsibility | K51: Unknown | L51: Unknown
J52: Blow-in/Fall-in - Other responsible party | K52: Vegetation | L52: Blow-in/Fall-in - NSP responsibility
J53: Grow-in - Other responsible party | L53: Grow-in - NSP responsibility
L54: Blow-in/Fall-in - Other responsible party
L55: Grow-in - Other responsible party
K56: Weather
K57: 2 - STPIS Exclusion (3.3)(a)
K58: 3 - STPIS Exclusion (3.3)(a)
K59: 4 - STPIS Exclusion (3.3)(a)
K60: 5 - STPIS Exclusion (3.3)(a)
K61: 6 - STPIS Exclusion (3.3)(a)
K62: 7 - STPIS Exclusion (3.3)(a)
B65: CA & RESET RINS TNSP | C65: dms_TNSP_0203_SubstationType | D65: dms_TNSP_020301_ProjectType | E65: dms_TNSP_020301_ProjectTrigger | F65: dms_TNSP_020302_ProjectType | G65: dms_TNSP_0203_ProjectTrigger
C66: Terminal station | D66: New substation establishment | E66: Demand growth | F66: New line on new route - single circuit | G66: Demand growth
C67: Switching station | D67: Capacity upgrade | E67: Voltage issues | F67: New line on new route - dual circuit | G67: Voltage issues
C68: Transmission substation | D68: Voltage upgrade | E68: Reactive power issue | F68: New line on new route - other | G68: Reactive power issue
C69: Other | D69: Other | E69: Fault level issues | F69: Line rebuild over existing route - single circuit | G69: Fault level issues
E70: Net market benefit | F70: Line rebuild over existing route - dual circuit | G70: Net market benefit
E71: Safety | F71: Reconductor - Single circuit | G71: Safety
E72: Environment | F72: Reconductor - Dual circuit | G72: Environment
E73: Other | F73: Reconductor - Other | G73: Other
F74: Line upgrade - raising/retensoring
F75: Line upgrade - voltage upgrade
F76: Line upgrade - capacity
F77: String spare circuit
F78: Other
B82: NAMED RANGES USED IN ETL PROCESS
M83: GAS ARR & RESET
B84: CA & RESET RINS DNSP ONLY | C84: dms_020303_01_UOM | D84: dms_020501_01_UOM | E84: dms_020501_02_UOM | F84: dms_020501_03_UOM | G84: dms_020501_04_UOM | H84: dms_020701_01_UOM | I84: dms_020701_02_UOM | J84: dms_020701_01_Rows | K84: dms_040102_01_UOM | L84: dms_040102_04_UOM | M84: dms_S140101_UOM | N84: dms_E050201_UOM | O84: dms_E050302_UOM
C85: Circuit line length in km | D85: 0's | E85: 0's | F85: 0's | G85: 0's | H85: km | I85: km | J85: Route line length within zone | K85: 0's | L85: days | M85: number | N85: per metre per connection | O85: metres per connection
C86: Circuit line length in km | D86: 0's | E86: 0's | F86: 0's | G86: 0's | H86: 0's | I86: 0's | J86: Number of maintenance spans | K86: 0's | L86: 0's | M86: number | N86: per service per connection | O86: number per connection
C87: Circuit line length in km | D87: MVA added | E87: MVA added | F87: MVA added | G87: MVA added | H87: km | I87: km | J87: Total length of maintenance spans | K87: 0's | L87: $0s | M87: number | N87: number per connection | O87: number per connection
C88: Circuit line length in km | D88: 0's | E88: 0's | F88: 0's | G88: 0's | H88: km | I88: km | J88: Length of vegetation corridors | K88: $0s | L88: 0's | M88: km
C89: Number | D89: total spend $0s | E89: total spend $0s | F89: total spend $0s | G89: total spend $0s | H89: 0's | I89: 0's | J89: Average number of trees per maintenance span
C90: Number | D90: net circuit km added | E90: net circuit km added | F90: net circuit km added | G90: net circuit km added | H90: years | I90: years | J90: Average frequency of cutting cycle
C91: Number | D91: total spend $0s | E91: total spend $0s | F91: total spend $0s | G91: total spend $0s
D92: net circuit km added | E92: net circuit km added | F92: net circuit km added | G92: net circuit km added
D93: total spend $0s | E93: total spend $0s | F93: total spend $0s | G93: total spend $0s
D94: 0's | F94: $0s
D95: 0's
D96: 0's
D97: $0s
B100: CA & RESET RINS TNSP ONLY | C100: dms_020701_01_UOM
C101: km
C102: 0's
C103: km
C104: 0's
C105: km
C106: metres
C107: years
B110: CA & RESET RINS DNSP & TNSP | C110: dms_020603_01_UOM
C111: 0's
C112: 0's
C113: 0's
C114: 0's
C115: (per cent)
B118: EB & RESET RINS DNSP ONLY | C118: dms_030601_01_UOM | D118: dms_030601_02_UOM | E118: dms_030701_01_UOM | F118: dms_030702_01_UOM | G118: dms_030703_01_UOM
C119: minutes/customer | D119: minutes/customer | E119: Customer / km | F119: % | G119: km
C120: minutes/customer | D120: minutes/customer | E120: MWh/customer | F120: Number of spans
C121: interruptions/customer | D121: interruptions/customer | E121: kVA / customer | F121: Number of spans
C122: interruptions/customer | D122: interruptions/customer | F122: Number of spans
F123: Number of spans
F124: Years
F125: Years
F126: Trees
F127: Trees
F128: Defects
F129: Defects
F130: Spans
F131: km
F132: Spans
C134: WHEN INSERTING COVER SHEET INTO A TNSP FILE - APPLY THESE NAMED RANGES
B135: EB & RESET RINS TNSP ONLY | C135: dms_030601_01_UOM | E135: dms_030701_01_UOM | F135: dms_030702_01_UOM
C136: % | E136: Number of spans | F136: km
C137: number | E137: Years | F137: %
C138: number | E138: Trees | F138: km
C139: % | E139: Defects | F139: number
C140: number | E140: Number of spans
C141: number | E141: km
C142: % | E142: km
C143: number | E143: Number of spans
C144: number
C145: %
C146: number
C147: %
C148: number
C149: %
C150: number
B152: EB & RESET RINS DNSP & TNSP | C152: dms_EB_RAB_PIT
C153: Beginning of year
C154: End of year
C155: End of year
C156: End of year
C157: End of year
C158: End of year
B160: ARR DNSP ONLY | C160: dms_030605_UOM | D160: dms_03060703_UOM | E160: dms_E020202_UOM | F160: Spare
C161: number | D161: number | E161: Length of mains replaced
C162: number | D162: number | E162: Number of services replaced
C163: number | D163: number
C164: number | D164: number
C165: number | D165: (per cent)
C166: number
C167: number
C168: number
C169: number
C170: number
C171: number
C172: number
C173: (per cent)
C174: (per cent)
B176: RFM | C176: dms_Beg | D176: dms_Mid | E176: dms_End
C177: Beginning of year | D177: Mid year | E177: End of Year
B179: PTRM | C179: dms_PTRM_RAB_PIT | D179: dms_PTRM_TAB_PIT | E179: DMS_Xfactor
C180: Beginning of year | D180: Beginning of year | E180: x factors
C181: End of year | D181: End of year
C182: End of year | D182: End of year
C183: End of year | D183: End of year
C184: End of year
B187: STPIS & MIC NAMED RANGES
B189: These "row descriptions" are the column headings in the various templates but become row descriptions in the ETL process
B191: Table 6.3 sustained interruptions - row descriptions | C191: dms_060301_CustNo_Affected_Row | D191: dms_060301_Avg_Duration_Sustained_Int_Row | E191: dms_060301_Effect_unplanned_SAIDI_Row | F191: dms_060301_Effect_unplanned_SAIFI_Row
C192: Number of customers affected by the interruption | D192: Average duration of sustained customer interruption | E192: Effect on unplanned SAIDI | F192: Effect on unplanned SAIFI
B195: Table 6.1 telephone answering - row descriptions and start date | C195: dms_060101_Rows | D195: dms_060102_Rows | E195: dms_060101_StartDateTxt
C196: Total number of calls (after removing excluded events) | D196: Number of calls answered within 30 seconds (after excluding excluded events) | E196: =dms_060701_StartDateTxt -> 1-Jul-2017
B199: Table 6.8.1 - row descriptions | C199: dms_060801_01_Rows | D199: dms_060801_02_Rows | E199: dms_060801_03_Rows | F199: dms_060801_04_Rows
C200: Number of interruptions | D200: Duration of interruptions | E200: Total unplanned minutes off supply | F200: Effect on unplanned MAIFI
B203: Table 7.9.4 - market impact component - row descriptions | C203: dms_070904_01_Rows | D203: without exclusions | E203: with exclusions
B206: These headings (Lists) are determined from the INDEX/MATCH function on the NSP selected on the Business & other details sheet
B208: Table 6.7.1 - daily performance data - unplanned - MAIFI -- row descriptions and header named range values | C208: dms_060701_Feeder_Header_Lvl4 | D208: =INDEX(dms_FeederName_1,MATCH(dms_TradingName,dms_TradingName_List)) -> - | E208: =INDEX(dms_FeederName_1,MATCH(dms_TradingName,dms_TradingName_List)) -> - | F208: =INDEX(dms_FeederName_2,MATCH(dms_TradingName,dms_TradingName_List)) -> CBD | G208: =INDEX(dms_FeederName_2,MATCH(dms_TradingName,dms_TradingName_List)) -> CBD | H208: =INDEX(dms_FeederName_3,MATCH(dms_TradingName,dms_TradingName_List)) -> Urban | I208: =INDEX(dms_FeederName_3,MATCH(dms_TradingName,dms_TradingName_List)) -> Urban | J208: =INDEX(dms_FeederName_4,MATCH(dms_TradingName,dms_TradingName_List)) -> Short rural | K208: =INDEX(dms_FeederName_4,MATCH(dms_TradingName,dms_TradingName_List)) -> Short rural | L208: =IF((INDEX(dms_FeederName_5,MATCH(dms_TradingName,dms_TradingName_List))=0),"Network",(INDEX(dms_FeederName_5,MATCH(dms_TradingName,dms_TradingName_List)))) -> Long rural | M208: =IF((INDEX(dms_FeederName_5,MATCH(dms_TradingName,dms_TradingName_List))=0),"Network",(INDEX(dms_FeederName_5,MATCH(dms_TradingName,dms_TradingName_List)))) -> Long rural | N208: Network | O208: Network
C210: dms_060701_Rows | D210: All events | E210: After removing excluded events | F210: All events | G210: After removing excluded events | H210: All events | I210: After removing excluded events | J210: All events | K210: After removing excluded events | L210: All events | M210: After removing excluded events | N210: All events | O210: After removing excluded events
D211: the number of column headings changes from 10 to 12 depending on the number of feeder categories for the NSP
C213: dms_0603_FeederList | D213: =INDEX(dms_FeederName_1,MATCH(dms_TradingName,dms_TradingName_List)) -> - | E213: =INDEX(dms_FeederName_2,MATCH(dms_TradingName,dms_TradingName_List)) -> CBD | F213: =INDEX(dms_FeederName_3,MATCH(dms_TradingName,dms_TradingName_List)) -> Urban | G213: =INDEX(dms_FeederName_4,MATCH(dms_TradingName,dms_TradingName_List)) -> Short rural
B216: Use these to add to specific worksheets in existing files | C216: Use these to add to specific worksheets in existing files
B219: ARRs 6.7 STPIS daily performance | C219: dms_060101_Values | D219: dms_060102_Values | E219: dms_060701_Values
C220: dms_LeapYear
B223: ARR's 6.8 STPIS exclusions | C223: dms_060801_Event_Date | D223: dms_060801_OutageID | E223: dms_060801_FeederID | F223: dms_060801_FeederClass | G223: dms_060801_CauseID | H223: dms_060801_01_Values | I223: dms_060801_02_Values | J223: dms_060801_03_Values | K223: dms_060801_Excl_Cat | L223: dms_060801_04_Values
C224: dms_060801_StartCell
B227: CA 6.3 sustained interruptions | C227: dms_060301_Event_Date | D227: dms_060301_Event_Time | E227: dms_060301_AssetID | F227: dms_060301_FeederClass | G227: dms_060301_Reason | H227: dms_060301_DetailedReason | I227: dms_060301_CustNo_Affected_Values | J227: dms_060301_Avg_Duration_Sustained_Int_Values | K227: dms_060301_Effect_unplanned_SAIDI_Values | L227: dms_060301_Effect_unplanned_SAIFI_Values | M227: dms_060301_MED

Sheet AER lookups (hidden)
B1: AER LOOKUP TABLES
B3: Data in these columns used for data validation and database purposes.
B4: Date last modified: | C4: 2017-01-16 | D4: added (Albury and Victora) for AGN
C5: 2016-10-17 | D5: updated TransGrid's correct legal name, corrected TasNetworks (T) to June financial year
C6: 2017-02-01 | D6: inserted Power and Water, added NRs (dms_FeederCat_1 and dms_FeederCat_2)
C7: 2017-03-03 | D7: inserted AEMO as a business
C8: 2018-03-28 | D8: major changes to accommodate STPIS
C9: Template Version | D9: 5
Z11: FOR ELECTRICITY BUSINESSES ONLY
Z12: Feeder Types | AD12: TasNetworks (D) | AE12: Feeder Names
Z14: CBD | AA14: Urban | AB14: Short rural | AC14: long rural | AD14: EXTRA
B15: dms_TradingName_List | C15: dms_TradingNameFull_List | D15: dms_ABN_List | E15: dms_JurisdictionList | F15: dms_Sector_List | G15: dms_Segment_List | H15: dms_FormControl_List | I15: dms_RPT_List | J15: dms_RPTMonth_List | K15: dms_CRCPlength_List | L15: dms_FRCPlength_List | M15: dms_PRCPlength_List | N15: dms_663_List | O15: dms_DeterminationRef_List | P15: dms_Addr1_List | Q15: dms_Addr2_List | R15: dms_Suburb_List | S15: dms_State_List | T15: dms_PostCode_List | U15: dms_PAddr1_List | V15: dms_PAddr2_List | W15: dms_PSuburb_List | X15: dms_PState_List | Y15: dms_PPostCode_List | Z15: dms_CBD_flag | AA15: dms_Urban_flag | AB15: dms_ShortRural_flag | AC15: dms_LongRural_flag | AD15: dms_FeederType_5_flag | AE15: dms_FeederName_1 | AF15: dms_FeederName_2 | AG15: dms_FeederName_3 | AH15: dms_FeederName_4 | AI15: dms_FeederName_5 | AJ15: dms_Public_Lighting_List | AK15: Name
B16: AEMO | C16: Australian Energy Market Operator Ltd | D16: 94072010327 | E16: Vic | F16: Electricity | G16: Transmission | H16: - | I16: Financial | J16: March | K16: 5 | L16: 5 | M16: 5 | N16: x | O16: - | P16: Level 22 | Q16: 530 Collins Street | R16: MELBOURNE | S16: Vic | T16: 3000 | U16: GPO Box 2008 | W16: MELBOURNE | X16: Vic | Y16: 3001 | Z16: NO | AA16: NO | AB16: NO | AC16: NO | AD16: NO | AE16: - | AF16: CBD | AG16: Urban | AH16: Short rural | AI16: Long rural | AK16: NO
B17: AusNet (T) | C17: AusNet Transmission Group Pty Ltd | D17: 78079798173 | E17: Vic | F17: Electricity | G17: Transmission | H17: Revenue cap | I17: Financial | J17: March | K17: 5 | L17: 5 | M17: 5 | N17: 2 | O17: transmission determination | P17: Level 32 | Q17: 2 Southbank Boulevard | R17: SOUTHBANK | S17: Vic | T17: 3006 | U17: Locked Bag 14051 | W17: MELBOURNE CITY MAIL CENTRE | X17: Vic | Y17: 8001 | Z17: NO | AA17: NO | AB17: NO | AC17: NO | AD17: NO | AE17: CBD | AF17: Urban | AG17: Short rural | AH17: Long rural | AJ17: NO | AK17: =B17 -> AusNet (T) | AL17: AEMO
B18: Australian Transmission Co. | C18: Australian Transmission Co. | D18: 11222333444 | E18: NSW | F18: Electricity | G18: Transmission | H18: Revenue cap | I18: Financial | J18: June | K18: 5 | L18: 5 | M18: 5 | N18: 5 | O18: transmission determination | P18: 123 Straight Street | R18: SYDNEY | S18: NSW | T18: 2000 | U18: PO Box 123 | W18: SYDNEY | X18: NSW | Y18: 2000 | Z18: NO | AA18: NO | AB18: NO | AC18: NO | AD18: NO | AE18: CBD | AF18: Urban | AG18: Short rural | AH18: Long rural | AJ18: NO | AK18: Australian Transmission Co.
B19: Directlink | C19: Directlink | D19: 16779340889 | E19: Qld | F19: Electricity | G19: Transmission | H19: Revenue cap | I19: Financial | J19: June | K19: 5 | L19: 5 | M19: 5 | N19: 5 | O19: transmission determination | P19: Level 25 | Q19: 580 George Street | R19: SYDNEY | S19: NSW | T19: 2000 | U19: PO Box R41 | W19: ROYAL EXCHANGE | X19: NSW | Y19: 1225 | Z19: NO | AA19: NO | AB19: NO | AC19: NO | AD19: NO | AE19: - | AF19: CBD | AG19: Urban | AH19: Short rural | AI19: Long rural | AK19: NO | AL19: Directlink
B20: ElectraNet | C20: ElectraNet | D20: 41094482416 | E20: SA | F20: Electricity | G20: Transmission | H20: Revenue cap | I20: Financial | J20: June | K20: 5 | L20: 5 | M20: 5 | N20: 5 | O20: transmission determination | P20: 52-55 East Terrace | Q20: Rymill Park | R20: ADELAIDE | S20: SA | T20: 5000 | U20: PO Box 7096 | V20: Hutt Street Post Office | W20: ADELAIDE | X20: SA | Y20: 5000 | Z20: NO | AA20: NO | AB20: NO | AC20: NO | AD20: NO | AE20: - | AF20: CBD | AG20: Urban | AH20: Short rural | AI20: Long rural | AK20: NO | AL20: ElectraNet
B21: Murraylink | C21: Murraylink | D21: 79181207909 | E21: SA | F21: Electricity | G21: Transmission | H21: Revenue cap | I21: Financial | J21: June | K21: 5 | L21: 5 | M21: 5 | N21: 5 | O21: transmission determination | P21: Level 19 | Q21: 580 George Street | R21: SYDNEY | S21: NSW | T21: 2000 | U21: PO Box R41 | W21: ROYAL EXCHANGE | X21: NSW | Y21: 1225 | Z21: NO | AA21: NO | AB21: NO | AC21: NO | AD21: NO | AE21: - | AF21: CBD | AG21: Urban | AH21: Short rural | AI21: Long rural | AK21: NO | AL21: Murraylink
B22: Powerlink | C22: Queensland Electricity Transmission Corporation Limited trading as Powerlink Queensland | D22: 82078849233 | E22: Qld | F22: Electricity | G22: Transmission | H22: Revenue cap | I22: Financial | J22: June | K22: 5 | L22: 5 | M22: 5 | N22: 5 | O22: transmission determination | P22: 33 Harold St | R22: VIRGINIA | S22: Qld | T22: 4014 | U22: PO Box 1193 | W22: VIRGINIA | X22: QLD | Y22: 4014 | Z22: NO | AA22: NO | AB22: NO | AC22: NO | AD22: NO | AE22: CBD | AF22: Urban | AG22: Short rural | AH22: Long rural | AJ22: NO | AK22: =B22 -> Powerlink | AL22: TasNetworks (T)
B23: TasNetworks (T) | C23: TasNetworks (T) | D23: 24167357299 | E23: Tas | F23: Electricity | G23: Transmission | H23: Revenue cap | I23: Financial | J23: June | K23: 5 | L23: 5 | M23: 5 | N23: 5 | O23: transmission determination | P23: 1-7 Maria Street | R23: LENAH VALLEY | S23: Tas | T23: 7008 | U23: PO Box 606 | W23: MOONAH | X23: Tas | Y23: 7009 | Z23: NO | AA23: NO | AB23: NO | AC23: NO | AD23: NO | AE23: - | AF23: CBD | AG23: Urban | AH23: Short rural | AI23: Long rural | AK23: NO | AL23: TransGrid
B24: TransGrid | C24: NSW Electricity Networks Operations Pty Ltd trading as TransGrid | D24: 70 250 995 390 | E24: NSW | F24: Electricity | G24: Transmission | H24: Revenue cap | I24: Financial | J24: June | K24: 5 | L24: 5 | M24: 4 | N24: 5 | O24: transmission determination | P24: 180 Thomas Street | R24: SYDNEY | S24: NSW | T24: 2000 | U24: PO Box A1000 | W24: SYDNEY SOUTH | X24: NSW | Y24: 1235 | Z24: NO | AA24: NO | AB24: NO | AC24: NO | AD24: NO | AE24: - | AF24: CBD | AG24: Urban | AH24: Short rural | AI24: Long rural | AK24: NO
B29: The Reg Year Ending (dms_RYE) must be set to the last year of the regulatory period. For forecast data is is usually (FRCP_y5) for actual it is a single year (CRY). For historical actual data the RYE will need to be set manually in the business details sheet by setting the dms_Multiyear_flag to 1 and putting the correct value in 'dms_Specified_FinalYear. See cells C67:C68
B30: dms_Model_List | C30: dms_Model_Name_Format1 | D30: dms_Worksheet_List | E30: dms_Model_Span_List
B31: ARR | C31: Annual Reporting | D31: =IF(dms_MultiYear_ResponseFlag="yes","NEW HISTORICAL ANNUAL REPORTING","ANNUAL REPORTING") -> ANNUAL REPORTING | E31: 1
B32: CA | C32: Category Analysis | D32: =IF(dms_MultiYear_ResponseFlag="yes","NEW HISTORICAL CATEGORY ANALYSIS","CATEGORY ANALYSIS") -> CATEGORY ANALYSIS | E32: 1
B33: CESS | C33: Capitlal Expenditure | D33: CAPITLAL EXPENDITURE SHARING SCHEMING | E33: 5
B34: CPI | C34: CPI | D34: CPI | E34: 5
B35: EB | C35: Economic Benchmarking | D35: =IF(dms_MultiYear_ResponseFlag="yes","NEW HISTORICAL ECONOMIC BENCHMARKING","ECONOMIC BENCHMARKING") -> ECONOMIC BENCHMARKING | E35: 1
B36: Pricing | C36: Pricing Proposal | D36: PRICING PROPOSAL | E36: 5
B37: PTRM | C37: Post Tax Revenue Model | D37: POST TAX REVENUE MODEL | E37: 5
B38: Reset | C38: Regulatory Reporting (Reset) | D38: REGULATORY REPORTING STATEMENT | E38: 5
B39: RFM | C39: Roll Forward Model | D39: ROLL FORWARD MODEL | E39: 5
B40: WACC | C40: Weighted Average Cost of Capital | D40: WEIGHTED AVERAGE COST OF CAPITAL | E40: 1
B44: Financial | C44: Calendar | E44: PREVIOUS | G44: CURRENT | I44: FORTHCOMING
B45: 1987-88 | C45: 1988 | D45: PRCP_y1 | E45: =INDEX(INDIRECT(dms_RPT),dms_PRCP_start_row) -> 2014-15 | F45: CRCP_y1 | G45: =INDEX(INDIRECT(dms_RPT),dms_CRCP_start_row) -> 2018-19 | H45: =FRCP_y1 -> 2023-24 | I45: =INDEX(INDIRECT(dms_RPT),dms_FRCP_start_row) -> 2023-24
B46: 1988-89 | C46: 1989 | D46: PRCP_y2 | E46: =INDEX(INDIRECT(dms_RPT),dms_PRCP_start_row+1) -> 2015-16 | F46: CRCP_y2 | G46: =INDEX(INDIRECT(dms_RPT),dms_CRCP_start_row+1) -> 2019-20 | H46: FRCP_y2 | I46: =INDEX(INDIRECT(dms_RPT),dms_FRCP_start_row+1) -> 2024-25
B47: 1989-90 | C47: 1990 | D47: PRCP_y3 | E47: =INDEX(INDIRECT(dms_RPT),dms_PRCP_start_row+2) -> 2016-17 | F47: CRCP_y3 | G47: =INDEX(INDIRECT(dms_RPT),dms_CRCP_start_row+2) -> 2020-21 | H47: FRCP_y3 | I47: =INDEX(INDIRECT(dms_RPT),dms_FRCP_start_row+2) -> 2025-26
B48: 1990-91 | C48: 1991 | D48: PRCP_y4 | E48: =INDEX(INDIRECT(dms_RPT),dms_PRCP_start_row+3) -> 2017-18 | F48: CRCP_y4 | G48: =INDEX(INDIRECT(dms_RPT),dms_CRCP_start_row+3) -> 2021-22 | H48: FRCP_y4 | I48: =INDEX(INDIRECT(dms_RPT),dms_FRCP_start_row+3) -> 2026-27
B49: 1991-92 | C49: 1992 | D49: PRCP_y5 | E49: =INDEX(INDIRECT(dms_RPT),dms_PRCP_start_row+4) -> 2018-19 | F49: CRCP_y5 | G49: =INDEX(INDIRECT(dms_RPT),dms_CRCP_start_row+4) -> 2022-23 | H49: FRCP_y5 | I49: =INDEX(INDIRECT(dms_RPT),dms_FRCP_start_row+4) -> 2027-28
B50: 1992-93 | C50: 1993 | D50: PRCP_y6 | E50: =INDEX(INDIRECT(dms_RPT),dms_PRCP_start_row+5) -> 2019-20 | F50: CRCP_y6 | G50: =INDEX(INDIRECT(dms_RPT),dms_CRCP_start_row+5) -> 2023-24 | H50: FRCP_y6 | I50: =INDEX(INDIRECT(dms_RPT),dms_FRCP_start_row+5) -> 2028-29
B51: 1993-94 | C51: 1994 | D51: PRCP_y7 | E51: =INDEX(INDIRECT(dms_RPT),dms_PRCP_start_row+6) -> 2020-21 | F51: CRCP_y7 | G51: =INDEX(INDIRECT(dms_RPT),dms_CRCP_start_row+6) -> 2024-25 | H51: FRCP_y7 | I51: =INDEX(INDIRECT(dms_RPT),dms_FRCP_start_row+6) -> 2029-30
B52: 1994-95 | C52: 1995 | D52: PRCP_y8 | E52: =INDEX(INDIRECT(dms_RPT),dms_PRCP_start_row+7) -> 2021-22 | F52: CRCP_y8 | G52: =INDEX(INDIRECT(dms_RPT),dms_CRCP_start_row+7) -> 2025-26 | H52: FRCP_y8 | I52: =INDEX(INDIRECT(dms_RPT),dms_FRCP_start_row+7) -> 2030-31
B53: 1995-96 | C53: 1996 | D53: PRCP_y9 | E53: =INDEX(INDIRECT(dms_RPT),dms_PRCP_start_row+8) -> 2022-23 | F53: CRCP_y9 | G53: =INDEX(INDIRECT(dms_RPT),dms_CRCP_start_row+8) -> 2026-27 | H53: FRCP_y9 | I53: =INDEX(INDIRECT(dms_RPT),dms_FRCP_start_row+8) -> 2031-32
B54: 1996-97 | C54: 1997 | D54: PRCP_y10 | E54: =INDEX(INDIRECT(dms_RPT),dms_PRCP_start_row+9) -> 2023-24 | F54: CRCP_y10 | G54: =INDEX(INDIRECT(dms_RPT),dms_CRCP_start_row+9) -> 2027-28 | H54: FRCP_y10 | I54: =INDEX(INDIRECT(dms_RPT),dms_FRCP_start_row+9) -> 2032-33
B55: 1997-98 | C55: 1998 | D55: PRCP_y11 | E55: =INDEX(INDIRECT(dms_RPT),dms_PRCP_start_row+10) -> 2024-25 | F55: CRCP_y11 | G55: =INDEX(INDIRECT(dms_RPT),dms_CRCP_start_row+10) -> 2028-29 | H55: FRCP_y11 | I55: =INDEX(INDIRECT(dms_RPT),dms_FRCP_start_row+10) -> 2033-34
B56: 1998-99 | C56: 1999 | D56: PRCP_y12 | E56: =INDEX(INDIRECT(dms_RPT),dms_PRCP_start_row+11) -> 2025-26 | F56: CRCP_y12 | G56: =INDEX(INDIRECT(dms_RPT),dms_CRCP_start_row+11) -> 2029-30 | H56: FRCP_y12 | I56: =INDEX(INDIRECT(dms_RPT),dms_FRCP_start_row+11) -> 2034-35
B57: 1999-00 | C57: 2000 | D57: PRCP_y13 | E57: =INDEX(INDIRECT(dms_RPT),dms_PRCP_start_row+12) -> 2026-27 | F57: CRCP_y13 | G57: =INDEX(INDIRECT(dms_RPT),dms_CRCP_start_row+12) -> 2030-31 | H57: FRCP_y13 | I57: =INDEX(INDIRECT(dms_RPT),dms_FRCP_start_row+12) -> 2035-36
B58: 2000-01 | C58: 2001 | D58: PRCP_y14 | E58: =INDEX(INDIRECT(dms_RPT),dms_PRCP_start_row+13) -> 2027-28 | F58: CRCP_y14 | G58: =INDEX(INDIRECT(dms_RPT),dms_CRCP_start_row+13) -> 2031-32 | H58: FRCP_y14 | I58: =INDEX(INDIRECT(dms_RPT),dms_FRCP_start_row+13) -> 2036-37
B59: 2001-02 | C59: 2002 | D59: PRCP_y15 | E59: =INDEX(INDIRECT(dms_RPT),dms_PRCP_start_row+14) -> 2028-29 | F59: CRCP_y15 | G59: =INDEX(INDIRECT(dms_RPT),dms_CRCP_start_row+14) -> 2032-33 | H59: FRCP_y15 | I59: =INDEX(INDIRECT(dms_RPT),dms_FRCP_start_row+14) -> 
B60: 2002-03 | C60: 2003 | D60: PRCP_y16 | E60: =INDEX(INDIRECT(dms_RPT),dms_PRCP_start_row+15) -> 2029-30 | F60: CRCP_y16 | G60: =INDEX(INDIRECT(dms_RPT),dms_CRCP_start_row+15) -> 2033-34 | H60: FRCP_y16 | I60: =INDEX(INDIRECT(dms_RPT),dms_FRCP_start_row+15) -> 
B61: 2003-04 | C61: 2004
B62: 2004-05 | C62: 2005
B63: 2005-06 | C63: 2006 | E63: CRY - FRY
B64: 2006-07 | C64: 2007 | D64: dms_y1 | E64: =IFERROR(INDEX(INDIRECT(dms_RPT),dms_CRY_start_row),0) -> 2021-22
B65: 2007-08 | C65: 2008 | D65: dms_y2 | E65: =IFERROR(INDEX(INDIRECT(dms_RPT),dms_CRY_start_row+1),0) -> 2022-23
B66: 2008-09 | C66: 2009 | D66: dms_y3 | E66: =IFERROR(INDEX(INDIRECT(dms_RPT),dms_CRY_start_row+2),0) -> 2023-24
B67: 2009-10 | C67: 2010 | D67: dms_y4 | E67: =IFERROR(INDEX(INDIRECT(dms_RPT),dms_CRY_start_row+3),0) -> 2024-25
B68: 2010-11 | C68: 2011 | D68: dms_y5 | E68: =IFERROR(INDEX(INDIRECT(dms_RPT),dms_CRY_start_row+4),0) -> 2025-26
B69: 2011-12 | C69: 2012 | D69: dms_y6 | E69: =IFERROR(INDEX(INDIRECT(dms_RPT),dms_CRY_start_row+5),0) -> 2026-27
B70: 2012-13 | C70: 2013 | D70: dms_y7 | E70: =IFERROR(INDEX(INDIRECT(dms_RPT),dms_CRY_start_row+6),0) -> 2027-28
B71: 2013-14 | C71: 2014 | D71: dms_y8 | E71: =IFERROR(INDEX(INDIRECT(dms_RPT),dms_CRY_start_row+7),0) -> 2028-29
B72: 2014-15 | C72: 2015 | D72: dms_y9 | E72: =IFERROR(INDEX(INDIRECT(dms_RPT),dms_CRY_start_row+8),0) -> 2029-30
B73: 2015-16 | C73: 2016 | D73: dms_y10 | E73: =IFERROR(INDEX(INDIRECT(dms_RPT),dms_CRY_start_row+9),0) -> 2030-31
B74: 2016-17 | C74: 2017 | D74: dms_y11 | E74: =IFERROR(INDEX(INDIRECT(dms_RPT),dms_CRY_start_row+10),0) -> 2031-32
B75: 2017-18 | C75: 2018 | D75: dms_y12 | E75: =IFERROR(INDEX(INDIRECT(dms_RPT),dms_CRY_start_row+11),0) -> 2032-33
B76: 2018-19 | C76: 2019 | D76: dms_y13 | E76: =IFERROR(INDEX(INDIRECT(dms_RPT),dms_CRY_start_row+12),0) -> 2033-34
B77: 2019-20 | C77: 2020 | D77: dms_y14 | E77: =IFERROR(INDEX(INDIRECT(dms_RPT),dms_CRY_start_row+13),0) -> 2034-35
B78: 2020-21 | C78: 2021 | D78: dms_y15 | E78: =IFERROR(INDEX(INDIRECT(dms_RPT),dms_CRY_start_row+14),0) -> 2035-36
B79: 2021-22 | C79: 2022 | D79: dms_y16 | E79: =IFERROR(INDEX(INDIRECT(dms_RPT),dms_CRY_start_row+15),0) -> 2036-37
B80: 2022-23 | C80: 2023
B81: 2023-24 | C81: 2024
B82: 2024-25 | C82: 2025
B83: 2025-26 | C83: 2026
B84: 2026-27 | C84: 2027
B85: 2027-28 | C85: 2028
B86: 2028-29 | C86: 2029
B87: 2029-30 | C87: 2030
B88: 2030-31 | C88: 2031
B89: 2031-32 | C89: 2032
B90: 2032-33 | C90: 2033
B91: 2033-34 | C91: 2034
B92: 2034-35 | C92: 2035
B93: 2035-36 | C93: 2036
B94: 2036-37 | C94: 2037

Sheet AER ETL (hidden)
A1: DRAFT RIN - 20200429 (WIP) | B1: AER ETL INFORMATION
B3: USES NAMED RANGES FLAG | C3: yes | D3: dms_Defined_Names_Used
B5: IF THIS IS AN ABC RIN - make sure the the named range CRY is applied and the named range dms_dollar_nom_UOM is applied
B6: IF THIS IS A RESET RIN - make sure the named ranges CRY and dms_dollar_nom_UOM are NOT present in the workbook
B7: FOR ABC RINS THAT SPAN MULTIPLE YEARS - make sure MultiYear Flag is set and final year entered as required
B9: Full trading name | C9: =INDEX(dms_TradingNameFull_List,MATCH(dms_TradingName,dms_TradingName_List)) -> NSW Electricity Networks Operations Pty Ltd trading as TransGrid | E9: dms_TradingNameFull
B10: Trading name | C10: =dms_TradingName -> TransGrid
A11: Selected here | B11: Model / RIN | C11: Reset | D11: dms_Model
A12: Read from Business & other details | B12: Source | C12: Regulatory proposal | D12: dms_Source
B13: Data quality | C13: Consolidated | D13: For DB purposes this is always Consoldiated
B14: Data status | C14: Public | D14: For DB purposes this is always Public
B15: Amendment reason | C15: =dms_Amendment_Text -> . | F15: dms_AmendmentReason
B16: Submission date | C16: =dms_Typed_Submission_Date -> 2022-01-31 | D16: dms_SubmissionDate
A18: Redundant | B18: EBSS - First application of scheme in forthcoming period? | C18: No
A19: Pre-populated from lookup table | B19: Data ingestion data quality | C19: Consolidated | D19: dms_DataQuality | E19: Always Consolidated
B20: Sector | C20: =INDEX(dms_Sector_List,MATCH(dms_TradingName,dms_TradingName_List)) -> Electricity | D20: dms_Sector | E20: =INDEX(dms_Sector_List,MATCH(dms_TradingName,dms_TradingName_List))
B21: Segment | C21: =INDEX(dms_Segment_List,MATCH(dms_TradingName,dms_TradingName_List)) -> Transmission | D21: dms_Segment | E21: =INDEX(dms_Segment_List,MATCH(dms_TradingName,dms_TradingName_List))
B22: Regulatory Year Ending | C22: =dms_RYE_result -> 2028 | D22: dms_RYE | E22: =IF(dms_MultiYear_Flag=1,LEFT(dms_Specified_FinalYear,2)&RIGHT(dms_Specified_FinalYear,2),INDEX(dms_RYE_Formula_Result,MATCH(dms_Model,dms_Model_List)))
B23: Reporting Period Type | C23: =INDEX(dms_RPT_List,MATCH(dms_TradingName,dms_TradingName_List)) -> Financial | D23: dms_RPT | E23: =INDEX(dms_RPT_List,MATCH(dms_TradingName,dms_TradingName_List))
B24: EB/CA Unit of Measure for Monetary Values | C24: $0s | D24: dms_dollar_nom_UOM | E24: If the cover sheet is attached to an ABC RIN apply the NAMED RANGE to the cell
B25: Security Classification | C25: Public | D25: dms_Classification | E25: Always Public
B26: Jurisdiction | C26: =INDEX(dms_JurisdictionList,MATCH(dms_TradingName,dms_TradingName_List)) -> NSW | D26: dms_Jurisdiction | E26: =INDEX(dms_JurisdictionList,MATCH(dms_TradingName,dms_TradingName_List))
A27: Relevant for PTRM, RFMs and Reset RINS | B27: $ REAL REFERENCES
B28: Does the named range CRY exist in this file? | C28: =IFERROR(CRY,"NO") -> NO
B29: CRY-1 (last full calendar year before CRY) | C29: =IFERROR(IF(dms_RPT="calendar",CRY-1,LEFT(CRY,4)),"CRY not present") -> CRY not present | D29: dms_Cal_Year_B4_CRY | E29: '=IF(dms_RPT="financial",VALUE(LEFT(dms_SingleYear_FinalYear_Result,4)),VALUE(LEFT(dms_SingleYear_FinalYear_Result,4)-1))
B30: Dollar $ real month | C30: =INDEX(dms_RPTMonth_List,MATCH(dms_TradingName,dms_TradingName_List)) -> June | D30: dms_RPTMonth | E30: =INDEX(dms_RPTMonth_List,MATCH(dms_TradingName,dms_TradingName_List))
B31: Dollar $ real (the last month before the FRCP_y1) | C31: =IF(dms_SingleYearModel="yes",CONCATENATE(dms_RPTMonth)&" "&VALUE((LEFT(dms_CRY_start_year,2)&RIGHT(dms_CRY_start_year,2))),CONCATENATE(dms_RPTMonth)&" "&dms_DollarReal_year) -> June 2023 | D31: dms_DollarReal | E31: =IF(SUM(dms_SingleYear_Model)>0,CONCATENATE(dms_RPTMonth)&" "&VALUE((LEFT(CRY,2))&RIGHT(CRY,2)),CONCATENATE(dms_RPTMonth)&" "&VALUE((LEFT(dms_RYE,2)&RIGHT(dms_RYE,2))))
B32: Dollar $ real previous year (PRCP_y5) | C32: =CONCATENATE(dms_RPTMonth)&" "&dms_Previous_DollarReal_year -> June 2019 | D32: dms_DollarReal_Prev | E32: =IF(SUM(dms_SingleYear_Model)>0,CONCATENATE(dms_RPTMonth)&" "&VALUE(((LEFT(CRY,2))&RIGHT(CRY,2))-1),CONCATENATE(dms_RPTMonth)&" "&VALUE(((LEFT(dms_CRCP_FirstYear_Result,2)&RIGHT(dms_CRCP_FirstYear_Result,2))))-1)
B33: PTRM/ RFMs
B34: Form of control | C34: =INDEX(dms_FormControl_List,MATCH(dms_TradingName,dms_TradingName_List)) -> Revenue cap | D34: dms_FormControl | E34: =INDEX(dms_FormControl_List,MATCH(dms_TradingName,dms_TradingName_List))
A35: All potential values for Regulatory Years or RYEs as calculated | B35: This block works out the various RYE's for ALL RIN types and MODELS
B36: dms_start_year | C36: =FRCP_y1 -> 2023-24 | D36: =FRCP_y1 | E36: FRCP_y1 from cover sheet
B37: dms_CRY_start_year | C37: =IFERROR(CRY,CRCP_y4) -> 2021-22 | D37: =IFERROR(CRY,CRCP_y4)
B38: dms_CRY_start_row | C38: =IFERROR(MATCH(dms_CRY_start_year,INDIRECT(dms_RPT),0),0) -> 35 | D38: =IFERROR(MATCH(dms_CRY_start_year,INDIRECT(dms_RPT),0),0)
B39: dms_FRCP_start_row | C39: =MATCH(dms_start_year,INDIRECT(dms_RPT),0) -> 37 | D39: =MATCH(dms_start_year,INDIRECT(dms_RPT),0) | E39: Uses FRCP_y1 as a start reference
B40: dms_CRCP_start_row | C40: =dms_FRCP_start_row-dms_CRCPlength_Num -> 32 | D40: =dms_FRCP_start_row-dms_CRCPlength_Num | E40: Uses the value in dms_CRCPlength_Num
B41: dms_PRCP_start_row | C41: =dms_FRCP_start_row-dms_CRCPlength_Num-dms_PRCPlength_Num -> 28 | D41: =dms_FRCP_start_row-dms_CRCPlength_Num-dms_PRCPlength_Num | E41: Uses the value in dms_CRCPlength_Num and dms_PRCPlength_Num
B42: dms_RYE_start_row | C42: =dms_FRCP_start_row+(dms_FRCPlength_Num-1) -> 41 | D42: =dms_FRCP_start_row+(dms_FRCPlength_Num-1) | E42: Uses the value in dms_FRCPlength_Num-1
B43: FRCP_start_year | C43: =INDEX(INDIRECT(dms_RPT),dms_FRCP_start_row) -> 2023-24 | D43: =INDEX(INDIRECT(dms_RPT),dms_FRCP_start_row) | E43: Converts the FRCP start row to display the year
B44: CRCP_start_year | C44: =INDEX(INDIRECT(dms_RPT),dms_CRCP_start_row) -> 2018-19 | D44: =INDEX(INDIRECT(dms_RPT),dms_CRCP_start_row) | E44: Converts the CRCP start row to display the year
B45: PRCP_start_year | C45: =INDEX(INDIRECT(dms_RPT),dms_PRCP_start_row) -> 2014-15 | D45: =INDEX(INDIRECT(dms_RPT),dms_PRCP_start_row) | E45: Converts the PRCP start row to display the year
B46: FRCP_final_year | C46: =INDEX(INDIRECT(dms_RPT),dms_FRCP_start_row+dms_FRCPlength_Num-1) -> 2027-28 | D46: =INDEX(INDIRECT(dms_RPT),dms_FRCP_start_row+dms_FRCPlength_Num-1) | E46: Finds the FRCP final year
B47: CRCP_final_year | C47: =INDEX(INDIRECT(dms_RPT),dms_CRCP_start_row+dms_CRCPlength_Num-1) -> 2022-23 | D47: =INDEX(INDIRECT(dms_RPT),dms_CRCP_start_row+dms_CRCPlength_Num-1) | E47: Finds the CRCP final year
B48: PRCP_final_year | C48: =INDEX(INDIRECT(dms_RPT),dms_PRCP_start_row+dms_FRCPlength_Num-1) -> 2018-19 | D48: =INDEX(INDIRECT(dms_RPT),dms_PRCP_start_row+dms_FRCPlength_Num-1) | E48: Finds the PRCP final year
B49: dms_Reset_final_year | C49: =INDEX(INDIRECT(dms_RPT),dms_RYE_start_row) -> 2027-28 | D49: =INDEX(INDIRECT(dms_RPT),dms_RYE_start_row) | E49: For Resets and PTRM/RFMs (same as FRCP_final_year)
B50: dms_SpecifiedYear_final_year | C50: =FRY ->  | D50: =FRY | E50: FRY from cover sheet
B51: dms_DollarReal_year | C51: =LEFT(CRCP_final_year,2)&RIGHT(CRCP_final_year,2) -> 2023 | D51: =LEFT(CRCP_final_year,2)&RIGHT(CRCP_final_year,2) | E51: Uses the value in CRCP_final_year
B52: dms_Previous_DollarReal_year | C52: =LEFT(PRCP_final_year,2)&RIGHT(PRCP_final_year,2) -> 2019 | D52: =LEFT(PRCP_final_year,2)&RIGHT(PRCP_final_year,2) | E52: Uses the value in PRCP_final_year
B53: dms_CRY_RYE | C53: =IFERROR(LEFT(CRY,2)&RIGHT(CRY,2),0) -> 0 | D53: =IFERROR(LEFT(CRY,2)&RIGHT(CRY,2),0) | E53: For ABC single year RINS
B54: dms_Reset_RYE | C54: =IF(dms_Model_Span>1,IF(dms_Model="RFM",(LEFT(dms_DollarReal_year,2)&RIGHT(dms_DollarReal_year,2)),(LEFT(dms_Reset_final_year,2)&RIGHT(dms_Reset_final_year,2))),0) -> 2028 | D54: =IF(dms_Model_Span>1,IF(dms_Model="RFM",(LEFT(dms_DollarReal_year,2)&RIGHT(dms_DollarReal_year,2)),(LEFT(dms_Reset_final_year,2)&RIGHT(dms_Reset_final_year,2))),0) | E54: If model span > 1 then uses dms_Reset_RYE otherwise it's a multi year ABC and uses dms_Specified_RYE
B55: dms_Specified_RYE | C55: =IF(dms_MultiYear_ResponseFlag="Yes",(LEFT(dms_Specified_FinalYear,2)&RIGHT(dms_Specified_FinalYear,2)),0) -> 0 | D55: =IF(dms_MultiYear_ResponseFlag="Yes",(LEFT(dms_Specified_FinalYear,2)&RIGHT(dms_Specified_FinalYear,2)),0) | E55: If multi year ABC - uses dms_Specified_FinalYear
B56: dms_Model_Span | C56: =INDEX(dms_Model_Span_List,MATCH(dms_Model,dms_Model_List)) -> 5 | D56: =INDEX(dms_Model_Span_List,MATCH(dms_Model,dms_Model_List)) | E56: A result of 5 is used to signify that it is more than 1 year span
B57: dms_RYE_result | C57: =IF(dms_MultiYear_ResponseFlag="yes",dms_Specified_RYE,(IF(dms_Model_Span>1,dms_Reset_RYE,dms_CRY_RYE))) -> 2028 | D57: =IF(dms_MultiYear_ResponseFlag="yes",dms_Specified_RYE,(IF(dms_Model_Span>1,dms_Reset_RYE,dms_CRY_RYE))) | E57: Nested IF - feeds into dms_RYE
B58: dms_Reset_Span | C58: =IF(dms_Reset_RYE>0,CONCATENATE(FRCP_y1," to ",FRCP_final_year),0) -> 2023-24 to 2027-28 | D58: =IF(dms_Reset_RYE>0,CONCATENATE(FRCP_y1," to ",FRCP_final_year),0) | E58: Reset span of years as text
B59: dms_SpecifiedYear_Span | C59: =IF(dms_Specified_RYE>0,CONCATENATE(CRY," to ",dms_Specified_FinalYear),0) -> 0 | D59: =IF(dms_Specified_RYE>0,CONCATENATE(CRY," to ",dms_Specified_FinalYear),0) | E59: Multi year ABC span of years as text
B60: dms_Header_Span | C60: =IF(dms_MultiYear_Flag=1,dms_SpecifiedYear_Span,IF(dms_Model_Span>1,dms_y1&" to "&FRCP_final_year,CRY)) -> 2021-22 to 2027-28 | D60: =IF(dms_MultiYear_Flag=1,dms_SpecifiedYear_Span,IF(dms_Model_Span>1,dms_Reset_Span,CRY)) | E60: NESTED IF - for Sheet Headers
B61: ABC RINS THAT SPAN MULTIPLE YEARS
B62: This is a multi year ABC RIN? | C62: No
C63: =IF(dms_MultiYear_ResponseFlag="No",0,1) -> 0 | D63: dms_MultiYear_Flag | E63: This is set from the answer provided above
C64: =IF(dms_MultiYear_Flag=1,FRY,"not a Multiple year submission") -> not a Multiple year submission | D64: dms_Specified_FinalYear | E64: The result here is returned to dms_CRCP_FinalYear_Result if response to Q in C73 is "yes" and dms_MultiYear_Flag is set to 1
B65: Start year for 5.2 in Multi year ABC RINS | C65: =IFERROR(IF(dms_MultiYear_Flag=1,FRY,CRY),"not an ABC") -> not an ABC | D65: dms_0502_Inst_Year | E65: =IF(dms_MultiYear_Flag=1,FRY,CRY) | G65: For single year RINS this is CRY - multi year RINS need to start a the end of the span of years (ie. FRY)
B66: WHAT IS THE RYE?
B67: Reg Period Lengths
B68: PRCP length in years | C68: =INDEX(dms_PRCPlength_List,MATCH(dms_TradingName,dms_TradingName_List)) -> 4 | D68: dms_PRCPlength_Num | E68: =INDEX(dms_PRCPlength_List,MATCH(dms_TradingName,dms_TradingName_List))
B69: CRCP length in years | C69: =INDEX(dms_CRCPlength_List,MATCH(dms_TradingName,dms_TradingName_List)) -> 5 | D69: dms_CRCPlength_Num | E69: =INDEX(dms_CRCPlength_List,MATCH(dms_TradingName,dms_TradingName_List))
B70: FRCP length in years | C70: =INDEX(dms_FRCPlength_List,MATCH(dms_TradingName,dms_TradingName_List)) -> 5 | D70: dms_FRCPlength_Num | E70: =INDEX(dms_FRCPlength_List,MATCH(dms_TradingName,dms_TradingName_List))
B71: Single year RIN?
B72: Single Year ABC RIN ? | C72: =IF(dms_Model="EB",1,0) -> 0 | D72: dms_EB
C73: =IF(dms_Model="CA",1,0) -> 0 | D73: dms_CA | E73: =dms_SingleYear_Model
C74: =IF(dms_Model="ARR",1,0) -> 0 | D74: dms_ARR
B75: Is this a single Year ABC RIN? | C75: =IF(SUM(dms_SingleYear_Model)=1,"yes","no") -> no | D75: dms_SingleYearModel | E75: =IF(SUM(dms_SingleYear_Model)=1,"yes","no")
B76: Single Year Final Year Result | C76: =IF(AND(dms_SingleYearModel="yes",dms_MultiYear_Flag=0),CRY,0) -> 0 | D76: dms_SingleYear_FinalYear_Result | E76: =IFERROR(IF(SUM(dms_SingleYear_Model)<>0,(INDIRECT(dms_SingleYear_FinalYear_Ref)),"not a single year RIN"),"CRY not present")
B77: Multi year RIN?
B79: Multi Year Reset/Model? | C79: =IF(dms_Model_Span>1,"yes","no") -> yes
B80: Final year result for Reset/Model | C80: =IF(dms_Model_Span>1,dms_Reset_final_year,0) -> 2027-28 | D80: dms_MultiYear_FinalYear_Result | E80: dms_CRCP_FinalYear_Result
B82: Multi Year ABC RIN? | C82: =IF(dms_MultiYear_Flag=1,"yes","no") -> no | D82: dms_MultiYear_ABC_RIN
B83: Final year result for ABC multi year | C83: =IF(dms_MultiYear_Flag=1,C50,0) -> 0
B85: EB RINS
B86: Calendar Year for table 3.6 data | C86: =IFERROR(IF(dms_Segment="Transmission",dms_Cal_Year_B4_CRY,CRY),"CRY not present") -> CRY not present | D86: dms_0306_Year | E86: =IF(dms_Segment="Transmission",dms_Cal_Year_B4_CRY,CRY)
B87: CA RINS
B88: Find how many rows in tables 6.3 sustained interruptions? | E88: dms_060301_MaxRows only returns a valid value when cover sheet is attached to a CA file
C89: =IF(dms_Model<>"CA","not a CA","Is a CA") -> not a CA | E89: =IF(dms_Model<>"CA","not a CA","Is a CA")
B90: dms_060301_Avg_Duration_Sustained_Int_Values present? | C90: =IFERROR(IF(INDEX(dms_060301_Avg_Duration_Sustained_Int_Values,1,1)<>"","yes","no"),"no") -> no | D90: dms_060301_checkvalue | E90: =IFERROR(IF(INDEX(dms_060301_Avg_Duration_Sustained_Int_Values,1,1)<>"","yes","no"),"no")
C91: =IF(AND(dms_Model="CA",(dms_060301_checkvalue="no")),"error - NR not present","no errors") -> no errors | E91: =IF(AND(dms_Model="CA",(dms_060301_checkvalue="no")),"error - NR not present","no errors")
B92: Table 6.3.1 - last row reference | C92: =IFERROR(IF(dms_Model="CA",LOOKUP(2,1/(dms_060301_Avg_Duration_Sustained_Int_Values<>""),(ROW(dms_060301_Avg_Duration_Sustained_Int_Values))),"not a CA"),"6.3 not present") -> not a CA | D92: dms_060301_LastRow | E92: =IFERROR(IF(dms_Model="CA",LOOKUP(2,1/(dms_060301_Avg_Duration_Sustained_Int_Values<>""),(ROW(dms_060301_Avg_Duration_Sustained_Int_Values))),"not a CA"),"6.3 not present")
B93: Table 6.3.1 - max number rows | C93: =IFERROR(IF(dms_Model="CA",(dms_060301_LastRow-15),"not a CA"),"error") -> not a CA | D93: dms_060301_MaxRows | E93: =IFERROR(IF(dms_Model="CA",(dms_060301_LastRow-15),"not a CA"),"error")
B94: Table 6.6.3 - Public lighting repair - no. business days | C94: =INDEX(dms_663_List,MATCH(dms_TradingName,dms_TradingName_List)) -> 5 | D94: dms_663 | E94: =INDEX(dms_663_List,MATCH(dms_TradingName,dms_TradingName_List))
B95: ARR or RESET RINS
B96: How many rows in tables 6.1 or 6.7? (leap year?) | C96: insert dms_LeapYear NR if required | E96: 'dms_LeapYear is used to determine dms_060701_Max_Rows BUT it is only found on worksheet 6.1 or 6.7 and the date value in the cell is used to determine whether it is a leap year
B97: Is dms_LeapYear named range present? | C97: =IFERROR(IF(dms_LeapYear,"yes"),"no") -> no
B98: Table 6.7.1 - includes a leap year? | C98: =IFERROR(IF(MONTH(DATE(YEAR(dms_LeapYear),2,29))=2,"is a leap year","not a leap year"), "dms_LeapYear not present") -> dms_LeapYear not present | D98: dms_LeapYear_Result | E98: =IFERROR(IF(MONTH(DATE(YEAR(dms_LeapYear),2,29))=2,"is a leap year","not a leap year"),"dms_LeapYear not present")
B99: MaxRows if Reset and leap year | C99: =IF(dms_LeapYear_Result="is a leap year",1827,1826) -> 1826 | D99: dms_060701_Reset_MaxRows | E99: =IF(dms_LeapYear_Result="is a leap year",1827,1826) | H99: number of days present in Reset RIN table
B100: MaxRows if ARR and leap year | C100: =IF(dms_LeapYear_Result="is a leap year",366,365) -> 365 | D100: dms_060701_ARR_MaxRows | E100: =IF(dms_LeapYear_Result="is a leap year",366,365) | H100: number of days present in ARR RIN table
B101: Table 6.7.1 - Max Rows (leap year/ non leap year) | C101: =IF(dms_Model="ARR",dms_060701_ARR_MaxRows,IF(dms_Model="Reset",dms_060701_Reset_MaxRows,"not a relevant RIN type")) -> 1826 | D101: dms_060701_MaxRows | E101: =IF(dms_Model="ARR",dms_060701_ARR_MaxRows,IF(dms_Model="Reset",dms_060701_Reset_MaxRows,"not a relevant RIN type"))
B102: How many columns in 6.7? (4 or 5 feeder categories) | C102: =IF(dms_FifthFeeder_flag_NSP="NO","This NSP has only 4 feeder categories","This NSP has 5 feeder categories") -> This NSP has only 4 feeder categories
B103: Table 6.7.1 - Last column (# of feeder categories > 4) | C103: =IF(dms_FifthFeeder_flag_NSP="NO",10,12) -> 10 | D103: dms_060701_MaxCols | E103: =IF(dms_FifthFeeder_flag_NSP="NO",8,10)
B104: Table 6.7.1 - Number of offset rows | C104: =IF(dms_Model="ARR",15,9) -> 9 | D104: dms_060701_OffsetRows | E104: =IF(dms_Model="ARR",15,9)
B105: Start date for telephone answering in 6.1 or 6.7? | E105: Using 060101 as naming standard not 060701 for start dates
B106: Table 6.1.1 and 6.7.1 - Start Date as Text | C106: =IF(dms_SingleYearModel="yes",(CONCATENATE(IF(LEN(CRY)=4,"1-Jan-","1-Jul-"),LEFT(CRY,4))),(CONCATENATE(IF(LEN(PRCP_y4)=4,"1-Jan-","1-Jul-"),LEFT(PRCP_y4,4)))) -> 1-Jul-2017 | D106: dms_060101_StartDateTxt | E106: =IF(SUM(dms_SingleYear_Model)>1,(CONCATENATE(IF(LEN(CRY)=4,"1-Jan-","1-Jul-"),LEFT(CRY,4))),(CONCATENATE(IF(LEN(CRCP_y4)=4,"1-Jan-","1-Jul-"),LEFT(CRCP_y4,4))))
B107: Table 6.1.1 and 6.7.1 - Start Date as Date Value | C107: =DATEVALUE(dms_060701_StartDateTxt) -> 42917 | D107: dms_060101_StartDateVal | E107: =DATEVALUE(dms_060701_StartDateTxt)
B108: ARRs
B109: How many rows in table 6.8? | C109: insert dms_060801_StartCell NR if required | E109: dms_060801_StartCell is only found on worksheet 6.8 and is used to determine the starting date for the date range
B110: Is dms_060801_StartCell named range present? | C110: yes | E110: =IFERROR(IF((ROW(dms_060801_StartCell)-1)=1,"yes","yes"),"no")
B111: Table 6.8 - Number of offset rows | C111: 12 | D111: dms_0608_OffsetRows | E111: =IFERROR(IF(dms_Model="ARR",(ROW(dms_060801_StartCell)-1),"not an ARR"),"6.8 error")
B112: Table 6.8 - Last row | C112: 0 | D112: dms_0608_LastRow | E112: =IFERROR(IF(dms_060801_StartCell<>"",IF(dms_Model="ARR",(LOOKUP(2,1/(dms_060801_01_Values<>""),(ROW(dms_060801_01_Values)))),"not an ARR"),0),"0")
B113: Table 6.8 - MaxRows | C113: =IFERROR(IF(dms_Model="ARR",(MAX(0,dms_0608_LastRow-dms_0608_OffsetRows)),"not an ARR"),"0") -> not an ARR | D113: dms_060801_MaxRows | E113: =IFERROR(IF(dms_Model="ARR",(MAX(0,dms_0608_LastRow-dms_0608_OffsetRows)),"not an ARR"),"0")
B114: TNSP RESET RINS
B115: Table 7.9.4 only appears in TNSPs Reset RIN
B116: Table 7.9.4 - first year | C116: =LEFT(PRCP_y3,4) -> 2016 | D116: dms_070904_Start_Year | E116: =LEFT(PRCP_y3,4)
B118: MISC
B119: Distribution Determination Reference | C119: =INDEX(dms_DeterminationRef_List,MATCH(dms_TradingName,dms_TradingName_List)) -> transmission determination | D119: dms_DeterminationRef
B120: Public lighting NSP? | C120: =INDEX(dms_Public_Lighting_List,MATCH(dms_TradingName,dms_TradingName_List)) -> 0 | D120: dms_Public_Lighting | E120: =INDEX(dms_Public_Lighting_List,MATCH(dms_TradingName,dms_TradingName_List))
B121: CBD Feeder for this business | C121: =INDEX(dms_CBD_flag,MATCH(dms_TradingName,dms_TradingName_List)) -> NO | D121: dms_CBD_flag_NSP
B122: Urban Feeder for this business | C122: =INDEX(dms_Urban_flag,MATCH(dms_TradingName,dms_TradingName_List)) -> NO | D122: dms_Urban_flag_NSP
B123: Short rural Feeder for this business | C123: =INDEX(dms_ShortRural_flag,MATCH(dms_TradingName,dms_TradingName_List)) -> NO | D123: dms_ShortRural_flag_NSP
B124: Long rural Feeder for this business | C124: =INDEX(dms_LongRural_flag,MATCH(dms_TradingName,dms_TradingName_List)) -> NO | D124: dms_LongRural_flag_NSP
B125: Fifth Feeder Category (eg. TasNetworks (D)) | C125: =INDEX(dms_FeederType_5_flag,MATCH(dms_TradingName,dms_TradingName_List)) -> NO | D125: dms_FifthFeeder_flag_NSP | E125: =INDEX(dms_FeederType_5_flag,MATCH(dms_TradingName,dms_TradingName_List))
B127: DISCARD FILES
B128: discard this record? | C128: NO | D128: dms_DISCARD | E128: If record is to be discarded from DB set this flag to YES
B130: SUBSET FILES
B131: Is this Submission File a Subset File | C131: NO | D131: dms_Partial
B134: REGULATORY YEARS FOR MULTI RYE SUBMISSIONS
B135: Multiple RYE flag | C135: NO | D135: dms_Multi_RYE_flag
C136: Manually specify RYE | D136: Named ranges to apply
C137: 2013 | D137: dms_RYE_01
C138: 2014 | D138: dms_RYE_02
C139: 2015 | D139: dms_RYE_03
C140: 2016 | D140: dms_RYE_04
C141: 2017 | D141: dms_RYE_05
C142: 2018 | D142: dms_RYE_06
C143: 2019 | D143: dms_RYE_07
C144: 2020 | D144: dms_RYE_08
C145: 2021 | D145: dms_RYE_09

Sheet Instructions
B2: =CONCATENATE(dms_Sector," ",dms_Segment," ", "Network Service Provider") -> Electricity Transmission Network Service Provider
B3: =IF(dms_Model="Reset","Regulatory Proposal RIN Template","Annual Reporting RIN") -> Regulatory Proposal RIN Template
B4: =CONCATENATE("This template is to be used by ",dms_TradingNameFull," to fulfil its reporting obligations to the AER.") -> This template is to be used by NSW Electricity Networks Operations Pty Ltd trading as TransGrid to fulfil its reporting obligations to the AER.
B5: INSTRUCTIONS
B6: GENERAL | C6: Complete the Business & other details worksheet before entering data or values in any other worksheets. The Business & other details worksheet is linked to other worksheets within the workbook and automatically generates certain column headings and conditional formatting.
B8: CONFIDENTIAL INFORMATION | C8: Please use the macro at the top of each worksheet to identify confidential information in the confidential workbook.
C9: -Do this by selecting the cell or cells that contain confidential information and then run the Mark selection as CONFIDENTIAL macro. This will format the cells a specific colour that is identified by the AER's database which in turn marks that information as confidential. -To reverse this, select the cell or cells and run the Return selection to NON-CONFIDENTIAL macro.
B11: AMENDMENTS | C11: If an NSP wishes to correct data previously submitted to the AER it should resubmit that data using the original completed submission as the starting point. Please make any necessary changes to the data. Data that is not being amended should be left unchanged. NSPs must identify the reason for the amendments in the Amendment Reason box on the Business and other details worksheet. NSPs may provide further details regarding any amendments in the Amendments worksheet. .
C12: NSP may use Amended Data macro to highlight cells that contain amended data. NB: if data is also CONFIDENTIAL, re-apply the Confidentiality macro after applying the Amended macro
C13: Please resubmit two (2) files - a confidential version and a public version of the amended submission to the AER
B15: UNITS OF MEASURE | C15: All amounts are to be unrounded and reported on a one for one basis: that is 1000 is to be entered as '1000'. Applicable units of measure may be identified in the table column headings or row descriptors.
B17: INPUT / NON-INPUT CELLS
D18: Yellow = Input cell (mandatory)
D19: Darker yellow = input cell (mandatory)
D20: Orange = input cell (if data available)
D21: Grey = Not applicable/No inputs required
D22: PLEASE DO NOT ENTER TEXT into cells that are to contain numeric data.
B25: NAVIGATION | C25: Many tables in the worksheets have been "grouped" to allow for easy navigation. To ungroup or group data use the outline symbols in the left margin (for Row groupings) or above the columns (for column groupings).

Sheet CONTENTS
D1: =INDEX(dms_Worksheet_List,MATCH(dms_Model,dms_Model_List)) -> REGULATORY REPORTING STATEMENT
D2: =INDEX(dms_TradingNameFull_List,MATCH(dms_TradingName,dms_TradingName_List)) -> NSW Electricity Networks Operations Pty Ltd trading as TransGrid
E5: CONTENTS
E7: TEMPLATE DATE | F7: SEPTEMBER 2021
E9: SUBMISSION | F9: Business & other details
F10: CPI series
E12: EXPENDITURE | F12: 2.1 Expenditure summary
F13: 2.2 Repex
F14: 2.3 Augex (a)
F15: 2.3 Augex (b)
F16: 2.5 Connections
F17: 2.6 Non-network
F18: 2.10 Overheads
F19: 2.11 Labour
F20: 2.14 Forecast price changes
F21: 2.16 Opex Summary
F22: 2.17 Step Changes
E24: ECONOMIC BENCHMARKING | F24: 3.1 Revenue
F25: 3.2 Operating expenditure
F26: 3.3 Assets (RAB)
F27: 3.4 Operational data
F28: 3.5 Physical assets
F29: 3.7 Operating environment
E31: NETWORK | F31: 5.4 MD & Utilisation - Spatial
E33: OTHER | F33: 7.1 Policies and Procedures
F34: 7.2 Contingent projects
F35: 7.3 Obligations
F36: 7.4 Shared Assets
F37: 7.9 STPIS
E39: CAPEX | F39: 8.2 Capex

Sheet Business & other details
V1: =INDEX(dms_Worksheet_List,MATCH(dms_Model,dms_Model_List)) -> REGULATORY REPORTING STATEMENT
V2: =INDEX(dms_TradingNameFull_List,MATCH(dms_TradingName,dms_TradingName_List)) -> NSW Electricity Networks Operations Pty Ltd trading as TransGrid
V3: =CONCATENATE( "DATA SPAN ", dms_Header_Span) -> DATA SPAN 2021-22 to 2027-28
V4: BUSINESS & OTHER DETAILS
V6: INSTRUCTIONS
V7: Complete the following business details regulatory template before entering data or values in any other regulatory template. This regulatory template is linked to other cells within the spreadsheet and automatically generates column headings and conditional formatting to distinguish business specific input and non-input cells.
Q9: SUBMISSION PARTICULARS INPUT SHEET
V12: ENTITY DETAILS
V14: Business Name
V16: Short name | AL16: TransGrid
V17: ACN/ABN | AL17: =INDEX(dms_ABN_List,MATCH(dms_TradingName,dms_TradingName_List)) -> 70 250 995 390
V21: Business Address | BQ21: Postal Address
V23: Address 1 | AL23: =INDEX(dms_Addr1_List,MATCH(dms_TradingName,dms_TradingName_List)) -> 180 Thomas Street | BI23: Address 1 | BQ23: =INDEX(dms_PAddr1_List,MATCH(dms_TradingName,dms_TradingName_List)) -> PO Box A1000
V24: Address 2 | AL24: =IF(ISBLANK(INDEX(dms_Addr2_List,MATCH(dms_TradingName,dms_TradingName_List))),"",(INDEX(dms_Addr2_List,MATCH(dms_TradingName,dms_TradingName_List)))) ->  | BI24: Address 2 | BQ24: =IF(ISBLANK(INDEX(dms_PAddr2_List,MATCH(dms_TradingName,dms_TradingName_List))),"",(INDEX(dms_PAddr2_List,MATCH(dms_TradingName,dms_TradingName_List)))) -> 
V25: Suburb | AL25: =INDEX(dms_Suburb_List,MATCH(dms_TradingName,dms_TradingName_List)) -> SYDNEY | BI25: Suburb | BQ25: =INDEX(dms_PSuburb_List,MATCH(dms_TradingName,dms_TradingName_List)) -> SYDNEY SOUTH
V26: State | AL26: =INDEX(dms_State_List,MATCH(dms_TradingName,dms_TradingName_List)) -> NSW | AV26: Post code | AX26: 2000 | BI26: State | BQ26: =INDEX(dms_PState_List,MATCH(dms_TradingName,dms_TradingName_List)) -> NSW | CA26: Post code | CC26: 1235
BA28: `
V30: Contact Names
V32: Name | BI32: Name
V33: Phone | BI33: Phone
V34: Email | BI34: Email
Q39: REGULATORY CONTROL PERIODS
Z42: Forthcoming period | AL42: 2023-24 | AU42: =FRCP_y2 -> 2024-25 | BD42: =FRCP_y3 -> 2025-26 | BM42: =FRCP_y4 -> 2026-27 | BV42: =FRCP_y5 -> 2027-28
AL43: =FRCP_y6 -> 2028-29 | AU43: =FRCP_y7 -> 2029-30 | BD43: =FRCP_y8 -> 2030-31 | BM43: =FRCP_y9 -> 2031-32 | BV43: =FRCP_y10 -> 2032-33
AL44: =FRCP_y11 -> 2033-34 | AU44: =FRCP_y12 -> 2034-35 | BD44: =FRCP_y13 -> 2035-36 | BM44: =FRCP_y14 -> 2036-37 | BV44: =FRCP_y15 -> 
X46: RESETS | Z46: Current period | AL46: =CRCP_y1 -> 2018-19 | AU46: =CRCP_y2 -> 2019-20 | BD46: =CRCP_y3 -> 2020-21 | BM46: =CRCP_y4 -> 2021-22 | BV46: =CRCP_y5 -> 2022-23
AL47: =CRCP_y6 -> 2023-24 | AU47: =CRCP_y7 -> 2024-25 | BD47: =CRCP_y8 -> 2025-26 | BM47: =CRCP_y9 -> 2026-27 | BV47: =CRCP_y10 -> 2027-28
AL48: =CRCP_y11 -> 2028-29 | AU48: =CRCP_y12 -> 2029-30 | BD48: =CRCP_y13 -> 2030-31 | BM48: =CRCP_y14 -> 2031-32 | BV48: =CRCP_y15 -> 2032-33
Z50: Previous period | AL50: =PRCP_y1 -> 2014-15 | AU50: =PRCP_y2 -> 2015-16 | BD50: =PRCP_y3 -> 2016-17 | BM50: =PRCP_y4 -> 2017-18 | BV50: =PRCP_y5 -> 2018-19
AL51: =PRCP_y6 -> 2019-20 | AU51: =PRCP_y7 -> 2020-21 | BD51: =PRCP_y8 -> 2021-22 | BM51: =PRCP_y9 -> 2022-23 | BV51: =PRCP_y10 -> 2023-24
AL52: =PRCP_y11 -> 2024-25 | AU52: =PRCP_y12 -> 2025-26 | BD52: =PRCP_y13 -> 2026-27 | BM52: =PRCP_y14 -> 2027-28 | BV52: =PRCP_y15 -> 2028-29
Z54: Commencing year | AL54: 2021-22
X55: ANNUAL RINS
Z56: Final year | AL56: 2027-28
Q60: SUBMISSION DETAILS
Z62: RIN type | AL62: =INDIRECT(dms_Model) -> Regulatory Reporting (Reset)
Z64: Source | AL64: Regulatory proposal
X66: THIS FILE | Z66: Data Quality | AL66: Consolidated
Z68: Confidentiality Status | AL68: Public
Z70: Amended RIN Amendment Reason | AL70: .
Z74: Submission Date | AL74: 2022-01-31 | BD74: Please enter date this file submitted to AER

Sheet CPI series
B1: =(LOOKUP(dms_Model,dms_Model_List,dms_Worksheet_List)) -> REGULATORY REPORTING STATEMENT
B2: =INDEX(dms_TradingNameFull_List,MATCH(dms_TradingName,dms_TradingName_List)) -> NSW Electricity Networks Operations Pty Ltd trading as TransGrid
B3: =IF(SUM(dms_SingleYear_Model)>0,CRY,CONCATENATE(FRCP_y1," to ",dms_MultiYear_FinalYear_Result)) -> 2023-24 to 2027-28
B4: CPI SERIES
B7: NOMINATED CPI SERIES
B9: Name of CPI series | C9: Actual / Forecast Inflation (%): End of Period, June to Jun, Unlagged
C11: =CRCP_y1 -> 2018-19 | D11: =CRCP_y2 -> 2019-20 | E11: =CRCP_y3 -> 2020-21 | F11: =CRCP_y4 -> 2021-22 | G11: =CRCP_y5 -> 2022-23 | H11: =FRCP_y1 -> 2023-24 | I11: =FRCP_y2 -> 2024-25 | J11: =FRCP_y3 -> 2025-26 | K11: =FRCP_y4 -> 2026-27 | L11: =FRCP_y5 -> 2027-28
B12: Series data | C12: 0.01592920354 | D12: -0.003484320557 | E12: 0.03846153846 | F12: 0.0275 | G12: 0.0225 | H12: 0.02349953873 | I12: 0.02349953873 | J12: 0.02349953873 | K12: 0.02349953873 | L12: 0.02349953873

Sheet 2.1 Expenditure summary
B1: =(LOOKUP(dms_Model,dms_Model_List,dms_Worksheet_List)) -> REGULATORY REPORTING STATEMENT
B2: =INDEX(dms_TradingNameFull_List,MATCH(dms_TradingName,dms_TradingName_List)) -> NSW Electricity Networks Operations Pty Ltd trading as TransGrid
B3: =IF(SUM(dms_SingleYear_Model)>0,CRY,CONCATENATE(FRCP_y1," to ",dms_MultiYear_FinalYear_Result)) -> 2023-24 to 2027-28
B4: 2.1 - EXPENDITURE SUMMARY AND RECONCILIATION
B6: There are three tables on this worksheet. Each has been grouped for ease of navigation. See the Instructions sheet on how to group or ungroup tables.
B8: 2.1.1 - PRESCRIBED TRANSMISSION SERVICES CAPEX (as incurred)
C9: =CONCATENATE("Forecast ($0's. real ",dms_DollarReal,")") -> Forecast ($0's. real June 2023)
C10: =dms_y1 -> 2021-22 | D10: =dms_y2 -> 2022-23 | E10: =dms_y3 -> 2023-24 | F10: =dms_y4 -> 2024-25 | G10: =dms_y5 -> 2025-26 | H10: =dms_y6 -> 2026-27 | I10: =dms_y7 -> 2027-28
B11: Replacement expenditure | C11: 147994584 | D11: 151836219.5 | E11: 136571930.2 | F11: 169539788.6 | G11: 174483396.3 | H11: 155989451.5 | I11: 161000367.5
B12: Connections | C12: 9177953.351 | D12: 1299247.582 | E12: 0 | F12: 0 | G12: 0 | H12: 577330.7571 | I12: 2275959.823
B13: Augmentation Expenditure | C13: 529095147 | D13: 755795942.1 | E13: 500996894.8 | F13: 138267854.1 | G13: 37523478.9 | H13: 33415648.64 | I13: 66959394.18
B14: Non-network | C14: 21636953.05 | D14: 9076668.53 | E14: 40736989.15 | F14: 34796822.26 | G14: 31805017.01 | H14: 27698777.42 | I14: 23284179.06
B15: Capitalised network overheads | C15: 34906397.07 | D15: 27168399.43 | E15: 29767721.65 | F15: 29253933 | G15: 27569617.98 | H15: 27222779.88 | I15: 28163930.54
B16: Capitalised corporate overheads | C16: 8461294.903 | D16: 6585607.765 | E16: 5176465.723 | F16: 4858070.692 | G16: 4474834.364 | H16: 4412572.695 | I16: 4539133.506
B17: Total | C17: =SUM(C11:C16) -> 751272329.4 | D17: 951762084.9 | E17: 713250001.5 | F17: 376716468.7 | G17: 275856344.6 | H17: 249316560.8 | I17: 286222964.6
B19: 2.1.2 - PRESCRIBED TRANSMISSION SERVICES OPEX
C20: =CONCATENATE("Forecast ($0's. real ",dms_DollarReal,")") -> Forecast ($0's. real June 2023)
C21: =dms_y1 -> 2021-22 | D21: =dms_y2 -> 2022-23 | E21: =dms_y3 -> 2023-24 | F21: =dms_y4 -> 2024-25 | G21: =dms_y5 -> 2025-26 | H21: =dms_y6 -> 2026-27 | I21: =dms_y7 -> 2027-28
B22: Vegetation management
B23: Maintenance
B24: Non-network
B25: Network overheads
B26: Corporate overheads
B27: Total | C27: =SUM(C22:C26) -> 0 | D27: 0 | E27: 0 | F27: 0 | G27: 0 | H27: 0 | I27: 0
B30: 2.1.8 - PRESCRIBED TRANSMISSION SERVICES CAPITALISED OVERHEADS
C31: =CONCATENATE("Forecast ($0's. real ",dms_DollarReal,")") -> Forecast ($0's. real June 2023)
C32: =dms_y1 -> 2021-22 | D32: =dms_y2 -> 2022-23 | E32: =dms_y3 -> 2023-24 | F32: =dms_y4 -> 2024-25 | G32: =dms_y5 -> 2025-26 | H32: =dms_y6 -> 2026-27 | I32: =dms_y7 -> 2027-28
B33: Replacement expenditure | C33: 29365310.62 | D33: 24149535.13 | E33: 21696527.62 | F33: 23095225.8 | G33: 25892426.1 | H33: 25513921.85 | I33: 22577234.31
B34: Connections | C34: 549839.506 | D34: 110841.4916 | E34: 0 | F34: 0 | G34: 0 | H34: 94429.28146 | I34: 319160.0057
B35: Augmentation Expenditure | C35: 12709529.84 | D35: 9493630.567 | E35: 12481852.88 | F35: 10429664.97 | G35: 5568288.587 | H35: 5465525.007 | I35: 9389779.385
B36: Non-network | C36: 743012.0086 | D36: 0 | E36: 765806.8793 | F36: 587112.9283 | G36: 583737.6584 | H36: 561476.4357 | I36: 416890.3391
B37: Total | C37: =SUM(C33:C36) -> 43367691.98 | D37: 33754007.19 | E37: 34944187.38 | F37: 34112003.69 | G37: 32044452.34 | H37: 31635352.57 | I37: 32703064.04

Sheet 2.2 Repex
B1: =(LOOKUP(dms_Model,dms_Model_List,dms_Worksheet_List)) -> REGULATORY REPORTING STATEMENT
B2: =INDEX(dms_TradingNameFull_List,MATCH(dms_TradingName,dms_TradingName_List)) -> NSW Electricity Networks Operations Pty Ltd trading as TransGrid
B3: =IF(SUM(dms_SingleYear_Model)>0,CRY,CONCATENATE(FRCP_y1," to ",dms_MultiYear_FinalYear_Result)) -> 2023-24 to 2027-28
B4: 2.2 REPEX
B6: There is ONE table (with three sub-tables) on this worksheet. See the Instructions sheet on how to group or ungroup tables.
B8: 2.2.1 - REPLACEMENT EXPENDITURE, VOLUMES AND ASSET FAILURES BY ASSET CATEGORY
B9: EXPENDITURE
D10: EXPENDITURE
D11: =CONCATENATE("($0's. real ",dms_DollarReal,")") -> ($0's. real June 2023)
B12: ASSET GROUP | D12: =dms_y1 -> 2021-22 | E12: =dms_y2 -> 2022-23 | F12: =dms_y3 -> 2023-24 | G12: =dms_y4 -> 2024-25 | H12: =dms_y5 -> 2025-26 | I12: =dms_y6 -> 2026-27 | J12: =dms_y7 -> 2027-28
B13: TRANSMISSION TOWERS | C13: Total | D13: 56420646.24 | E13: 43711357.14 | F13: 7839597.274 | G13: 28559060.38 | H13: 22808492.84 | I13: 6833385.746 | J13: 23657635.78
B14: TRANSMISSION TOWER SUPPORT STRUCTURES | C14: Total | D14: 26542199.48 | E14: 17997909.36 | F14: 6331079.703 | G14: 14641528.87 | H14: 19773622.35 | I14: 14923759.12 | J14: 21393993.87
B15: CONDUCTORS | C15: Total | D15: 3422554.355 | E15: 17879370.51 | F15: 3208503.022 | G15: 9409412.185 | H15: 7822135.392 | I15: 11493863.7 | J15: 12480030.31
B16: TRANSMISSION CABLES | C16: Total | D16: 236871.9186 | E16: 0 | F16: 0 | G16: 0 | H16: 0 | I16: 0 | J16: 0
B17: SUBSTATION SWITCHBAYS | C17: Total | D17: 33553022.44 | E17: 30705106.2 | F17: 6891833.114 | G17: 7872922.684 | H17: 10314659.63 | I17: 22652983.94 | J17: 23768621.91
B18: SUBSTATION POWER TRANSFORMERS | C18: Total | D18: 13599002.01 | E18: 6653391.605 | F18: 0 | G18: 5635408.248 | H18: 13522418.7 | I18: 10898449.38 | J18: 10530897.54
B19: SUBSTATION REACTIVE PLANT | C19: Total | D19: 30636.64314 | E19: 4471777.49 | F19: 904711.2124 | G19: 0 | H19: 1122476.087 | I19: 1127023.352 | J19: 2085262.314
B20: SCADA, NETWORK CONTROL AND PROTECTION SYSTEMS | C20: Total | D20: 62669805.91 | E20: 84189903.26 | F20: 8748260.907 | G20: 21256376.87 | H20: 44650831.53 | I20: 45375144.05 | J20: 88621964.52
B21: OTHER | C21: Total | D21: 19955317.72 | E21: 28722150.76 | F21: 32735384.95 | G21: 48452359.53 | H21: 38541139.51 | I21: 39107761.94 | J21: 44638770.51
B24: ASSET REPLACEMENTS
D25: VOLUMES
D26: (0's)
B27: ASSET GROUP | D27: =dms_y1 -> 2021-22 | E27: =dms_y2 -> 2022-23 | F27: =dms_y3 -> 2023-24 | G27: =dms_y4 -> 2024-25 | H27: =dms_y5 -> 2025-26 | I27: =dms_y6 -> 2026-27 | J27: =dms_y7 -> 2027-28
B28: TRANSMISSION TOWERS | C28: Total | D28: 540 | E28: 622 | F28: 100 | G28: 279 | H28: 87 | I28: 28 | J28: 220
B29: TRANSMISSION TOWER SUPPORT STRUCTURES | C29: Total | D29: 528 | E29: 579 | F29: 131 | G29: 333 | H29: 527 | I29: 265 | J29: 490
B30: CONDUCTORS | C30: Total | D30: 17 | E30: 151.9 | F30: 34 | G30: 98 | H30: 60.75 | I30: 35.42 | J30: 68.7
B31: TRANSMISSION CABLES | C31: Total | D31: 0 | E31: 0 | F31: 0 | G31: 0 | H31: 0 | I31: 0 | J31: 0
B32: SUBSTATION SWITCHBAYS | C32: Total | D32: 106 | E32: 223 | F32: 69.5 | G32: 76.45 | H32: 97.3 | I32: 225 | J32: 229
B33: SUBSTATION POWER TRANSFORMERS | C33: Total | D33: 2 | E33: 2 | F33: 0 | G33: 2 | H33: 3 | I33: 2 | J33: 3
B34: SUBSTATION REACTIVE PLANT | C34: Total | D34: 0 | E34: 1 | F34: 1 | G34: 0 | H34: 1 | I34: 1 | J34: 2
B35: SCADA, NETWORK CONTROL AND PROTECTION SYSTEMS | C35: Total | D35: 282 | E35: 912 | F35: 97 | G35: 227 | H35: 304 | I35: 368 | J35: 663
B36: OTHER | C36: Total | D36: 30 | E36: 49 | F36: 1303 | G36: 1169 | H36: 915 | I36: 931 | J36: 554
B39: ASSET FAILURES
D40: VOLUMES
D41: (0's)
B42: ASSET GROUP | D42: =dms_y1 -> 2021-22 | E42: =dms_y2 -> 2022-23 | F42: =dms_y3 -> 2023-24 | G42: =dms_y4 -> 2024-25 | H42: =dms_y5 -> 2025-26 | I42: =dms_y6 -> 2026-27 | J42: =dms_y7 -> 2027-28
B43: TRANSMISSION TOWERS | C43: Total
B44: TRANSMISSION TOWER SUPPORT STRUCTURES | C44: Total
B45: CONDUCTORS | C45: Total
B46: TRANSMISSION CABLES | C46: Total
B47: SUBSTATION SWITCHBAYS | C47: Total
B48: SUBSTATION POWER TRANSFORMERS | C48: Total
B49: SUBSTATION REACTIVE PLANT | C49: Total
B50: SCADA, NETWORK CONTROL AND PROTECTION SYSTEMS | C50: Total
B51: OTHER | C51: Total
B55: 2.2.1(a) - REPLACEMENT EXPENDITURE - as incurred
B56: EXPENDITURE
D57: EXPENDITURE
D58: =CONCATENATE("($0's. real ",dms_DollarReal,")") -> ($0's. real June 2023)
B59: ASSET GROUP | D59: =dms_y1 -> 2021-22 | E59: =dms_y2 -> 2022-23 | F59: =dms_y3 -> 2023-24 | G59: =dms_y4 -> 2024-25 | H59: =dms_y5 -> 2025-26 | I59: =dms_y6 -> 2026-27 | J59: =dms_y7 -> 2027-28
B60: TRANSMISSION TOWERS | C60: Total | D60: 33238452.79 | E60: 23758492.13 | F60: 16199925.62 | G60: 22528125.73 | H60: 27081028.37 | I60: 20601364.45 | J60: 47060139.25
B61: TRANSMISSION TOWER SUPPORT STRUCTURES | C61: Total | D61: 12657275.99 | E61: 15323935.99 | F61: 10183296.79 | G61: 13004989.89 | H61: 29089622.71 | I61: 12429030.83 | J61: 13559290.41
B62: CONDUCTORS | C62: Total | D62: 3235960.824 | E62: 16993189.14 | F62: 7633076.516 | G62: 6111268.933 | H62: 18128552.8 | I62: 9861062.319 | J62: 14638160.78
B63: TRANSMISSION CABLES | C63: Total | D63: 226455.9526 | E63: 0 | F63: 0 | G63: 0 | H63: 0 | I63: 0 | J63: 0
B64: SUBSTATION SWITCHBAYS | C64: Total | D64: 25152843.77 | E64: 19577973.63 | F64: 15664346.31 | G64: 14513788.35 | H64: 8028015.843 | I64: 16415083.35 | J64: 16867309.11
B65: SUBSTATION POWER TRANSFORMERS | C65: Total | D65: 3964540.355 | E65: 2552456.765 | F65: 1965090.492 | G65: 7884498.567 | H65: 15393356.47 | I65: 10400712.31 | J65: 4951359.283
B66: SUBSTATION REACTIVE PLANT | C66: Total | D66: 3043260.776 | E66: 1092072.221 | F66: 1009728.677 | G66: 215578.4974 | H66: 1145707.4 | I66: 1377550.893 | J66: 1491947.958
B67: SCADA, NETWORK CONTROL AND PROTECTION SYSTEMS | C67: Total | D67: 47551568.78 | E67: 44715917.76 | F67: 36727324.44 | G67: 58778836.37 | H67: 38951614.1 | I67: 46611536.07 | J67: 27485646.62
B68: OTHER | C68: Total | D68: 18924225.06 | E68: 27822181.91 | F68: 47189141.36 | G68: 46502702.25 | H68: 36665498.64 | I68: 38293111.23 | J68: 34946514.1

Sheet 2.3 Augex (a)
B1: =(LOOKUP(dms_Model,dms_Model_List,dms_Worksheet_List)) -> REGULATORY REPORTING STATEMENT
B2: =INDEX(dms_TradingNameFull_List,MATCH(dms_TradingName,dms_TradingName_List)) -> NSW Electricity Networks Operations Pty Ltd trading as TransGrid
B3: =IF(SUM(dms_SingleYear_Model)>0,CRY,CONCATENATE(FRCP_y1," to ",dms_MultiYear_FinalYear_Result)) -> 2023-24 to 2027-28
B4: 2.3 AUGEX PROJECTS
B6: There are TWO tables on this worksheet - each has been 'grouped' for easy navigation. Both ROWS and COLUMNS have been grouped. See the Instructions sheet on how to group or ungroup tables.
B8: NOTE: TNSP MUST PROVIDE EXPENDITURE INFORMATION ON A PROJECT CLOSE BASIS.
B9: 2.3.1 - AUGEX ASSET DATA - SUBSTATIONS
B10: SUBSTATION AND PROJECT SUMMARY | L10: PLANT AND EQUIPMENT EXPENDITURE AND VOLUME | Y10: OTHER EXPENDITURE | AA10: TOTAL DIRECT EXPENDITURE ($0's) | AB10: YEARS INCURRED | AC10: RELATED PARTY CONTRACTS | AE10: ALL NON RELATED PARTYCONTRACTS | AF10: LAND AND EASEMENTS | AH10: Comments
B11: SUBSTATION ID | C11: SUBSTATION TYPE | D11: PROJECT ID | E11: PROJECT TYPE (drop down) | F11: PROJECT TRIGGER (drop down) | G11: VOLTAGE (KV) | H11: SUBSTATION RATING NORMAL CYCLIC (MVA) | J11: SUBSTATION RATING N-1 EMERGENCY (MVA) | L11: TRANSFORMERS | P11: SWITCHGEAR | S11: REACTIVE PLANT | V11: OTHER PLANT ITEM | W11: INSTALLATION (LABOUR) | Y11: CIVIL WORKS | Z11: OTHER DIRECT | AC11: RELATED PARTY MARGINS | AD11: TOTAL | AF11: LAND PURCHASES | AG11: EASEMENTS
H12: PRE | I12: POST | J12: PRE | K12: POST | L12: Units Added | M12: MVA Added | N12: OLTC INCLUDED? | O12: Expenditure ($0's) | P12: Insulation | Q12: Units Added | R12: Expenditure ($0's) | S12: Plant Type | T12: Units Added | U12: Expenditure ($0's) | V12: Expenditure ($0's) | W12: Volume | X12: Expenditure ($0's) | Y12: Expenditure ($0's) | AC12: Expenditure ($0's) | AF12: Expenditure ($0's)
A13: AUG231_1 | B13: Kemps Creek | C13: Transmission substation | D13: 1687 | E13: New substation establishment | F13: Demand growth | G13: 330/132 | H13: N/A | I13: 750 | J13: N/A | K13: 375 | L13: 2 | M13: 750 | N13: Yes | O13: c-i-c | P13: SF6 | Q13: 17 | R13: c-i-c | S13: 0 | T13: 0 | U13: c-i-c | V13: c-i-c | W13: 21302.83957 | X13: c-i-c | Y13: c-i-c | Z13: c-i-c | AA13: c-i-c | AB13: 0 | AC13: c-i-c | AD13: c-i-c | AE13: c-i-c | AF13: c-i-c | AG13: c-i-c
A14: AUG231_2 | O14: c-i-c | P14: Oil/Air | Q14: 93 | R14: c-i-c | U14: c-i-c | V14: c-i-c | X14: c-i-c
A15: AUG231_3 | O15: c-i-c | R15: c-i-c | U15: c-i-c | V15: c-i-c | X15: c-i-c
A16: AUG231_4 | O16: c-i-c | R16: c-i-c | U16: c-i-c | V16: c-i-c | X16: c-i-c
A17: AUG231_5 | O17: c-i-c | R17: c-i-c | U17: c-i-c | V17: c-i-c | X17: c-i-c
A18: AUG231_6 | O18: c-i-c | R18: c-i-c | U18: c-i-c | V18: c-i-c | X18: c-i-c
B19: Project Totals | L19: =SUM(L13:L18) -> 2 | M19: =SUM(M13:M18) -> 750 | O19: c-i-c | Q19: =SUM(Q13:Q18) -> 110 | R19: c-i-c | T19: =SUM(T13:T18) -> 0 | U19: c-i-c | V19: c-i-c | W19: 21302.83957 | X19: c-i-c | Y19: c-i-c | Z19: c-i-c | AA19: c-i-c | AC19: c-i-c | AD19: c-i-c | AE19: c-i-c | AF19: c-i-c | AG19: c-i-c
A20: AUG231_1 | B20: Macarthur | C20: Transmission substation | D20: 1687 | E20: Capacity upgrade | F20: Demand growth | G20: 330/132 | H20: 625 | I20: 1000 | J20: 250 | K20: 625 | L20: 1 | M20: 375 | N20: Yes | O20: c-i-c | P20: SF6 | Q20: 5 | R20: c-i-c | S20: 0 | T20: 0 | U20: c-i-c | V20: c-i-c | W20: 2714.905652 | X20: c-i-c | Y20: c-i-c | Z20: c-i-c | AA20: c-i-c | AB20: 0 | AC20: c-i-c | AD20: c-i-c | AE20: c-i-c | AF20: c-i-c | AG20: c-i-c
A21: AUG231_2 | O21: c-i-c | P21: Oil/Air | Q21: 3 | R21: c-i-c | U21: c-i-c | V21: c-i-c | X21: c-i-c
A22: AUG231_3 | O22: c-i-c | R22: c-i-c | U22: c-i-c | V22: c-i-c | X22: c-i-c
A23: AUG231_4 | O23: c-i-c | R23: c-i-c | U23: c-i-c | V23: c-i-c | X23: c-i-c
A24: AUG231_5 | O24: c-i-c | R24: c-i-c | U24: c-i-c | V24: c-i-c | X24: c-i-c
A25: AUG231_6 | O25: c-i-c | R25: c-i-c | U25: c-i-c | V25: c-i-c | X25: c-i-c
B26: Project Totals | L26: =SUM(L20:L25) -> 1 | M26: =SUM(M20:M25) -> 375 | O26: c-i-c | Q26: =SUM(Q20:Q25) -> 8 | R26: c-i-c | T26: =SUM(T20:T25) -> 0 | U26: c-i-c | V26: c-i-c | W26: 2714.905652 | X26: c-i-c | Y26: c-i-c | Z26: c-i-c | AA26: c-i-c | AC26: c-i-c | AD26: c-i-c | AE26: c-i-c | AF26: c-i-c | AG26: c-i-c
A27: AUG231_1 | B27: Wagga | C27: Transmission substation | D27: N2208 | E27: Capacity upgrade | F27: Net market benefit | G27: 132/66 | H27: 240 | I27: 240 | J27: 120 | K27: 120 | L27: 0 | M27: 0 | N27: 0 | O27: c-i-c | P27: Oil/Air | Q27: 1 | R27: c-i-c | S27: 0 | T27: 0 | U27: c-i-c | V27: c-i-c | W27: 5360.922298 | X27: c-i-c | Y27: c-i-c | Z27: c-i-c | AA27: c-i-c | AB27: 0 | AC27: c-i-c | AD27: c-i-c | AE27: c-i-c | AF27: c-i-c | AG27: c-i-c
A28: AUG231_2 | O28: c-i-c | R28: c-i-c | U28: c-i-c | V28: c-i-c | X28: c-i-c
A29: AUG231_3 | O29: c-i-c | R29: c-i-c | U29: c-i-c | V29: c-i-c | X29: c-i-c
A30: AUG231_4 | O30: c-i-c | R30: c-i-c | U30: c-i-c | V30: c-i-c | X30: c-i-c
A31: AUG231_5 | O31: c-i-c | R31: c-i-c | U31: c-i-c | V31: c-i-c | X31: c-i-c
A32: AUG231_6 | O32: c-i-c | R32: c-i-c | U32: c-i-c | V32: c-i-c | X32: c-i-c
B33: Project Totals | L33: =SUM(L27:L32) -> 0 | M33: =SUM(M27:M32) -> 0 | O33: c-i-c | Q33: =SUM(Q27:Q32) -> 1 | R33: c-i-c | T33: =SUM(T27:T32) -> 0 | U33: c-i-c | V33: c-i-c | W33: 5360.922298 | X33: c-i-c | Y33: c-i-c | Z33: c-i-c | AA33: c-i-c | AC33: c-i-c | AD33: c-i-c | AE33: c-i-c | AF33: c-i-c | AG33: c-i-c
A34: AUG231_1 | B34: Sydney West | C34: Transmission substation | D34: N2371 | E34: Capacity upgrade | F34: Demand growth | G34: 330/132 | H34: 1875 | I34: 2250 | J34: 1500 | K34: 1875 | L34: 1 | M34: 375 | N34: Yes | O34: c-i-c | P34: SF6 | Q34: 6 | R34: c-i-c | S34: 0 | T34: 0 | U34: c-i-c | V34: c-i-c | W34: 6258.160373 | X34: c-i-c | Y34: c-i-c | Z34: c-i-c | AA34: c-i-c | AB34: 0 | AC34: c-i-c | AD34: c-i-c | AE34: c-i-c | AF34: c-i-c | AG34: c-i-c
A35: AUG231_2 | O35: c-i-c | P35: Oil/Air | Q35: 15 | R35: c-i-c | U35: c-i-c | V35: c-i-c | X35: c-i-c
A36: AUG231_3 | O36: c-i-c | R36: c-i-c | U36: c-i-c | V36: c-i-c | X36: c-i-c
A37: AUG231_4 | O37: c-i-c | R37: c-i-c | U37: c-i-c | V37: c-i-c | X37: c-i-c
A38: AUG231_5 | O38: c-i-c | R38: c-i-c | U38: c-i-c | V38: c-i-c | X38: c-i-c
A39: AUG231_6 | O39: c-i-c | R39: c-i-c | U39: c-i-c | V39: c-i-c | X39: c-i-c
B40: Project Totals | L40: =SUM(L34:L39) -> 1 | M40: =SUM(M34:M39) -> 375 | O40: c-i-c | Q40: =SUM(Q34:Q39) -> 21 | R40: c-i-c | T40: =SUM(T34:T39) -> 0 | U40: c-i-c | V40: c-i-c | W40: 6258.160373 | X40: c-i-c | Y40: c-i-c | Z40: c-i-c | AA40: c-i-c | AC40: c-i-c | AD40: c-i-c | AE40: c-i-c | AF40: c-i-c | AG40: c-i-c
A41: AUG231_1
A42: AUG231_2
A43: AUG231_3
A44: AUG231_4
A45: AUG231_5
A46: AUG231_6
B47: Project Totals | L47: =SUM(L41:L46) -> 0 | M47: =SUM(M41:M46) -> 0 | O47: c-i-c | Q47: =SUM(Q41:Q46) -> 0 | R47: c-i-c | T47: =SUM(T41:T46) -> 0 | U47: c-i-c | V47: c-i-c | W47: 0 | X47: c-i-c | Y47: c-i-c | Z47: c-i-c | AA47: c-i-c | AC47: c-i-c | AD47: c-i-c | AE47: c-i-c | AF47: c-i-c | AG47: c-i-c
A48: AUG231_1 | B48: Kangaroo Valley | C48: Switching station | D48: 2145 | E48: Voltage upgrade | F48: Voltage issues | G48: 330 | H48: N/A | I48: N/A | J48: N/A | K48: N/A | L48: 0 | M48: 0 | N48: 0 | O48: c-i-c | P48: SF6 | Q48: 1 | R48: c-i-c | S48: Shunt Reactor | T48: 1 | U48: c-i-c | V48: c-i-c | W48: 2339.82087 | X48: c-i-c | Y48: c-i-c | Z48: c-i-c | AA48: c-i-c | AB48: 0 | AC48: c-i-c | AD48: c-i-c | AE48: c-i-c | AF48: c-i-c | AG48: c-i-c
A49: AUG231_2 | O49: c-i-c | P49: Oil/Air | Q49: 4 | R49: c-i-c | U49: c-i-c | V49: c-i-c | X49: c-i-c
A50: AUG231_3 | O50: c-i-c | R50: c-i-c | U50: c-i-c | V50: c-i-c | X50: c-i-c
A51: AUG231_4 | O51: c-i-c | R51: c-i-c | U51: c-i-c | V51: c-i-c | X51: c-i-c
A52: AUG231_5 | O52: c-i-c | R52: c-i-c | U52: c-i-c | V52: c-i-c | X52: c-i-c
A53: AUG231_6 | O53: c-i-c | R53: c-i-c | U53: c-i-c | V53: c-i-c | X53: c-i-c
B54: Project Totals | L54: =SUM(L48:L53) -> 0 | M54: =SUM(M48:M53) -> 0 | O54: c-i-c | Q54: =SUM(Q48:Q53) -> 5 | R54: c-i-c | T54: =SUM(T48:T53) -> 1 | U54: c-i-c | V54: c-i-c | W54: 2339.82087 | X54: c-i-c | Y54: c-i-c | Z54: c-i-c | AA54: c-i-c | AC54: c-i-c | AD54: c-i-c | AE54: c-i-c | AF54: c-i-c | AG54: c-i-c
A55: AUG231_1 | B55: Darlington Point | C55: Transmission substation | D55: 2145 | E55: Voltage upgrade | F55: Voltage issues | G55: 330/132 | H55: 960 | I55: 960 | J55: 680 | K55: 680 | L55: 0 | M55: 0 | N55: 0 | O55: c-i-c | P55: SF6 | Q55: 2 | R55: c-i-c | S55: Shunt Reactors | T55: 2 | U55: c-i-c | V55: c-i-c | W55: 2609.139006 | X55: c-i-c | Y55: c-i-c | Z55: c-i-c | AA55: c-i-c | AB55: 0 | AC55: c-i-c | AD55: c-i-c | AE55: c-i-c | AF55: c-i-c | AG55: c-i-c
A56: AUG231_2 | O56: c-i-c | P56: Oil/Air | Q56: 8 | R56: c-i-c | U56: c-i-c | V56: c-i-c | X56: c-i-c
A57: AUG231_3 | O57: c-i-c | R57: c-i-c | U57: c-i-c | V57: c-i-c | X57: c-i-c
A58: AUG231_4 | O58: c-i-c | R58: c-i-c | U58: c-i-c | V58: c-i-c | X58: c-i-c
A59: AUG231_5 | O59: c-i-c | R59: c-i-c | U59: c-i-c | V59: c-i-c | X59: c-i-c
A60: AUG231_6 | O60: c-i-c | R60: c-i-c | U60: c-i-c | V60: c-i-c | X60: c-i-c
B61: Project Totals | L61: =SUM(L55:L60) -> 0 | M61: =SUM(M55:M60) -> 0 | O61: c-i-c | Q61: =SUM(Q55:Q60) -> 10 | R61: c-i-c | T61: =SUM(T55:T60) -> 2 | U61: c-i-c | V61: c-i-c | W61: 2609.139006 | X61: c-i-c | Y61: c-i-c | Z61: c-i-c | AA61: c-i-c | AC61: c-i-c | AD61: c-i-c | AE61: c-i-c | AF61: c-i-c | AG61: c-i-c
A62: AUG231_1 | B62: Balranald | C62: Transmission substation | D62: 2145 | E62: Voltage upgrade | F62: Voltage issues | G62: 220/22 | H62: 30 | I62: 30 | J62: 0 | K62: 0 | L62: 0 | M62: 0 | N62: 0 | O62: c-i-c | P62: SF6 | Q62: 1 | R62: c-i-c | S62: Shunt Reactor | T62: 1 | U62: c-i-c | V62: c-i-c | W62: 1787.56 | X62: c-i-c | Y62: c-i-c | Z62: c-i-c | AA62: c-i-c | AB62: 0 | AC62: c-i-c | AD62: c-i-c | AE62: c-i-c | AF62: c-i-c | AG62: c-i-c
A63: AUG231_2 | O63: c-i-c | P63: Oil/Air | Q63: 4 | R63: c-i-c | U63: c-i-c | V63: c-i-c | X63: c-i-c
A64: AUG231_3 | O64: c-i-c | R64: c-i-c | U64: c-i-c | V64: c-i-c | X64: c-i-c
A65: AUG231_4 | O65: c-i-c | R65: c-i-c | U65: c-i-c | V65: c-i-c | X65: c-i-c
A66: AUG231_5 | O66: c-i-c | R66: c-i-c | U66: c-i-c | V66: c-i-c | X66: c-i-c
A67: AUG231_6 | O67: c-i-c | R67: c-i-c | U67: c-i-c | V67: c-i-c | X67: c-i-c
B68: Project Totals | L68: =SUM(L62:L67) -> 0 | M68: =SUM(M62:M67) -> 0 | O68: c-i-c | Q68: =SUM(Q62:Q67) -> 5 | R68: c-i-c | T68: =SUM(T62:T67) -> 1 | U68: c-i-c | V68: c-i-c | W68: 1787.56 | X68: c-i-c | Y68: c-i-c | Z68: c-i-c | AA68: c-i-c | AC68: c-i-c | AD68: c-i-c | AE68: c-i-c | AF68: c-i-c | AG68: c-i-c
A69: AUG231_1
A70: AUG231_2
A71: AUG231_3
A72: AUG231_4
A73: AUG231_5
A74: AUG231_6
B75: Project Totals | L75: =SUM(L69:L74) -> 0 | M75: =SUM(M69:M74) -> 0 | O75: c-i-c | Q75: =SUM(Q69:Q74) -> 0 | R75: c-i-c | T75: =SUM(T69:T74) -> 0 | U75: c-i-c | V75: c-i-c | W75: 0 | X75: c-i-c | Y75: c-i-c | Z75: c-i-c | AA75: c-i-c | AC75: c-i-c | AD75: c-i-c | AE75: c-i-c | AF75: c-i-c | AG75: c-i-c
A76: AUG231_1 | B76: Beaconsfield | C76: Transmission substation | D76: N2584 | E76: Voltage upgrade | F76: Voltage issues | G76: 330/132 | H76: 750 | I76: 750 | J76: 375 | K76: 375 | L76: 0 | M76: 0 | N76: 0 | O76: c-i-c | P76: SF6 | Q76: 4 | R76: c-i-c | S76: Shunt Reactor | T76: 1 | U76: c-i-c | V76: c-i-c | W76: 4718.292795 | X76: c-i-c | Y76: c-i-c | Z76: c-i-c | AA76: c-i-c | AB76: 0 | AC76: c-i-c | AD76: c-i-c | AE76: c-i-c | AF76: c-i-c | AG76: c-i-c
A77: AUG231_2 | O77: c-i-c | P77: Oil/Air | Q77: 4 | R77: c-i-c | U77: c-i-c | V77: c-i-c | X77: c-i-c
A78: AUG231_3 | O78: c-i-c | R78: c-i-c | U78: c-i-c | V78: c-i-c | X78: c-i-c
A79: AUG231_4 | O79: c-i-c | R79: c-i-c | U79: c-i-c | V79: c-i-c | X79: c-i-c
A80: AUG231_5 | O80: c-i-c | R80: c-i-c | U80: c-i-c | V80: c-i-c | X80: c-i-c
A81: AUG231_6 | O81: c-i-c | R81: c-i-c | U81: c-i-c | V81: c-i-c | X81: c-i-c
B82: Project Totals | L82: =SUM(L76:L81) -> 0 | M82: =SUM(M76:M81) -> 0 | O82: c-i-c | Q82: =SUM(Q76:Q81) -> 8 | R82: c-i-c | T82: =SUM(T76:T81) -> 1 | U82: c-i-c | V82: c-i-c | W82: 4718.292795 | X82: c-i-c | Y82: c-i-c | Z82: c-i-c | AA82: c-i-c | AC82: c-i-c | AD82: c-i-c | AE82: c-i-c | AF82: c-i-c | AG82: c-i-c
A83: AUG231_1
A84: AUG231_2
A85: AUG231_3
A86: AUG231_4
A87: AUG231_5
A88: AUG231_6
B89: Project Totals | L89: =SUM(L83:L88) -> 0 | M89: =SUM(M83:M88) -> 0 | O89: c-i-c | Q89: =SUM(Q83:Q88) -> 0 | R89: c-i-c | T89: =SUM(T83:T88) -> 0 | U89: c-i-c | V89: c-i-c | W89: 0 | X89: c-i-c | Y89: c-i-c | Z89: c-i-c | AA89: c-i-c | AC89: c-i-c | AD89: c-i-c | AE89: c-i-c | AF89: c-i-c | AG89: c-i-c
A90: AUG231_1 | B90: Broken Hill | C90: Transmission substation | D90: 1698 | E90: Voltage upgrade | F90: Demand growth | G90: 220/22 | H90: 200 | I90: 200 | J90: 100 | K90: 100 | L90: 0 | M90: 0 | N90: 0 | O90: c-i-c | P90: SF6 | Q90: 5 | R90: c-i-c | S90: Capacitor Banks | T90: 2 | U90: c-i-c | V90: c-i-c | W90: 3893.334658 | X90: c-i-c | Y90: c-i-c | Z90: c-i-c | AA90: c-i-c | AB90: 0 | AC90: c-i-c | AD90: c-i-c | AE90: c-i-c | AF90: c-i-c | AG90: c-i-c
A91: AUG231_2 | O91: c-i-c | P91: Oil/Air | Q91: 8 | R91: c-i-c | U91: c-i-c | V91: c-i-c | X91: c-i-c
A92: AUG231_3 | O92: c-i-c | R92: c-i-c | U92: c-i-c | V92: c-i-c | X92: c-i-c
A93: AUG231_4 | O93: c-i-c | R93: c-i-c | U93: c-i-c | V93: c-i-c | X93: c-i-c
A94: AUG231_5 | O94: c-i-c | R94: c-i-c | U94: c-i-c | V94: c-i-c | X94: c-i-c
A95: AUG231_6 | O95: c-i-c | R95: c-i-c | U95: c-i-c | V95: c-i-c | X95: c-i-c
B96: Project Totals | L96: =SUM(L90:L95) -> 0 | M96: =SUM(M90:M95) -> 0 | O96: c-i-c | Q96: =SUM(Q90:Q95) -> 13 | R96: c-i-c | T96: =SUM(T90:T95) -> 2 | U96: c-i-c | V96: c-i-c | W96: 3893.334658 | X96: c-i-c | Y96: c-i-c | Z96: c-i-c | AA96: c-i-c | AC96: c-i-c | AD96: c-i-c | AE96: c-i-c | AF96: c-i-c | AG96: c-i-c
A97: AUG231_1 | B97: Vineyard | C97: Transmission substation | D97: N2360 | E97: Voltage upgrade | F97: Voltage issues | G97: 330/132 | H97: 1125 | I97: 1125 | J97: 750 | K97: 750 | L97: 0 | M97: 0 | N97: 0 | O97: c-i-c | P97: SF6 | Q97: 16 | R97: c-i-c | S97: 0 | T97: 0 | U97: c-i-c | V97: c-i-c | W97: 12761.45901 | X97: c-i-c | Y97: c-i-c | Z97: c-i-c | AA97: c-i-c | AB97: 0 | AC97: c-i-c | AD97: c-i-c | AE97: c-i-c | AF97: c-i-c | AG97: c-i-c
A98: AUG231_2 | O98: c-i-c | P98: Oil/Air | Q98: 16 | R98: c-i-c | U98: c-i-c | V98: c-i-c | X98: c-i-c
A99: AUG231_3 | O99: c-i-c | R99: c-i-c | U99: c-i-c | V99: c-i-c | X99: c-i-c
A100: AUG231_4 | O100: c-i-c | R100: c-i-c | U100: c-i-c | V100: c-i-c | X100: c-i-c
A101: AUG231_5 | O101: c-i-c | R101: c-i-c | U101: c-i-c | V101: c-i-c | X101: c-i-c
A102: AUG231_6 | O102: c-i-c | R102: c-i-c | U102: c-i-c | V102: c-i-c | X102: c-i-c
B103: Project Totals | L103: =SUM(L97:L102) -> 0 | M103: =SUM(M97:M102) -> 0 | O103: c-i-c | Q103: =SUM(Q97:Q102) -> 32 | R103: c-i-c | T103: =SUM(T97:T102) -> 0 | U103: c-i-c | V103: c-i-c | W103: 12761.45901 | X103: c-i-c | Y103: c-i-c | Z103: c-i-c | AA103: c-i-c | AC103: c-i-c | AD103: c-i-c | AE103: c-i-c | AF103: c-i-c | AG103: c-i-c
A104: AUG231_1 | B104: Inverell | C104: Transmission substation | D104: N2649 | E104: Voltage upgrade | F104: Voltage issues | G104: 132/66 | H104: 240 | I104: 240 | J104: 120 | K104: 120 | L104: 0 | M104: 0 | N104: 0 | O104: c-i-c | P104: SF6 | Q104: 1 | R104: c-i-c | S104: Reactor | T104: 1 | U104: c-i-c | V104: c-i-c | W104: 2628.66087 | X104: c-i-c | Y104: c-i-c | Z104: c-i-c | AA104: c-i-c | AB104: 0 | AC104: c-i-c | AD104: c-i-c | AE104: c-i-c | AF104: c-i-c | AG104: c-i-c
A105: AUG231_2 | O105: c-i-c | P105: Oil/Air | Q105: 4 | R105: c-i-c | U105: c-i-c | V105: c-i-c | X105: c-i-c
A106: AUG231_3 | O106: c-i-c | R106: c-i-c | U106: c-i-c | V106: c-i-c | X106: c-i-c
A107: AUG231_4 | O107: c-i-c | R107: c-i-c | U107: c-i-c | V107: c-i-c | X107: c-i-c
A108: AUG231_5 | O108: c-i-c | R108: c-i-c | U108: c-i-c | V108: c-i-c | X108: c-i-c
A109: AUG231_6 | O109: c-i-c | R109: c-i-c | U109: c-i-c | V109: c-i-c | X109: c-i-c
B110: Project Totals | L110: =SUM(L104:L109) -> 0 | M110: =SUM(M104:M109) -> 0 | O110: c-i-c | Q110: =SUM(Q104:Q109) -> 5 | R110: c-i-c | T110: =SUM(T104:T109) -> 1 | U110: c-i-c | V110: c-i-c | W110: 2628.66087 | X110: c-i-c | Y110: c-i-c | Z110: c-i-c | AA110: c-i-c | AC110: c-i-c | AD110: c-i-c | AE110: c-i-c | AF110: c-i-c | AG110: c-i-c
A111: AUG231_1 | B111: Beryl | C111: Transmission substation | D111: 1316 | E111: Voltage upgrade | F111: Voltage issues | G111: 132/66 | H111: 240 | I111: 240 | J111: 120 | K111: 120 | L111: 0 | M111: 0 | N111: 0 | O111: c-i-c | P111: SF6 | Q111: 1 | R111: c-i-c | S111: Syncon | T111: 1 | U111: c-i-c | V111: c-i-c | W111: 3507.234783 | X111: c-i-c | Y111: c-i-c | Z111: c-i-c | AA111: c-i-c | AB111: 0 | AC111: c-i-c | AD111: c-i-c | AE111: c-i-c | AF111: c-i-c | AG111: c-i-c
A112: AUG231_2 | O112: c-i-c | P112: Oil/Air | Q112: 8 | R112: c-i-c | U112: c-i-c | V112: c-i-c | X112: c-i-c
A113: AUG231_3 | O113: c-i-c | R113: c-i-c | U113: c-i-c | V113: c-i-c | X113: c-i-c
A114: AUG231_4 | O114: c-i-c | R114: c-i-c | U114: c-i-c | V114: c-i-c | X114: c-i-c
A115: AUG231_5 | O115: c-i-c | R115: c-i-c | U115: c-i-c | V115: c-i-c | X115: c-i-c
A116: AUG231_6 | O116: c-i-c | R116: c-i-c | U116: c-i-c | V116: c-i-c | X116: c-i-c
B117: Project Totals | L117: =SUM(L111:L116) -> 0 | M117: =SUM(M111:M116) -> 0 | O117: c-i-c | Q117: =SUM(Q111:Q116) -> 9 | R117: c-i-c | T117: =SUM(T111:T116) -> 1 | U117: c-i-c | V117: c-i-c | W117: 3507.234783 | X117: c-i-c | Y117: c-i-c | Z117: c-i-c | AA117: c-i-c | AC117: c-i-c | AD117: c-i-c | AE117: c-i-c | AF117: c-i-c | AG117: c-i-c
A118: AUG231_1 | B118: Williamsdale | C118: Transmission substation | D118: N2645 | E118: Voltage upgrade | F118: Voltage issues | G118: 330/132 | H118: 750 | I118: 850 | J118: 375 | K118: 475 | L118: 1 | M118: 100 | N118: Yes | O118: c-i-c | P118: 0 | Q118: 0 | R118: c-i-c | S118: Static Var Compensator (SVC) | T118: 1 | U118: c-i-c | V118: c-i-c | W118: 3882.819006 | X118: c-i-c | Y118: c-i-c | Z118: c-i-c | AA118: c-i-c | AB118: 0 | AC118: c-i-c | AD118: c-i-c | AE118: c-i-c | AF118: c-i-c | AG118: c-i-c
A119: AUG231_2 | O119: c-i-c | P119: 0 | Q119: 0 | R119: c-i-c | U119: c-i-c | V119: c-i-c | X119: c-i-c
A120: AUG231_3 | O120: c-i-c | R120: c-i-c | U120: c-i-c | V120: c-i-c | X120: c-i-c
A121: AUG231_4 | O121: c-i-c | R121: c-i-c | U121: c-i-c | V121: c-i-c | X121: c-i-c
A122: AUG231_5 | O122: c-i-c | R122: c-i-c | U122: c-i-c | V122: c-i-c | X122: c-i-c
A123: AUG231_6 | O123: c-i-c | R123: c-i-c | U123: c-i-c | V123: c-i-c | X123: c-i-c
B124: Project Totals | L124: =SUM(L118:L123) -> 1 | M124: =SUM(M118:M123) -> 100 | O124: c-i-c | Q124: =SUM(Q118:Q123) -> 0 | R124: c-i-c | T124: =SUM(T118:T123) -> 1 | U124: c-i-c | V124: c-i-c | W124: 3882.819006 | X124: c-i-c | Y124: c-i-c | Z124: c-i-c | AA124: c-i-c | AC124: c-i-c | AD124: c-i-c | AE124: c-i-c | AF124: c-i-c | AG124: c-i-c
A125: AUG231_1 | B125: Macarthur | C125: Transmission substation | D125: 1438 | E125: Capacity upgrade | F125: Demand growth | G125: 330/132 | H125: 625 | I125: 875 | J125: 250 | K125: 500 | L125: 1 | M125: 250 | N125: Yes | O125: c-i-c | P125: SF6 | Q125: 7 | R125: c-i-c | S125: 0 | T125: 0 | U125: c-i-c | V125: c-i-c | W125: 0 | X125: c-i-c | Y125: c-i-c | Z125: c-i-c | AA125: c-i-c | AB125: 0 | AC125: c-i-c | AD125: c-i-c | AE125: c-i-c | AF125: c-i-c | AG125: c-i-c
A126: AUG231_2 | O126: c-i-c | P126: Oil/Air | Q126: 11 | R126: c-i-c | U126: c-i-c | V126: c-i-c | X126: c-i-c
A127: AUG231_3 | O127: c-i-c | R127: c-i-c | U127: c-i-c | V127: c-i-c | X127: c-i-c
A128: AUG231_4 | O128: c-i-c | R128: c-i-c | U128: c-i-c | V128: c-i-c | X128: c-i-c
A129: AUG231_5 | O129: c-i-c | R129: c-i-c | U129: c-i-c | V129: c-i-c | X129: c-i-c
A130: AUG231_6 | O130: c-i-c | R130: c-i-c | U130: c-i-c | V130: c-i-c | X130: c-i-c
B131: Project Totals | L131: =SUM(L125:L130) -> 1 | M131: =SUM(M125:M130) -> 250 | O131: c-i-c | Q131: =SUM(Q125:Q130) -> 18 | R131: c-i-c | T131: =SUM(T125:T130) -> 0 | U131: c-i-c | V131: c-i-c | W131: 0 | X131: c-i-c | Y131: c-i-c | Z131: c-i-c | AA131: c-i-c | AC131: c-i-c | AD131: c-i-c | AE131: c-i-c | AF131: c-i-c | AG131: c-i-c
A132: AUG231_1 | B132: New location adjacent to Kemps Creek Substation | C132: Other | D132: 2137 | E132: Other | F132: Net market benefit | G132: N/A | H132: N/A | I132: N/A | J132: N/A | K132: N/A | L132: 0 | M132: 0 | N132: 0 | O132: c-i-c | P132: 0 | Q132: 0 | R132: c-i-c | S132: 0 | T132: 0 | U132: c-i-c | V132: c-i-c | W132: 0 | X132: c-i-c | Y132: c-i-c | Z132: c-i-c | AA132: c-i-c | AB132: 0 | AC132: c-i-c | AD132: c-i-c | AE132: c-i-c | AF132: c-i-c | AG132: c-i-c | AH132: Strategic property acquisition for Western Sydney Priority Growth Area
A133: AUG231_2 | O133: c-i-c | R133: c-i-c | U133: c-i-c | V133: c-i-c | X133: c-i-c
A134: AUG231_3 | O134: c-i-c | R134: c-i-c | U134: c-i-c | V134: c-i-c | X134: c-i-c
A135: AUG231_4 | O135: c-i-c | R135: c-i-c | U135: c-i-c | V135: c-i-c | X135: c-i-c
A136: AUG231_5 | O136: c-i-c | R136: c-i-c | U136: c-i-c | V136: c-i-c | X136: c-i-c
A137: AUG231_6 | O137: c-i-c | R137: c-i-c | U137: c-i-c | V137: c-i-c | X137: c-i-c
B138: Project Totals | L138: =SUM(L132:L137) -> 0 | M138: =SUM(M132:M137) -> 0 | O138: c-i-c | Q138: =SUM(Q132:Q137) -> 0 | R138: c-i-c | T138: =SUM(T132:T137) -> 0 | U138: c-i-c | V138: c-i-c | W138: 0 | X138: c-i-c | Y138: c-i-c | Z138: c-i-c | AA138: c-i-c | AC138: c-i-c | AD138: c-i-c | AE138: c-i-c | AF138: c-i-c | AG138: c-i-c
A139: AUG231_1 | B139: North West NSW Protection System (multiple substations) | C139: Transmission substation | D139: 1473 | E139: Other | F139: Net market benefit | G139: 330 | H139: N/A | I139: N/A | J139: N/A | K139: N/A | L139: 0 | M139: 0 | N139: 0 | O139: c-i-c | P139: 0 | Q139: 0 | R139: c-i-c | S139: 0 | T139: 0 | U139: c-i-c | V139: c-i-c | W139: 3252.888571 | X139: c-i-c | Y139: c-i-c | Z139: c-i-c | AA139: c-i-c | AB139: 0 | AC139: c-i-c | AD139: c-i-c | AE139: c-i-c | AF139: c-i-c | AG139: c-i-c
A140: AUG231_2 | O140: c-i-c | P140: 0 | Q140: 0 | R140: c-i-c | U140: c-i-c | V140: c-i-c | X140: c-i-c
A141: AUG231_3 | O141: c-i-c | R141: c-i-c | U141: c-i-c | V141: c-i-c | X141: c-i-c
A142: AUG231_4 | O142: c-i-c | R142: c-i-c | U142: c-i-c | V142: c-i-c | X142: c-i-c
A143: AUG231_5 | O143: c-i-c | R143: c-i-c | U143: c-i-c | V143: c-i-c | X143: c-i-c
A144: AUG231_6 | O144: c-i-c | R144: c-i-c | U144: c-i-c | V144: c-i-c | X144: c-i-c
B145: Project Totals | L145: =SUM(L139:L144) -> 0 | M145: =SUM(M139:M144) -> 0 | O145: c-i-c | Q145: =SUM(Q139:Q144) -> 0 | R145: c-i-c | T145: =SUM(T139:T144) -> 0 | U145: c-i-c | V145: c-i-c | W145: 3252.888571 | X145: c-i-c | Y145: c-i-c | Z145: c-i-c | AA145: c-i-c | AC145: c-i-c | AD145: c-i-c | AE145: c-i-c | AF145: c-i-c | AG145: c-i-c
A146: AUG231_1 | B146: Sydney North West area Protection System (multiple substations) | C146: Transmission substation | D146: 1491 | E146: Other | F146: Net market benefit | G146: 330 | H146: N/A | I146: N/A | J146: N/A | K146: N/A | L146: 0 | M146: 0 | N146: 0 | O146: c-i-c | P146: 0 | Q146: 0 | R146: c-i-c | S146: 0 | T146: 0 | U146: c-i-c | V146: c-i-c | W146: 11400.86186 | X146: c-i-c | Y146: c-i-c | Z146: c-i-c | AA146: c-i-c | AB146: 0 | AC146: c-i-c | AD146: c-i-c | AE146: c-i-c | AF146: c-i-c | AG146: c-i-c
A147: AUG231_2 | O147: c-i-c | R147: c-i-c | U147: c-i-c | V147: c-i-c | X147: c-i-c
A148: AUG231_3 | O148: c-i-c | R148: c-i-c | U148: c-i-c | V148: c-i-c | X148: c-i-c
A149: AUG231_4 | O149: c-i-c | R149: c-i-c | U149: c-i-c | V149: c-i-c | X149: c-i-c
A150: AUG231_5 | O150: c-i-c | R150: c-i-c | U150: c-i-c | V150: c-i-c | X150: c-i-c
A151: AUG231_6 | O151: c-i-c | R151: c-i-c | U151: c-i-c | V151: c-i-c | X151: c-i-c
B152: Project Totals | L152: =SUM(L146:L151) -> 0 | M152: =SUM(M146:M151) -> 0 | O152: c-i-c | Q152: =SUM(Q146:Q151) -> 0 | R152: c-i-c | T152: =SUM(T146:T151) -> 0 | U152: c-i-c | V152: c-i-c | W152: 11400.86186 | X152: c-i-c | Y152: c-i-c | Z152: c-i-c | AA152: c-i-c | AC152: c-i-c | AD152: c-i-c | AE152: c-i-c | AF152: c-i-c | AG152: c-i-c
A153: AUG231_1 | B153: Sydney West | C153: Transmission substation | D153: 1522 | E153: Other | F153: Net market benefit | G153: 330/132 | H153: 1875 | I153: 1875 | J153: 1500 | K153: 1500 | L153: 0 | M153: 0 | N153: N/A | O153: c-i-c | P153: N/A | Q153: 0 | R153: c-i-c | S153: N/A | T153: 0 | U153: c-i-c | V153: c-i-c | W153: 4379.701863 | X153: c-i-c | Y153: c-i-c | Z153: c-i-c | AA153: c-i-c | AB153: 0 | AC153: c-i-c | AD153: c-i-c | AE153: c-i-c | AF153: c-i-c | AG153: c-i-c
A154: AUG231_2 | O154: c-i-c | R154: c-i-c | U154: c-i-c | V154: c-i-c | X154: c-i-c
A155: AUG231_3 | O155: c-i-c | R155: c-i-c | U155: c-i-c | V155: c-i-c | X155: c-i-c
A156: AUG231_4 | O156: c-i-c | R156: c-i-c | U156: c-i-c | V156: c-i-c | X156: c-i-c
A157: AUG231_5 | O157: c-i-c | R157: c-i-c | U157: c-i-c | V157: c-i-c | X157: c-i-c
A158: AUG231_6 | O158: c-i-c | R158: c-i-c | U158: c-i-c | V158: c-i-c | X158: c-i-c
B159: Project Totals | L159: =SUM(L153:L158) -> 0 | M159: =SUM(M153:M158) -> 0 | O159: c-i-c | Q159: =SUM(Q153:Q158) -> 0 | R159: c-i-c | T159: =SUM(T153:T158) -> 0 | U159: c-i-c | V159: c-i-c | W159: 4379.701863 | X159: c-i-c | Y159: c-i-c | Z159: c-i-c | AA159: c-i-c | AC159: c-i-c | AD159: c-i-c | AE159: c-i-c | AF159: c-i-c | AG159: c-i-c
A160: AUG231_1 | B160: Bayswater | C160: Transmission substation | D160: 1522 | E160: Other | F160: Net market benefit | G160: 500/330 | H160: 3000 | I160: 3000 | J160: 1500 | K160: 1500 | L160: 0 | M160: 0 | N160: N/A | O160: c-i-c | P160: N/A | Q160: 0 | R160: c-i-c | S160: N/A | T160: 0 | U160: c-i-c | V160: c-i-c | W160: 4379.701863 | X160: c-i-c | Y160: c-i-c | Z160: c-i-c | AA160: c-i-c | AB160: 0 | AC160: c-i-c | AD160: c-i-c | AE160: c-i-c | AF160: c-i-c | AG160: c-i-c
A161: AUG231_2 | O161: c-i-c | R161: c-i-c | U161: c-i-c | V161: c-i-c | X161: c-i-c
A162: AUG231_3 | O162: c-i-c | R162: c-i-c | U162: c-i-c | V162: c-i-c | X162: c-i-c
A163: AUG231_4 | O163: c-i-c | R163: c-i-c | U163: c-i-c | V163: c-i-c | X163: c-i-c
A164: AUG231_5 | O164: c-i-c | R164: c-i-c | U164: c-i-c | V164: c-i-c | X164: c-i-c
A165: AUG231_6 | O165: c-i-c | R165: c-i-c | U165: c-i-c | V165: c-i-c | X165: c-i-c
B166: Project Totals | L166: =SUM(L160:L165) -> 0 | M166: =SUM(M160:M165) -> 0 | O166: c-i-c | Q166: =SUM(Q160:Q165) -> 0 | R166: c-i-c | T166: =SUM(T160:T165) -> 0 | U166: c-i-c | V166: c-i-c | W166: 4379.701863 | X166: c-i-c | Y166: c-i-c | Z166: c-i-c | AA166: c-i-c | AC166: c-i-c | AD166: c-i-c | AE166: c-i-c | AF166: c-i-c | AG166: c-i-c
A167: AUG231_1 | B167: Regentville | C167: Transmission substation | D167: 1522 | E167: Other | F167: Net market benefit | G167: 330/132 | H167: 750 | I167: 750 | J167: 375 | K167: 375 | L167: 0 | M167: 0 | N167: N/A | O167: c-i-c | P167: N/A | Q167: 0 | R167: c-i-c | S167: N/A | T167: 0 | U167: c-i-c | V167: c-i-c | W167: 4379.701863 | X167: c-i-c | Y167: c-i-c | Z167: c-i-c | AA167: c-i-c | AB167: 0 | AC167: c-i-c | AD167: c-i-c | AE167: c-i-c | AF167: c-i-c | AG167: c-i-c
A168: AUG231_2 | O168: c-i-c | R168: c-i-c | U168: c-i-c | V168: c-i-c | X168: c-i-c
A169: AUG231_3 | O169: c-i-c | R169: c-i-c | U169: c-i-c | V169: c-i-c | X169: c-i-c
A170: AUG231_4 | O170: c-i-c | R170: c-i-c | U170: c-i-c | V170: c-i-c | X170: c-i-c
A171: AUG231_5 | O171: c-i-c | R171: c-i-c | U171: c-i-c | V171: c-i-c | X171: c-i-c
A172: AUG231_6 | O172: c-i-c | R172: c-i-c | U172: c-i-c | V172: c-i-c | X172: c-i-c
B173: Project Totals | L173: =SUM(L167:L172) -> 0 | M173: =SUM(M167:M172) -> 0 | O173: c-i-c | Q173: =SUM(Q167:Q172) -> 0 | R173: c-i-c | T173: =SUM(T167:T172) -> 0 | U173: c-i-c | V173: c-i-c | W173: 4379.701863 | X173: c-i-c | Y173: c-i-c | Z173: c-i-c | AA173: c-i-c | AC173: c-i-c | AD173: c-i-c | AE173: c-i-c | AF173: c-i-c | AG173: c-i-c
A174: AUG231_1 | B174: Beaconsfield | C174: Transmission Substation | D174: DCN43 | E174: Capacity upgrade | F174: Demand growth | G174: 330/132 | H174: 750 | I174: 750 | J174: 375 | K174: 375 | L174: 0 | M174: 0 | N174: 0 | O174: c-i-c | P174: 0 | Q174: 9 | R174: c-i-c | S174: 0 | T174: 0 | U174: c-i-c | V174: c-i-c | W174: 26129.2143 | X174: c-i-c | Y174: c-i-c | Z174: c-i-c | AA174: c-i-c | AB174: 0 | AC174: c-i-c | AD174: c-i-c | AE174: c-i-c | AF174: c-i-c | AG174: c-i-c
A175: AUG231_2 | O175: c-i-c | R175: c-i-c | U175: c-i-c | V175: c-i-c | X175: c-i-c
A176: AUG231_3 | O176: c-i-c | R176: c-i-c | U176: c-i-c | V176: c-i-c | X176: c-i-c
A177: AUG231_4 | O177: c-i-c | R177: c-i-c | U177: c-i-c | V177: c-i-c | X177: c-i-c
A178: AUG231_5 | O178: c-i-c | R178: c-i-c | U178: c-i-c | V178: c-i-c | X178: c-i-c
A179: AUG231_6 | O179: c-i-c | R179: c-i-c | U179: c-i-c | V179: c-i-c | X179: c-i-c
B180: Project Totals | L180: =SUM(L174:L179) -> 0 | M180: =SUM(M174:M179) -> 0 | O180: c-i-c | Q180: =SUM(Q174:Q179) -> 9 | R180: c-i-c | T180: =SUM(T174:T179) -> 0 | U180: c-i-c | V180: c-i-c | W180: 26129.2143 | X180: c-i-c | Y180: c-i-c | Z180: c-i-c | AA180: c-i-c | AC180: c-i-c | AD180: c-i-c | AE180: c-i-c | AF180: c-i-c | AG180: c-i-c
A181: AUG231_1 | B181: Rookwood Rd | C181: Transmission Substation | D181: DCN43 | E181: Capacity upgrade | F181: Demand growth | G181: 330/132 | H181: 750 | I181: 750 | J181: 375 | K181: 375 | L181: 0 | M181: 0 | N181: 0 | O181: c-i-c | P181: 0 | Q181: 9 | R181: c-i-c | S181: 0 | T181: 0 | U181: c-i-c | V181: c-i-c | W181: 12604.32783 | X181: c-i-c | Y181: c-i-c | Z181: c-i-c | AA181: c-i-c | AB181: 0 | AC181: c-i-c | AD181: c-i-c | AE181: c-i-c | AF181: c-i-c | AG181: c-i-c
A182: AUG231_2 | O182: c-i-c | R182: c-i-c | U182: c-i-c | V182: c-i-c | X182: c-i-c
A183: AUG231_3 | O183: c-i-c | R183: c-i-c | U183: c-i-c | V183: c-i-c | X183: c-i-c
A184: AUG231_4 | O184: c-i-c | R184: c-i-c | U184: c-i-c | V184: c-i-c | X184: c-i-c
A185: AUG231_5 | O185: c-i-c | R185: c-i-c | U185: c-i-c | V185: c-i-c | X185: c-i-c
A186: AUG231_6 | O186: c-i-c | R186: c-i-c | U186: c-i-c | V186: c-i-c | X186: c-i-c
B187: Project Totals | L187: =SUM(L181:L186) -> 0 | M187: =SUM(M181:M186) -> 0 | O187: c-i-c | Q187: =SUM(Q181:Q186) -> 9 | R187: c-i-c | T187: =SUM(T181:T186) -> 0 | U187: c-i-c | V187: c-i-c | W187: 12604.32783 | X187: c-i-c | Y187: c-i-c | Z187: c-i-c | AA187: c-i-c | AC187: c-i-c | AD187: c-i-c | AE187: c-i-c | AF187: c-i-c | AG187: c-i-c
A188: AUG231_1 | B188: Sydney South | C188: Transmission Substation | D188: DCN43 | E188: Capacity upgrade | F188: Demand growth | G188: 330/132 | H188: 2250 | I188: 2250 | J188: 1875 | K188: 1875 | L188: 0 | M188: 0 | N188: 0 | O188: c-i-c | P188: 0 | Q188: 21 | R188: c-i-c | S188: 0 | T188: 0 | U188: c-i-c | V188: c-i-c | W188: 16903.95329 | X188: c-i-c | Y188: c-i-c | Z188: c-i-c | AA188: c-i-c | AB188: 0 | AC188: c-i-c | AD188: c-i-c | AE188: c-i-c | AF188: c-i-c | AG188: c-i-c
A189: AUG231_2 | O189: c-i-c | R189: c-i-c | U189: c-i-c | V189: c-i-c | X189: c-i-c
A190: AUG231_3 | O190: c-i-c | R190: c-i-c | U190: c-i-c | V190: c-i-c | X190: c-i-c
A191: AUG231_4 | O191: c-i-c | R191: c-i-c | U191: c-i-c | V191: c-i-c | X191: c-i-c
A192: AUG231_5 | O192: c-i-c | R192: c-i-c | U192: c-i-c | V192: c-i-c | X192: c-i-c
A193: AUG231_6 | O193: c-i-c | R193: c-i-c | U193: c-i-c | V193: c-i-c | X193: c-i-c
B194: Project Totals | L194: =SUM(L188:L193) -> 0 | M194: =SUM(M188:M193) -> 0 | O194: c-i-c | Q194: =SUM(Q188:Q193) -> 21 | R194: c-i-c | T194: =SUM(T188:T193) -> 0 | U194: c-i-c | V194: c-i-c | W194: 16903.95329 | X194: c-i-c | Y194: c-i-c | Z194: c-i-c | AA194: c-i-c | AC194: c-i-c | AD194: c-i-c | AE194: c-i-c | AF194: c-i-c | AG194: c-i-c
A195: AUG231_1 | B195: Buronga Substation | C195: Transmission substation | D195: 1570 | E195: Capacity upgrade | F195: Net market benefit | G195: 330/220 | H195: 0 | I195: 600 | J195: 0 | K195: 400 | L195: 3 | M195: 600 | N195: 0 | O195: c-i-c | P195: 0 | Q195: 0 | R195: c-i-c | S195: Syncon's | T195: 0 | U195: c-i-c | V195: c-i-c | W195: 0 | X195: c-i-c | Y195: c-i-c | Z195: c-i-c | AA195: c-i-c | AB195: 0 | AC195: c-i-c | AD195: c-i-c | AE195: c-i-c | AF195: c-i-c | AG195: c-i-c
A196: AUG231_2 | O196: c-i-c | R196: c-i-c | U196: c-i-c | V196: c-i-c | X196: c-i-c
A197: AUG231_3 | O197: c-i-c | R197: c-i-c | U197: c-i-c | V197: c-i-c | X197: c-i-c
A198: AUG231_4 | O198: c-i-c | R198: c-i-c | U198: c-i-c | V198: c-i-c | X198: c-i-c
A199: AUG231_5 | O199: c-i-c | R199: c-i-c | U199: c-i-c | V199: c-i-c | X199: c-i-c
A200: AUG231_6 | O200: c-i-c | R200: c-i-c | U200: c-i-c | V200: c-i-c | X200: c-i-c
B201: Project Totals | L201: =SUM(L195:L200) -> 3 | M201: =SUM(M195:M200) -> 600 | O201: c-i-c | Q201: =SUM(Q195:Q200) -> 0 | R201: c-i-c | T201: =SUM(T195:T200) -> 0 | U201: c-i-c | V201: c-i-c | W201: 0 | X201: c-i-c | Y201: c-i-c | Z201: c-i-c | AA201: c-i-c | AC201: c-i-c | AD201: c-i-c | AE201: c-i-c | AF201: c-i-c | AG201: c-i-c
A202: AUG231_1 | B202: Dinawan (330kV) Substation | C202: Switching station | D202: 1570 | E202: New substation establishment | F202: Net market benefit | G202: 330 | H202: N/A | I202: N/A | J202: N/A | K202: N/A | L202: 0 | M202: 0 | N202: 0 | O202: c-i-c | P202: 0 | Q202: 0 | R202: c-i-c | S202: Syncon's | T202: 0 | U202: c-i-c | V202: c-i-c | W202: 0 | X202: c-i-c | Y202: c-i-c | Z202: c-i-c | AA202: c-i-c | AB202: 0 | AC202: c-i-c | AD202: c-i-c | AE202: c-i-c | AF202: c-i-c | AG202: c-i-c
... 213 more rows

Sheet 2.3 Augex (b)
B1: =(LOOKUP(dms_Model,dms_Model_List,dms_Worksheet_List)) -> REGULATORY REPORTING STATEMENT
B2: =INDEX(dms_TradingNameFull_List,MATCH(dms_TradingName,dms_TradingName_List)) -> NSW Electricity Networks Operations Pty Ltd trading as TransGrid
B3: =IF(SUM(dms_SingleYear_Model)>0,CRY,CONCATENATE(FRCP_y1," to ",dms_MultiYear_FinalYear_Result)) -> 2023-24 to 2027-28
B4: 2.3 AUGEX PROJECTS
B6: There is ONE table on this worksheet.
B8: 2.3.4 - AUGEX - TOTAL EXPENDITURE
C9: =CONCATENATE("EXPENDITURE Forecast ($0's. real ",dms_DollarReal,")") -> EXPENDITURE Forecast ($0's. real June 2023)
B10: As incurred | C10: =dms_y1 -> 2021-22 | D10: =dms_y2 -> 2022-23 | E10: =dms_y3 -> 2023-24 | F10: =dms_y4 -> 2024-25 | G10: =dms_y5 -> 2025-26 | H10: =dms_y6 -> 2026-27 | I10: =dms_y7 -> 2027-28
B11: Substations | C11: 230034862 | D11: 280323411 | E11: 86950879.37 | F11: 46862232.96 | G11: 29471429.07 | H11: 22328633.26 | I11: 41380418.12
B12: Lines | C12: 299060285 | D12: 475472531.1 | E12: 335049360.3 | F12: 10328151.02 | G12: 545875.313 | H12: 1949396.882 | I12: 8172943.57
B13: Other assets | C13: 0 | D13: 0 | E13: 78996655.09 | F13: 81077470.17 | G13: 7506174.517 | H13: 9137618.495 | I13: 17406032.49
B14: Total | C14: =SUM(C11:C13) -> 529095147 | D14: 755795942.1 | E14: 500996894.8 | F14: 138267854.1 | G14: 37523478.9 | H14: 33415648.64 | I14: 66959394.18

Sheet 2.5 Connections
B1: =(LOOKUP(dms_Model,dms_Model_List,dms_Worksheet_List)) -> REGULATORY REPORTING STATEMENT
B2: =INDEX(dms_TradingNameFull_List,MATCH(dms_TradingName,dms_TradingName_List)) -> NSW Electricity Networks Operations Pty Ltd trading as TransGrid
B3: =IF(SUM(dms_SingleYear_Model)>0,CRY,CONCATENATE(FRCP_y1," to ",dms_MultiYear_FinalYear_Result)) -> 2023-24 to 2027-28
B4: 2.5 CONNECTIONS EXPENDITURE
B6: There are TWO tables on this worksheet. Each has been grouped (or sub-grouped). See the Instructions sheet on how to group or ungroup data.
B8: 2.5.1 - EXPENDITURE ON CONNECTION PROJECTS
C9: =CONCATENATE("EXPENDITURE Forecast ($0's. real ",dms_DollarReal,")") -> EXPENDITURE Forecast ($0's. real June 2023)
C10: =dms_y1 -> 2021-22 | D10: =dms_y2 -> 2022-23 | E10: =dms_y3 -> 2023-24 | F10: =dms_y4 -> 2024-25 | G10: =dms_y5 -> 2025-26 | H10: =dms_y6 -> 2026-27 | I10: =dms_y7 -> 2027-28
B11: DIRECT MATERIALS EXPENDITURE
B12: Sydney West load increase - Need N2291 | C12: c-i-c | D12: c-i-c | E12: c-i-c | F12: c-i-c | G12: c-i-c | H12: c-i-c | I12: c-i-c
B13: Macarthur 66kV connection Mt Gilead sub - Need 1444 | C13: c-i-c | D13: c-i-c | E13: c-i-c | F13: c-i-c | G13: c-i-c | H13: c-i-c | I13: c-i-c
B14: Load Growth at West Syd Employment Area - Need N2203 | C14: c-i-c | D14: c-i-c | E14: c-i-c | F14: c-i-c | G14: c-i-c | H14: c-i-c | I14: c-i-c
B15: Sydney West Battery BESS Install | C15: c-i-c | D15: c-i-c | E15: c-i-c | F15: c-i-c | G15: c-i-c | H15: c-i-c | I15: c-i-c
B16: New Macquarie STS connection - Need N2313 | C16: c-i-c | D16: c-i-c | E16: c-i-c | F16: c-i-c | G16: c-i-c | H16: c-i-c | I16: c-i-c
B17: Connection of Molonglo Zone Substation - Need 1695 | C17: c-i-c | D17: c-i-c | E17: c-i-c | F17: c-i-c | G17: c-i-c | H17: c-i-c | I17: c-i-c
B18: Vineyard 132kV connection - Box Hill Sub - Need 691 | C18: c-i-c | D18: c-i-c | E18: c-i-c | F18: c-i-c | G18: c-i-c | H18: c-i-c | I18: c-i-c
B19: Supply to Strathnairn area (EVOEnergy) | C19: c-i-c | D19: c-i-c | E19: c-i-c | F19: c-i-c | G19: c-i-c | H19: c-i-c | I19: c-i-c
B20: Condition of AusGrid cables 9SA and 92P | C20: c-i-c | D20: c-i-c | E20: c-i-c | F20: c-i-c | G20: c-i-c | H20: c-i-c | I20: c-i-c
B37: DIRECT LABOUR EXPENDITURE
B38: =IF(ISBLANK(B12),"",B12) -> Sydney West load increase - Need N2291 | C38: c-i-c | D38: c-i-c | E38: c-i-c | F38: c-i-c | G38: c-i-c | H38: c-i-c | I38: c-i-c
B39: Macarthur 66kV connection Mt Gilead sub - Need 1444 | C39: c-i-c | D39: c-i-c | E39: c-i-c | F39: c-i-c | G39: c-i-c | H39: c-i-c | I39: c-i-c
B40: Load Growth at West Syd Employment Area - Need N2203 | C40: c-i-c | D40: c-i-c | E40: c-i-c | F40: c-i-c | G40: c-i-c | H40: c-i-c | I40: c-i-c
B41: Sydney West Battery BESS Install | C41: c-i-c | D41: c-i-c | E41: c-i-c | F41: c-i-c | G41: c-i-c | H41: c-i-c | I41: c-i-c
B42: New Macquarie STS connection - Need N2313 | C42: c-i-c | D42: c-i-c | E42: c-i-c | F42: c-i-c | G42: c-i-c | H42: c-i-c | I42: c-i-c
B43: Connection of Molonglo Zone Substation - Need 1695 | C43: c-i-c | D43: c-i-c | E43: c-i-c | F43: c-i-c | G43: c-i-c | H43: c-i-c | I43: c-i-c
B44: Vineyard 132kV connection - Box Hill Sub - Need 691 | C44: c-i-c | D44: c-i-c | E44: c-i-c | F44: c-i-c | G44: c-i-c | H44: c-i-c | I44: c-i-c
B45: Supply to Strathnairn area (EVOEnergy) | C45: c-i-c | D45: c-i-c | E45: c-i-c | F45: c-i-c | G45: c-i-c | H45: c-i-c | I45: c-i-c
B46: Condition of AusGrid cables 9SA and 92P | C46: c-i-c | D46: c-i-c | E46: c-i-c | F46: c-i-c | G46: c-i-c | H46: c-i-c | I46: c-i-c
B66: 2.5.2 - DESCRIPTION OF CONNECTION PROJECTS
C67: CONNECTION RATING (MVA) | D67: CONNECTION VOLTAGE (KV) | E67: UNDERGROUND / OVERHEAD (drop down) | F67: YEAR CONNECTION PROJECT COMPLETED
B68: =IF(ISBLANK(B12),"",B12) -> Sydney West load increase - Need N2291 | C68: 320 (OFS details) | D68: 132 | E68: Overhead | F68: 2022
B69: Macarthur 66kV connection Mt Gilead sub - Need 1444 | C69: 143 (OFS details) | D69: 66 | E69: Overhead | F69: 2023
B70: Load Growth at West Syd Employment Area - Need N2203 | C70: 270 (OFS details) | D70: 132 | E70: Underground | F70: 2022
B71: Sydney West Battery BESS Install | C71: 62 (26G) | D71: 132 | E71: Underground | F71: 2022
B72: New Macquarie STS connection - Need N2313 | C72: 170 (92A), 170 (92B) | D72: 132 | E72: Overhead | F72: 2022
B73: Connection of Molonglo Zone Substation - Need 1695 | C73: 446 (9HC-2) | D73: 132 | E73: Overhead | F73: 2023
B74: Vineyard 132kV connection - Box Hill Sub - Need 691 | C74: 572 (OFS details) | D74: 132 | E74: Overhead | F74: 2023
B75: Supply to Strathnairn area (EVOEnergy) | C75: 720 (OFS details) | D75: 132 | E75: Overhead | F75: 2027
B76: Condition of AusGrid cables 9SA and 92P | C76: 329 (9SA), 329 (92P) | D76: 132 | E76: Underground | F76: 2027

Sheet 2.6 Non-network
B1: =(LOOKUP(dms_Model,dms_Model_List,dms_Worksheet_List)) -> REGULATORY REPORTING STATEMENT
B2: =INDEX(dms_TradingNameFull_List,MATCH(dms_TradingName,dms_TradingName_List)) -> NSW Electricity Networks Operations Pty Ltd trading as TransGrid
B3: =IF(SUM(dms_SingleYear_Model)>0,CRY,CONCATENATE(FRCP_y1," to ",dms_MultiYear_FinalYear_Result)) -> 2023-24 to 2027-28
B4: 2.6 NON NETWORK EXPENDITURE
B6: There are THREE tables on this worksheet - each has been 'grouped' for easy navigation. See the Instructions sheet on how to group or ungroup tables.
B8: 2.6.1 - NON-NETWORK EXPENDITURE
E9: =CONCATENATE("EXPENDITURE Forecast ($0's. real ",dms_DollarReal,")") -> EXPENDITURE Forecast ($0's. real June 2023)
B10: SERVICE SUBCATEGORY | C10: ASSET CATEGORY | E10: =dms_y1 -> 2021-22 | F10: =dms_y2 -> 2022-23 | G10: =dms_y3 -> 2023-24 | H10: =dms_y4 -> 2024-25 | I10: =dms_y5 -> 2025-26 | J10: =dms_y6 -> 2026-27 | K10: =dms_y7 -> 2027-28
B11: OPEX
B12: IT & COMMUNICATIONS | C12: Total IT and communications | E12: 54347717.09 | F12: 33662746.32 | G12: 38811490.8 | H12: 40351296.09 | I12: 40529926.72 | J12: 40708140.18 | K12: 40870154.48
B13: MOTOR VEHICLES | C13: Car | E13: 183694.6982 | F13: 184501.3481 | G13: 189845.5727 | H13: 198928.0634 | I13: 201677.3085 | J13: 201964.5853 | K13: 204618.9304
C14: Light commercial vehicle | E14: 3313972.136 | F14: 3328524.627 | G14: 3424937.923 | H14: 3588791.978 | I14: 3638390.152 | J14: 3643572.812 | K14: 3691458.93
C15: Elevated work platform (LCV) | E15: 59652.03205 | F15: 59913.97922 | G15: 61649.43407 | H15: 64598.83344 | I15: 65491.60857 | J15: 65584.89728 | K15: 66446.85511
C16: Elevated work platform (HCV) | E16: 157533.2142 | F16: 158224.9824 | G16: 162808.0917 | H16: 170597.0697 | I16: 172954.772 | J16: 173201.1353 | K16: 175477.4532
C17: Heavy commercial vehicle | E17: 786488.0773 | F17: 789941.7455 | G17: 812823.0204 | H17: 851709.6663 | I17: 863480.5477 | J17: 864710.5218 | K17: 876075.0896
B18: BUILDINGS AND PROPERTY | C18: Total buildings and property expenditure | E18: 0 | F18: 0 | G18: 0 | H18: 0 | I18: 0 | J18: 0 | K18: 0
B19: OTHER | C19: Other expenditure | E19: 0 | F19: 0 | G19: 0 | H19: 0 | I19: 0 | J19: 0 | K19: 0
B20: OTHER - TNSP nominated | C20: Miscellaneous mobile plant items (e.g Mowers, Excavators and Forklifts) | E20: 250851.3542 | F20: 251952.906 | G20: 259250.9172 | H20: 271653.8615 | I20: 275408.1988 | J20: 275800.5006 | K20: 279425.2436
B31: CAPEX
B32: IT & COMMUNICATIONS | C32: Total IT and communications | E32: 4068246.424 | F32: 227881.0273 | G32: 25029717.34 | H32: 19169612.85 | I32: 18282041.97 | J32: 13739233.91 | K32: 10682770.14
B33: MOTOR VEHICLES | C33: Car | E33: 456044.1703 | F33: 176957.7986 | G33: 9250698.094 | H33: 9850601.4 | I33: 9525960.206 | J33: 10179445.07 | K33: 9531213.3
C34: Light commercial vehicle | E34: 5062090.29 | F34: 2090124.399 | G34: 0 | H34: 0 | I34: 199617.5625 | J34: 0 | K34: 78796.40625
C35: Elevated work platform (LCV) | E35: 98464.08223 | F35: 374139.3457 | G35: 0 | H35: 0 | I35: 0 | J35: 0 | K35: 0
C36: Elevated work platform (HCV) | E36: 217657.4449 | F36: 0 | G36: 0 | H36: 0 | I36: 0 | J36: 0 | K36: 0
C37: Heavy commercial vehicle | E37: 725524.8164 | F37: 682551.509 | G37: 0 | H37: 0 | I37: 0 | J37: 0 | K37: 0
B38: BUILDINGS AND PROPERTY | C38: Total buildings and property expenditure | E38: 8806878.173 | F38: 3876779.319 | G38: 6456573.717 | H38: 5776608.006 | I38: 3797397.271 | J38: 3780098.445 | K38: 2991399.214
B39: OTHER | C39: Other expenditure | E39: 0 | F39: 0 | G39: 0 | H39: 0 | I39: 0 | J39: 0 | K39: 0
B40: OTHER - TNSP nominated | C40: Miscellaneous plant | E40: 1026696.386 | F40: 1011187.421 | G40: 0 | H40: 0 | I40: 0 | J40: 0 | K40: 0
C41: Miscellaneous mobile plant (e.g. Mowers, Excavators, Forklifts) | E41: 1175350.203 | F41: 637048.0751 | G41: 0 | H41: 0 | I41: 0 | J41: 0 | K41: 0
B54: 2.6.3 - ANNUAL DESCRIPTOR METRICS
B55: IT & COMMUNICATIONS
E56: VOLUMES (0's)
E57: =dms_y1 -> 2021-22 | F57: =dms_y2 -> 2022-23 | G57: =dms_y3 -> 2023-24 | H57: =dms_y4 -> 2024-25 | I57: =dms_y5 -> 2025-26 | J57: =dms_y6 -> 2026-27 | K57: =dms_y7 -> 2027-28
B58: Employee numbers | E58: 1260 | F58: 1225 | G58: 1123 | H58: 1087 | I58: 1083 | J58: 1079 | K58: 1075
B59: User numbers | E59: 1586 | F59: 1551 | G59: 1449 | H59: 1413 | I59: 1409 | J59: 1405 | K59: 1401
B60: Number of devices | E60: 2426.58 | F60: 2373.03 | G60: 2216.97 | H60: 2161.89 | I60: 2155.77 | J60: 2149.65 | K60: 2143.53
B62: MOTOR VEHICLES
E63: VOLUMES (0's or %)
D64: Units | E64: =dms_y1 -> 2021-22 | F64: =dms_y2 -> 2022-23 | G64: =dms_y3 -> 2023-24 | H64: =dms_y4 -> 2024-25 | I64: =dms_y5 -> 2025-26 | J64: =dms_y6 -> 2026-27 | K64: =dms_y7 -> 2027-28
B65: CAR | C65: Average kilometres travelled | D65: 0's | E65: 10314 | F65: 14877 | G65: 15259 | H65: 15640 | I65: 16031 | J65: 16432 | K65: 16843
C66: Number purchased | D66: 0's | E66: 10 | F66: 4 | G66: 14 | H66: 13 | I66: 9 | J66: 5 | K66: 14
C67: Number leased | D67: 0's | E67: 0 | F67: 0 | G67: 0 | H67: 0 | I67: 0 | J67: 0 | K67: 0
C68: Number in fleet | D68: 0's | E68: 30 | F68: 30 | G68: 29 | H68: 28 | I68: 28 | J68: 28 | K68: 28
C69: Proportion of total fleet expenditure allocated as regulatory expenditure | D69: % | E69: 1 | F69: 1 | G69: 1 | H69: 1 | I69: 1 | J69: 1 | K69: 1
B70: LIGHT COMMERCIAL VEHICLE | C70: Average kilometres travelled | D70: 0's | E70: 26325 | F70: 26654.34749 | G70: 27320.70618 | H70: 28003.72383 | I70: 28703.81693 | J70: 29421.41235 | K70: 30156.94766
C71: Number purchased | D71: 0's | E71: 80 | F71: 34 | G71: 93 | H71: 95 | I71: 75 | J71: 92 | K71: 66
C72: Number leased | D72: 0's | E72: 0 | F72: 0 | G72: 0 | H72: 0 | I72: 0 | J72: 0 | K72: 0
C73: Number in fleet | D73: 0's | E73: 401 | F73: 405 | G73: 405 | H73: 405 | I73: 405 | J73: 405 | K73: 405
C74: Proportion of total fleet expenditure allocated as regulatory expenditure | D74: % | E74: 1 | F74: 1 | G74: 1 | H74: 1 | I74: 1 | J74: 1 | K74: 1
B75: ELEVATED WORK PLATFORM (LCV) | C75: Average kilometres travelled | D75: 0's | E75: 37 | F75: 38 | G75: 39 | H75: 40 | I75: 41 | J75: 42 | K75: 43
C76: Number purchased | D76: 0's | E76: 1 | F76: 5 | G76: 2 | H76: 5 | I76: 5 | J76: 1 | K76: 1
C77: Number leased | D77: 0's | E77: 0 | F77: 0 | G77: 0 | H77: 0 | I77: 0 | J77: 0 | K77: 0
C78: Number in fleet | D78: 0's | E78: 22 | F78: 22 | G78: 22 | H78: 22 | I78: 22 | J78: 22 | K78: 22
C79: Proportion of total fleet expenditure allocated as regulatory expenditure | D79: % | E79: 1 | F79: 1 | G79: 1 | H79: 1 | I79: 1 | J79: 1 | K79: 1
B80: ELEVATED WORK PLATFORM (HCV) | C80: Average kilometres travelled | D80: 0's | E80: 87 | F80: 88 | G80: 89 | H80: 90 | I80: 91 | J80: 92 | K80: 93
C81: Number purchased | D81: 0's | E81: 4 | F81: 2 | G81: 0 | H81: 0 | I81: 1 | J81: 1 | K81: 4
C82: Number leased | D82: 0's | E82: 0 | F82: 0 | G82: 0 | H82: 0 | I82: 0 | J82: 0 | K82: 0
C83: Number in fleet | D83: 0's | E83: 22 | F83: 22 | G83: 22 | H83: 22 | I83: 22 | J83: 22 | K83: 22
C84: Proportion of total fleet expenditure allocated as regulatory expenditure | D84: % | E84: 1 | F84: 1 | G84: 1 | H84: 1 | I84: 1 | J84: 1 | K84: 1
B85: HEAVY COMMERCIAL VEHICLE | C85: Average kilometres travelled | D85: 0's | E85: 9959 | F85: 9355.110156 | G85: 9588.98791 | H85: 9828.712608 | I85: 10074.43042 | J85: 10326.29118 | K85: 10584.44846
C86: Number purchased | D86: 0's | E86: 5 | F86: 6 | G86: 3 | H86: 1 | I86: 2 | J86: 5 | K86: 2
C87: Number leased | D87: 0's | E87: 0 | F87: 0 | G87: 0 | H87: 0 | I87: 0 | J87: 0 | K87: 0
C88: Number in fleet | D88: 0's | E88: 63 | F88: 63 | G88: 63 | H88: 63 | I88: 63 | J88: 63 | K88: 63
C89: Proportion of total fleet expenditure allocated as regulatory expenditure | D89: % | E89: 1 | F89: 1 | G89: 1 | H89: 1 | I89: 1 | J89: 1 | K89: 1
B93: 2.6.4 - INFORMATION & COMMUNICATIONS TECHNOLOGY - CAPEX BY PURPOSE
E94: =CONCATENATE("EXPENDITURE Forecast ($0's. real ",dms_DollarReal,")") -> EXPENDITURE Forecast ($0's. real June 2023)
E95: =dms_y1 -> 2021-22 | F95: =dms_y2 -> 2022-23 | G95: =dms_y3 -> 2023-24 | H95: =dms_y4 -> 2024-25 | I95: =dms_y5 -> 2025-26 | J95: =dms_y6 -> 2026-27 | K95: =dms_y7 -> 2027-28
B96: RECURRENT
B97: Total IT and communications | C97: 0 | D97: 0 | E97: 4068247.481 | F97: 227880.6633 | G97: 21680209.06 | H97: 15523430.22 | I97: 15546220.51 | J97: 13739233.91 | K97: 10682770.14
B107: NON-RECURRENT
B108: Maintaining existing services, functionalities, capability and/or market benefits | E108: 0 | F108: 0 | G108: 590342.0635 | H108: 25912.63521 | I108: 0 | J108: 0 | K108: 0
B109: Complying with new / altered regulatory obligations / requirements | E109: 0 | F109: 0 | G109: 1679987.51 | H109: 3262878.86 | I109: 2735821.459 | J109: 0 | K109: 0
B110: New or expanded ICT capability, functions and services | E110: 0 | F110: 0 | G110: 1079178.713 | H110: 357391.1359 | I110: 0 | J110: 0 | K110: 0

Sheet 2.10 Overheads
B1: =(LOOKUP(dms_Model,dms_Model_List,dms_Worksheet_List)) -> REGULATORY REPORTING STATEMENT
B2: =INDEX(dms_TradingNameFull_List,MATCH(dms_TradingName,dms_TradingName_List)) -> NSW Electricity Networks Operations Pty Ltd trading as TransGrid
B3: =IF(SUM(dms_SingleYear_Model)>0,CRY,CONCATENATE(FRCP_y1," to ",dms_MultiYear_FinalYear_Result)) -> 2023-24 to 2027-28
B4: 2.10 OVERHEADS
B6: There are TWO tables on this worksheet. Each has been grouped (and sub-grouped) for ease of navigation. See the Instructions sheet on how to group or ungroup tables.
B8: 2.10.1 - NETWORK OVERHEADS EXPENDITURE
D9: =CONCATENATE("EXPENDITURE Forecast ($0's. real ",dms_DollarReal,")") -> EXPENDITURE Forecast ($0's. real June 2023)
D10: =dms_y1 -> 2021-22 | E10: =dms_y2 -> 2022-23 | F10: =dms_y3 -> 2023-24 | G10: =dms_y4 -> 2024-25 | H10: =dms_y5 -> 2025-26 | I10: =dms_y6 -> 2026-27 | J10: =dms_y7 -> 2027-28
B11: OPEX
B12: Prescribed Transmission Services | C12: Total | D12: 25329924.77 | E12: 24371237.91 | F12: 23623354.62 | G12: 24074103.54 | H12: 25185437.44 | I12: 25485192.66 | J12: 25536852.22
B13: CAPEX
B14: Prescribed Transmission Services | C14: Total | D14: 34906397.07 | E14: 27168399.43 | F14: 29767721.65 | G14: 29253933 | H14: 27569617.98 | I14: 27222779.88 | J14: 28163930.54
B15: OTHER TRANSMISSION SERVICES
B16: Negotiated Services | C16: Total | D16: 141802.9422 | E16: 35534.09279 | F16: 497888.9171 | G16: 844146.6521 | H16: 524215.0766 | I16: 228773.3331 | J16: 230192.9594
B17: Unregulated Services | C17: Total | D17: 11347915.26 | E17: 10458371.81 | F17: 5597589.369 | G17: 6982094.343 | H17: 4399911.876 | I17: 3168681.389 | J17: 3219365.302
B21: 2.10.2 - CORPORATE OVERHEADS EXPENDITURE
D22: =CONCATENATE("EXPENDITURE Forecast ($0's. real ",dms_DollarReal,")") -> EXPENDITURE Forecast ($0's. real June 2023)
D23: =dms_y1 -> 2021-22 | E23: =dms_y2 -> 2022-23 | F23: =dms_y3 -> 2023-24 | G23: =dms_y4 -> 2024-25 | H23: =dms_y5 -> 2025-26 | I23: =dms_y6 -> 2026-27 | J23: =dms_y7 -> 2027-28
B24: OPEX
B25: Prescribed Transmission Services | C25: Total | D25: 119431069.4 | E25: 99041535.96 | F25: 100931312.7 | G25: 105590609.3 | H25: 106847340.9 | I25: 107063925 | J25: 108271691.4
B26: CAPEX
B27: Prescribed Transmission Services | C27: Total | D27: 8461294.903 | E27: 6585607.765 | F27: 5176465.723 | G27: 4858070.692 | H27: 4474834.364 | I27: 4412572.695 | J27: 4539133.506
B28: OTHER TRANSMISSION SERVICES
B29: Negotiated Services | C29: Total | D29: 309637.4848 | E29: 74303.97411 | F29: 1041116.356 | G29: 1765162.582 | H29: 1096165.975 | I29: 478379.1138 | J29: 481347.6398
B30: Unregulated Services | C30: Total | D30: 24779034.08 | E30: 21869098.86 | F30: 11704903.74 | G30: 14599988.82 | H30: 9200486.419 | I30: 6625907.725 | J30: 6731890.905

Sheet 2.11 Labour (hidden)
B1: =(LOOKUP(dms_Model,dms_Model_List,dms_Worksheet_List)) -> REGULATORY REPORTING STATEMENT
B2: =INDEX(dms_TradingNameFull_List,MATCH(dms_TradingName,dms_TradingName_List)) -> NSW Electricity Networks Operations Pty Ltd trading as TransGrid
B3: =IF(SUM(dms_SingleYear_Model)>0,CRY,CONCATENATE(FRCP_y1," to ",dms_MultiYear_FinalYear_Result)) -> 2023-24 to 2027-28
B4: 2.11 LABOUR
B6: There is ONE table on this worksheet. The table has been 'grouped' (and sub-grouped) for easy navigation. See the Instructions sheet on how to group or ungroup data.
B8: Table numbering in this template starts at 2.11.3. Tables 2.11.1 & 2.11.2 appear in the Category Analysis RIN and are not required for this RIN.
B10: 2.11.3 - LABOUR / NON-LABOUR EXPENDITURE SPLIT
B11: OPEX
C12: EXPENDITURE
C13: ($0's, nominal) | H13: =CONCATENATE("($0's, real ", dms_DollarReal,")") -> ($0's, real June 2023)
C14: =PRCP_y4 -> 2017-18 | D14: =PRCP_y5 -> 2018-19 | E14: =CRCP_y1 -> 2018-19 | F14: =CRCP_y2 -> 2019-20 | G14: =CRCP_y3 -> 2020-21 | H14: =dms_y1 -> 2021-22 | I14: =dms_y2 -> 2022-23 | J14: =dms_y3 -> 2023-24 | K14: =dms_y4 -> 2024-25 | L14: =dms_y5 -> 2025-26 | M14: =dms_y6 -> 2026-27 | N14: =dms_y7 -> 2027-28
B15: In-house labour expenditure
B16: Labour expenditure outsourced to related parties
B17: Labour expenditure outsourced to unrelated parties
B18: Controllable non-labour expenditure
B19: Uncontrollable non-labour expenditure
B20: Total | C20: =SUM(C15:C19) -> 0 | D20: 0 | E20: 0 | F20: 0 | G20: 0 | H20: 0 | I20: 0 | J20: 0 | K20: 0 | L20: 0 | M20: 0 | N20: 0
B22: CAPEX
C23: EXPENDITURE
C24: ($0's, nominal) | H24: =CONCATENATE("($0's, real ", dms_DollarReal,")") -> ($0's, real June 2023)
C25: =PRCP_y4 -> 2017-18 | D25: =PRCP_y5 -> 2018-19 | E25: =CRCP_y1 -> 2018-19 | F25: =CRCP_y2 -> 2019-20 | G25: =CRCP_y3 -> 2020-21 | H25: =dms_y1 -> 2021-22 | I25: =dms_y2 -> 2022-23 | J25: =dms_y3 -> 2023-24 | K25: =dms_y4 -> 2024-25 | L25: =dms_y5 -> 2025-26 | M25: =dms_y6 -> 2026-27 | N25: =dms_y7 -> 2027-28
B26: In-house labour expenditure
B27: Labour expenditure outsourced to related parties
B28: Labour expenditure outsourced to unrelated parties
B29: Controllable non-labour expenditure
B30: Uncontrollable non-labour expenditure
B31: Total | C31: =SUM(C26:C30) -> 0 | D31: 0 | E31: 0 | F31: 0 | G31: 0 | H31: 0 | I31: 0 | J31: 0 | K31: 0 | L31: 0 | M31: 0 | N31: 0

Sheet 2.14 Forecast price changes
B1: =(LOOKUP(dms_Model,dms_Model_List,dms_Worksheet_List)) -> REGULATORY REPORTING STATEMENT
B2: =INDEX(dms_TradingNameFull_List,MATCH(dms_TradingName,dms_TradingName_List)) -> NSW Electricity Networks Operations Pty Ltd trading as TransGrid
B3: =IF(SUM(dms_SingleYear_Model)>0,CRY,CONCATENATE(FRCP_y1," to ",dms_MultiYear_FinalYear_Result)) -> 2023-24 to 2027-28
B4: 2.14 FORECAST PRICE CHANGES
B6: 2.14.2 - FORECAST CAPEX AND OPEX PRICE CHANGES
C7: Price changes (% YoY real) Current regulatory period | E7: Price changes (%YoY real) Forthcoming regulatory period
C8: Forecast
C9: =CRCP_y4 -> 2021-22 | D9: =CRCP_y5 -> 2022-23 | E9: =FRCP_y1 -> 2023-24 | F9: =FRCP_y2 -> 2024-25 | G9: =FRCP_y3 -> 2025-26 | H9: =FRCP_y4 -> 2026-27 | I9: =FRCP_y5 -> 2027-28
B10: OPEX
B11: Labour | C11: -0.009694777413 | D11: 0.003550791955 | E11: 0.004585405545 | F11: 0.007648257857 | G11: 0.009003836525 | H11: 0.00823445998 | I11: 0.006151069807
B12: Non Labour | C12: 0 | D12: 0 | E12: 0 | F12: 0 | G12: 0 | H12: 0 | I12: 0
B14: CAPEX
B15: Labour | C15: -0.009694777413 | D15: 0.003550791955 | E15: 0.004585405545 | F15: 0.007648257857 | G15: 0.009003836525 | H15: 0.00823445998 | I15: 0.006151069807
B16: Non Labour | C16: 0 | D16: 0 | E16: 0 | F16: 0 | G16: 0 | H16: 0 | I16: 0

Sheet 2.16 Opex Summary
B1: =(LOOKUP(dms_Model,dms_Model_List,dms_Worksheet_List)) -> REGULATORY REPORTING STATEMENT
B2: =INDEX(dms_TradingNameFull_List,MATCH(dms_TradingName,dms_TradingName_List)) -> NSW Electricity Networks Operations Pty Ltd trading as TransGrid
B3: =IF(SUM(dms_SingleYear_Model)>0,CRY,CONCATENATE(FRCP_y1," to ",dms_MultiYear_FinalYear_Result)) -> 2023-24 to 2027-28
B4: 2.16 OPEX SUMMARY
B6: Instructions | K6: IMPORTANT!
B7: =CONCATENATE("Complete the tables below in accordance with the regulatory information notice. ",dms_TradingName, "'s total forecast opex must reconcile to Table 2.16.1. If ",dms_TradingName," did not forecast its total opex using a Base Year approach, total forecast opex must reconcile to Table 2.16.2") -> Complete the tables below in accordance with the regulatory information notice. TransGrid's total forecast opex must reconcile to Table 2.16.1. If TransGrid did not forecast its total opex using a Base Year approach, total forecast opex must reconcile to Table 2.16.2 | K7: =CONCATENATE("Has ",dms_TradingName," used a base-step-trend model to derive its opex forecast? ") -> Has TransGrid used a base-step-trend model to derive its opex forecast? | M7: Yes
B8: The total step changes and category specific forecasts in Table 2.16.1 must reconcile (in each year) to the total step changes and category secific forecasts for each year in Tables 2.17.1 and 2.17.5 of worksheet 2.17 Step Changes.") | K8: Yes / No
K9: Please nominate the base year. | M9: 2021-22
B11: 2.16.1 - PRESCRIBED TRANSMISSION SERVICES - OPEX BY DRIVER
C12: =CONCATENATE("Forecast ($0's, real ", dms_DollarReal, ")") -> Forecast ($0's, real June 2023)
C13: =CRCP_y1 -> 2018-19 | D13: =CRCP_y2 -> 2019-20 | E13: =CRCP_y3 -> 2020-21 | F13: =CRCP_y4 -> 2021-22 | G13: =CRCP_y5 -> 2022-23 | H13: =FRCP_y1 -> 2023-24 | I13: =FRCP_y2 -> 2024-25 | J13: =FRCP_y3 -> 2025-26 | K13: =FRCP_y4 -> 2026-27 | L13: =FRCP_y5 -> 2027-28
B14: Base year total opex, excluding category specific | F14: 221926033.7 | G14: 193243157.4 | H14: 184854725.3 | I14: 184854725.3 | J14: 184854725.3 | K14: 184854725.3 | L14: 184854725.3
B15: Increment from base year to final year | G15: -7915546.75 | H15: -7915546.75 | I15: -7915546.75 | J15: -7915546.75 | K15: -7915546.75 | L15: -7915546.75
B16: Price growth | H16: 571181.8748 | I16: 1526963.961 | J16: 2658207.461 | K16: 3699344.253 | L16: 4481572.848
B17: Output growth | H17: 2323561.897 | I17: 10208127.08 | J17: 10944273.17 | K17: 11793290.99 | L17: 12819711.9
B18: Productivity growth | H18: -899169.6115 | I18: -1882025.839 | J18: -2843858.081 | K18: -3819867.599 | L18: -4807693.66
B19: Step changes | H19: 9929028.946 | I19: 10790064.95 | J19: 12236117.67 | K19: 11727247.08 | L19: 13166409.3
B20: Category specific | F20: 1554696.035 | G20: 0 | H20: 0 | I20: 0 | J20: 0 | K20: 0 | L20: 0
B21: Total opex | C21: =SUM(C14:C20) -> 0 | D21: 0 | E21: 0 | F21: 223480729.8 | G21: 185327610.7 | H21: 188863781.6 | I21: 197582308.7 | J21: 199933918.8 | K21: 200339193.3 | L21: 202599178.9
B25: 2.16.2 - PRESCRIBED TRANSMISSION SERVICES - OPEX BY CATEGORY
C26: =CONCATENATE("Forecast ($0's, real ", dms_DollarReal, ")") -> Forecast ($0's, real June 2023)
C27: =CRCP_y1 -> 2018-19 | D27: =CRCP_y2 -> 2019-20 | E27: =CRCP_y3 -> 2020-21 | F27: =CRCP_y4 -> 2021-22 | G27: =CRCP_y5 -> 2022-23 | H27: =FRCP_y1 -> 2023-24 | I27: =FRCP_y2 -> 2024-25 | J27: =FRCP_y3 -> 2025-26 | K27: =FRCP_y4 -> 2026-27 | L27: =FRCP_y5 -> 2027-28
B58: Total opex | C58: =SUM(C28:C57) -> 0 | D58: 0 | E58: 0 | F58: 0 | G58: 0 | H58: 0 | I58: 0 | J58: 0 | K58: 0 | L58: 0

Sheet 2.17 Step Changes
B1: =(LOOKUP(dms_Model,dms_Model_List,dms_Worksheet_List)) -> REGULATORY REPORTING STATEMENT
B2: =INDEX(dms_TradingNameFull_List,MATCH(dms_TradingName,dms_TradingName_List)) -> NSW Electricity Networks Operations Pty Ltd trading as TransGrid
B3: =IF(SUM(dms_SingleYear_Model)>0,CRY,CONCATENATE(FRCP_y1," to ",dms_MultiYear_FinalYear_Result)) -> 2023-24 to 2027-28
B4: 2.17 STEP CHANGES
B6: 2.17.1 - STEP CHANGES FOR PRESCRIBED TRANSMISSION SERVICES - FORECAST OPEX
F7: EXPENDITURE
F8: =CONCATENATE("Forecast ($0's, real ", dms_DollarReal, ")") -> Forecast ($0's, real June 2023)
B9: Step change | C9: Description | D9: =CRCP_y1 -> 2018-19 | E9: =CRCP_y2 -> 2019-20 | F9: =CRCP_y4 -> 2021-22 | G9: =CRCP_y5 -> 2022-23 | H9: =FRCP_y1 -> 2023-24 | I9: =FRCP_y2 -> 2024-25 | J9: =FRCP_y3 -> 2025-26 | K9: =FRCP_y4 -> 2026-27 | L9: =FRCP_y5 -> 2027-28
B10: 1. Increase in insurance premiums | C10: Change in insurance market beyond our control | H10: 3769251.215 | I10: 5104116.271 | J10: 6076339.939 | K10: 7018373.842 | L10: 7983707.003
B11: 2. Cyber and critical infrastructure security - • ICT Cyber Security | C11: New regulatory obligation | H11: 3722342.231 | I11: 3721291.612 | J11: 3722342.231 | K11: 3721291.612 | L11: 3722342.231
B12: 2. Cyber and critical infrastructure security - • OT security | C12: New regulatory obligation | H12: 703914.5625 | I12: 703914.5625 | J12: 703914.5625 | K12: 703914.5625 | L12: 703914.5625
B13: 2. Cyber and critical infrastructure security - • Physical infrastructure security | C13: New regulatory obligation | H13: 756445.5 | I13: 283667.0625 | J13: 756445.5 | K13: 283667.0625 | L13: 756445.5
B14: 3. ISP Preparatory Activity | C14: New regulatory obligation | H14: 977075.4375 | I14: 977075.4375 | J14: 977075.4375 | K14: 0 | L14: 0
B24: Total | D24: =SUM(D17:D23) -> 0 | E24: 0 | F24: =SUM(F10:F23) -> 0 | G24: =SUM(G10:G23) -> 0 | H24: 9929028.946 | I24: 10790064.95 | J24: 12236117.67 | K24: 11727247.08 | L24: 13166409.3
B25: Check | H25: =IF(ROUND(H$24,0)-ROUND('2.16 Opex Summary'!H$19,0)=0,"OK","Error") -> OK | I25: =IF(ROUND(I$24,0)-ROUND('2.16 Opex Summary'!I$19,0)=0,"OK","Error") -> OK | J25: =IF(ROUND(J$24,0)-ROUND('2.16 Opex Summary'!J$19,0)=0,"OK","Error") -> OK | K25: =IF(ROUND(K$24,0)-ROUND('2.16 Opex Summary'!K$19,0)=0,"OK","Error") -> OK | L25: =IF(ROUND(L$24,0)-ROUND('2.16 Opex Summary'!L$19,0)=0,"OK","Error") -> OK
B28: 2.17.2 - STEP CHANGES FOR PRESCRIBED TRANSMISSION SERVICES - FORECAST CAPEX
F29: EXPENDITURE
F30: =CONCATENATE("Forecast ($0's, real ", dms_DollarReal, ")") -> Forecast ($0's, real June 2023)
B31: Step change | C31: Description | D31: =CRCP_y1 -> 2018-19 | E31: =CRCP_y2 -> 2019-20 | F31: =CRCP_y4 -> 2021-22 | G31: =CRCP_y5 -> 2022-23 | H31: =FRCP_y1 -> 2023-24 | I31: =FRCP_y2 -> 2024-25 | J31: =FRCP_y3 -> 2025-26 | K31: =FRCP_y4 -> 2026-27 | L31: =FRCP_y5 -> 2027-28
B47: Total | D47: =SUM(D32:D46) -> 0 | E47: 0 | F47: 0 | G47: 0 | H47: 0 | I47: 0 | J47: 0 | K47: 0 | L47: 0
B50: 2.17.5 - CATEGORY SPECIFIC OPEX FOR PRESCRIBED TRANSMISSION SERVICES
F51: EXPENDITURE
F52: =CONCATENATE("Forecast ($0's, real ", dms_DollarReal, ")") -> Forecast ($0's, real June 2023)
B53: Category | C53: Description | D53: =CRCP_y1 -> 2018-19 | E53: =CRCP_y2 -> 2019-20 | F53: =CRCP_y4 -> 2021-22 | G53: =CRCP_y5 -> 2022-23 | H53: =FRCP_y1 -> 2023-24 | I53: =FRCP_y2 -> 2024-25 | J53: =FRCP_y3 -> 2025-26 | K53: =FRCP_y4 -> 2026-27 | L53: =FRCP_y5 -> 2027-28
B54: Network support costs | F54: 1554696.035 | G54: 0 | H54: 0 | I54: 0 | J54: 0 | K54: 0 | L54: 0
B55: Network capability projects | F55: 0 | G55: 0 | H55: 0 | I55: 0 | J55: 0 | K55: 0 | L55: 0
B68: Total | D68: =SUM(D61:D67) -> 0 | E68: 0 | F68: =SUM(F54:F67) -> 1554696.035 | G68: =SUM(G54:G67) -> 0 | H68: 0 | I68: 0 | J68: 0 | K68: 0 | L68: 0
B69: Check | H69: =IF(ROUND(H$68,0)-ROUND('2.16 Opex Summary'!H$20,0)=0,"OK","Error") -> OK | I69: =IF(ROUND(I$68,0)-ROUND('2.16 Opex Summary'!I$20,0)=0,"OK","Error") -> OK | J69: =IF(ROUND(J$68,0)-ROUND('2.16 Opex Summary'!J$20,0)=0,"OK","Error") -> OK | K69: =IF(ROUND(K$68,0)-ROUND('2.16 Opex Summary'!K$20,0)=0,"OK","Error") -> OK | L69: =IF(ROUND(L$68,0)-ROUND('2.16 Opex Summary'!L$20,0)=0,"OK","Error") -> OK

Sheet 3.1 Revenue
B1: =(LOOKUP(dms_Model,dms_Model_List,dms_Worksheet_List)) -> REGULATORY REPORTING STATEMENT
B2: =INDEX(dms_TradingNameFull_List,MATCH(dms_TradingName,dms_TradingName_List)) -> NSW Electricity Networks Operations Pty Ltd trading as TransGrid
B3: =IF(SUM(dms_SingleYear_Model)>0,CRY,CONCATENATE(FRCP_y1," to ",dms_MultiYear_FinalYear_Result)) -> 2023-24 to 2027-28
B4: 3.1 REVENUE
B7: 3.1.1 - REVENUE GROUPING BY CHARGEABLE QUANTITY
C8: REVENUE
C9: =CONCATENATE("Forecast ($0's, real ",dms_DollarReal,")") -> Forecast ($0's, real June 2023)
C10: =dms_y1 -> 2021-22 | D10: =dms_y2 -> 2022-23 | E10: =dms_y3 -> 2023-24 | F10: =dms_y4 -> 2024-25 | G10: =dms_y5 -> 2025-26 | H10: =dms_y6 -> 2026-27 | I10: =dms_y7 -> 2027-28
A11: TREV0101 | B11: From Fixed Customer (Exit Point) Charges | C11: 64555025.16 | D11: 71092919.21 | E11: 59988303.23 | F11: 59988303.23 | G11: 59988303.23 | H11: 59988303.23 | I11: 61913927.77
A12: TREV0102 | B12: From Variable Customer (Exit Point) Charges | C12: 0 | D12: 0 | E12: 0 | F12: 0 | G12: 0 | H12: 0 | I12: 0
A13: TREV0103 | B13: From Fixed Generator (Entry Point) Charges | C13: 10611372.16 | D13: 11686052.66 | E13: 9860707.343 | F13: 9860707.343 | G13: 9860707.343 | H13: 9860707.343 | I13: 10177236.05
A14: TREV0104 | B14: From Variable Generator (Entry Point) Charges | C14: 0 | D14: 0 | E14: 0 | F14: 0 | G14: 0 | H14: 0 | I14: 0
A15: TREV0105 | B15: From Fixed Energy Usage Charges (Charge per day basis) | C15: c-i-c | D15: c-i-c | E15: c-i-c | F15: c-i-c | G15: c-i-c | H15: c-i-c | I15: c-i-c
A16: TREV0106 | B16: From Variable Energy Usage charges (Charge per kWh basis) | C16: c-i-c | D16: c-i-c | E16: c-i-c | F16: c-i-c | G16: c-i-c | H16: c-i-c | I16: c-i-c
A17: TREV0107 | B17: From Energy based Common Service and General Charges | C17: 0 | D17: 0 | E17: 0 | F17: 0 | G17: 0 | H17: 0 | I17: 0
A18: TREV0108 | B18: From Fixed Demand based Usage Charges | C18: 248280107.1 | D18: 273424997.5 | E18: 230716389.8 | F18: 230716389.8 | G18: 230716389.8 | H18: 230716389.8 | I18: 238122386
A19: TREV0109 | B19: From Variable Demand based Usage Charges | C19: 242783271.9 | D19: 267371463.2 | E19: 225608409.2 | F19: 225608409.2 | G19: 225608409.2 | H19: 225608409.2 | I19: 232850439.2
A20: TREV0110 | B20: Revenue from other Sources | C20: 249535104.8 | D20: 274807096.7 | E20: 231882607.1 | F20: 231882607.1 | G20: 231882607.1 | H20: 231882607.1 | I20: 239326038.8
A21: TREV01 | B21: Total | C21: 838639905.1 | D21: 923574251 | E21: 779313226.2 | F21: 779313226.2 | G21: 779313226.2 | H21: 779313226.2 | I21: 804329180.8
B24: 3.1.2 - REVENUE GROUPING BY TYPE OF CONNECTED EQUIPMENT
C25: REVENUE
C26: =CONCATENATE("Forecast ($0's, real ",dms_DollarReal,")") -> Forecast ($0's, real June 2023)
C27: =dms_y1 -> 2021-22 | D27: =dms_y2 -> 2022-23 | E27: =dms_y3 -> 2023-24 | F27: =dms_y4 -> 2024-25 | G27: =dms_y5 -> 2025-26 | H27: =dms_y6 -> 2026-27 | I27: =dms_y7 -> 2027-28
A28: TREV0201 | B28: From Other connected transmission networks | C28: 139862742.2 | D28: 154027523.1 | E28: 129968636.4 | F28: 129968636.4 | G28: 129968636.4 | H28: 129968636.4 | I28: 134140629.6
A29: TREV0202 | B29: From Distribution networks | C29: 600611892.7 | D29: 661439642.5 | E29: 558123682.2 | F29: 558123682.2 | G29: 558123682.2 | H29: 558123682.2 | I29: 576039452.4
A30: TREV0203 | B30: From Directly connected end–users | C30: 31842932.69 | D30: 35067867.07 | E30: 29590314.58 | F30: 29590314.58 | G30: 29590314.58 | H30: 29590314.58 | I30: 30540163.67
A31: TREV0204 | B31: From Generators | C31: 9266981.767 | D31: 10205507.39 | E31: 8611421.201 | F31: 8611421.201 | G31: 8611421.201 | H31: 8611421.201 | I31: 8887847.821
A32: TREV0205 | B32: Other revenue | C32: 57055355.67 | D32: 62833710.95 | E32: 53019171.92 | F32: 53019171.92 | G32: 53019171.92 | H32: 53019171.92 | I32: 54721087.34
A33: TREV02 | B33: Total | C33: =SUM(C28:C32) -> 838639905.1 | D33: =SUM(D28:D32) -> 923574251 | E33: 779313226.2 | F33: 779313226.2 | G33: 779313226.2 | H33: 779313226.2 | I33: 804329180.8
B36: 3.1.3 - REVENUE (penalties) ALLOWED (deducted) THROUGH INCENTIVE SCHEMES
C37: =CONCATENATE("Forecast ($0's, real ",dms_DollarReal,")") -> Forecast ($0's, real June 2023)
C38: =dms_y1 -> 2021-22 | D38: =dms_y2 -> 2022-23 | E38: =dms_y3 -> 2023-24 | F38: =dms_y4 -> 2024-25 | G38: =dms_y5 -> 2025-26 | H38: =dms_y6 -> 2026-27 | I38: =dms_y7 -> 2027-28
A39: TREV0301 | B39: EBSS | C39: 5570634.109 | D39: -2513506.612 | E39: 19258732.41 | F39: 5309474.645 | G39: -3769799.069 | H39: -6067498.105 | I39: 20158395.16
A40: TREV0302 | B40: STPIS | C40: 8565570.696 | D40: 8458923.63 | E40: 8278383.65 | F40: 5794466.121 | G40: 3467041.875 | H40: 3467041.875 | I40: 3467041.875
A41: TREV0303 | B41: Other | C41: 7784323.797 | D41: 7784323.797 | E41: 1021549.222 | F41: 1021549.222 | G41: 1021549.222 | H41: 1021549.222 | I41: 1021549.222
A42: TREV03 | B42: Total | C42: =SUM(C39:C41) -> 21920528.6 | D42: 13729740.81 | E42: 28558665.28 | F42: 12125489.99 | G42: 718792.0285 | H42: -1578907.008 | I42: 24646986.26

Sheet 3.2 Operating expenditure
B1: =(LOOKUP(dms_Model,dms_Model_List,dms_Worksheet_List)) -> REGULATORY REPORTING STATEMENT
B2: =INDEX(dms_TradingNameFull_List,MATCH(dms_TradingName,dms_TradingName_List)) -> NSW Electricity Networks Operations Pty Ltd trading as TransGrid
B3: =IF(SUM(dms_SingleYear_Model)>0,CRY,CONCATENATE(FRCP_y1," to ",dms_MultiYear_FinalYear_Result)) -> 2023-24 to 2027-28
B4: 3.2 OPERATING EXPENDITURE
B7: 3.2.1 - OPEX CATEGORIES
C8: EXPENDITURE
C9: =CONCATENATE("Forecast ($0's, real ",dms_DollarReal,")") -> Forecast ($0's, real June 2023)
C10: =dms_y1 -> 2021-22 | D10: =dms_y2 -> 2022-23 | E10: =dms_y3 -> 2023-24 | F10: =dms_y4 -> 2024-25 | G10: =dms_y5 -> 2025-26 | H10: =dms_y6 -> 2026-27 | I10: =dms_y7 -> 2027-28
B11: OPEX CATEGORIES AND COST ALLOCATIONS - approved CAM
B12: 01 Lines | C12: 15804835.68 | D12: 16203851.6 | E12: 16220802.17 | F12: 16933099.84 | G12: 17015190.47 | H12: 17098059.6 | I12: 17172468.92
B13: 02 Substations | C13: 18872318.15 | D13: 16150703.28 | E13: 19369017.52 | F13: 20219561.53 | G13: 20317584.72 | H13: 20416537.51 | I13: 20505388.58
B14: 04 Secondary Systems | C14: 6571861.829 | D14: 9844447.493 | E14: 6744826.253 | F14: 7041009.141 | G14: 7075143.522 | H14: 7109601.612 | I14: 7140542.005
B15: 05 Land and Easements | C15: 11444881.01 | D15: 11733823.58 | E15: 11746098.12 | F15: 12261899.88 | G15: 12321344.82 | H15: 12381353.5 | I15: 12435236.12
B16: 06 Maintenance Support and Asset Management | C16: 14740518.82 | D16: 12901128.31 | E16: 15128473.62 | F16: 15792804.3 | G16: 15869366.85 | H16: 15946655.47 | I16: 16016053.98
B17: 07 Operations | C17: 7779954.061 | D17: 7540476.511 | E17: 9445074.252 | F17: 9322925.411 | G17: 9836113.085 | H17: 9404127.099 | I17: 9913533.64
B18: 08 Grid Planning | C18: 2809451.889 | D18: 3929633.081 | E18: 3860469.117 | F18: 3987086.443 | G18: 4001678.792 | H18: 3039334.088 | I18: 3052561.016
B19: 09 Insurance | C19: 11904681.54 | D19: 13596000.15 | E19: 15987251.33 | F19: 17858640.59 | G19: 18892697.41 | H19: 19897150.86 | I19: 20918531.38
B20: 10 Rates, Taxes & Charges | C20: 7317488.865 | D20: 7540260.785 | E20: 7510077.401 | F20: 7839864.46 | G20: 7877871.643 | H20: 7916239.261 | I20: 7950690.074
B21: 11 Property Management | C21: -1003840.316 | D21: -1407702.968 | E21: -1030260.327 | F21: -1075501.742 | G21: -1080715.708 | H21: -1085979.121 | I21: -1090705.211
B22: 12 Environmental | C22: 2782781.353 | D22: 2060278.139 | E22: 2856021.203 | F22: 2981436.533 | G22: 2995890.354 | H22: 3010481.247 | I22: 3023582.61
B23: 13 Corporate Governance | C23: 12696787.82 | D23: 17869743.59 | E23: 13030953.8 | F23: 13603176.92 | G23: 13669124.29 | H23: 13735697.06 | I23: 13795473.66
B24: 14 Customer Relations | C24: 9017156.116 | D24: 7159256.287 | E24: 9254478.088 | F24: 9660866.325 | G24: 9707701.613 | H24: 9754981.057 | I24: 9797433.921
B25: 15 Regulatory | C25: 5703073.113 | D25: 1693176.583 | E25: 5853171.94 | F25: 6110199.965 | G25: 6139821.84 | H25: 6169724.63 | I25: 6196574.757
B26: 16 Finance | C26: 9615201.126 | D26: 9506919.05 | E26: 4701909.169 | F26: 4908382.247 | G26: 4932177.783 | H26: 4956198.982 | I26: 4977767.946
B27: 17 Information technology | C27: 54347717.09 | D27: 33662746.32 | E27: 38811490.8 | F27: 40351296.09 | G27: 40529926.72 | H27: 40708140.18 | I27: 40870154.48
B28: 18 HR & Payroll | C28: 9133542.059 | D28: 9506266.721 | E28: 9373927.186 | F28: 9785560.744 | G28: 9833000.543 | H28: 9880890.231 | I28: 9923891.04
B29: 20 Network Support | C29: 1554696.035 | D29: 0 | E29: 0 | F29: 0 | G29: 0 | H29: 0 | I29: 0
B30: 21 Bushfire Remediation | C30: 22387623.53 | D30: 13752148.92 | E30: 0 | F30: 0 | G30: 0 | H30: 0 | I30: 0
B46: Total | C46: =SUM(C12:C45) -> 223480729.8 | D46: 193243157.4 | E46: 188863781.6 | F46: 197582308.7 | G46: 199933918.8 | H46: 200339193.3 | I46: 202599178.9
B50: Instructions Table 3.2.3 must be completed if there are any proposed changes to the CAM reported in response to Schedule 1, paragraph 1.3.
B52: 3.2.3 - OPEX CATEGORIES - Revised CAM
C53: EXPENDITURE
C54: =CONCATENATE("Forecast ($0's, real ",dms_DollarReal,")") -> Forecast ($0's, real June 2023)
C55: =dms_y1 -> 2021-22 | D55: =dms_y2 -> 2022-23 | E55: =dms_y3 -> 2023-24 | F55: =dms_y4 -> 2024-25 | G55: =dms_y5 -> 2025-26 | H55: =dms_y6 -> 2026-27 | I55: =dms_y7 -> 2027-28
B56: OPEX CATEGORIES AND COST ALLOCATIONS - revised CAM
B91: Total | C91: =SUM(C57:C90) -> 0 | D91: 0 | E91: 0 | F91: 0 | G91: 0 | H91: 0 | I91: 0

Sheet 3.3 Assets (RAB)
B1: =(LOOKUP(dms_Model,dms_Model_List,dms_Worksheet_List)) -> REGULATORY REPORTING STATEMENT
B2: =INDEX(dms_TradingNameFull_List,MATCH(dms_TradingName,dms_TradingName_List)) -> NSW Electricity Networks Operations Pty Ltd trading as TransGrid
B3: =IF(SUM(dms_SingleYear_Model)>0,CRY,CONCATENATE(FRCP_y1," to ",dms_MultiYear_FinalYear_Result)) -> 2023-24 to 2027-28
B4: 3.3 ASSETS
B6: There are FOUR tables on this worksheet. Each table has been grouped (and sub-grouped) for ease of navigation. See the Instructions sheet on how to group or ungroup tables.
B8: 3.3.1 - REGULATORY ASSET BASE VALUES
C9: =CONCATENATE("Forecast ($0's, real ",dms_DollarReal,")") -> Forecast ($0's, real June 2023)
C10: =dms_y1 -> 2021-22 | D10: =dms_y2 -> 2022-23 | E10: =dms_y3 -> 2023-24 | F10: =dms_y4 -> 2024-25 | G10: =dms_y5 -> 2025-26 | H10: =dms_y6 -> 2026-27 | I10: =dms_y7 -> 2027-28
B11: For total asset base:
A12: TRAB0101 | B12: Opening value | C12: 6502538635 | D12: 6852835729 | E12: 6921659249 | F12: 7499647774 | G12: 8618377319 | H12: 8559002624 | I12: 8409179174
A13: TRAB0102 | B13: Inflation addition | C13: 211332505.6 | D13: 154188803.9 | E13: 162655799.6 | F13: 176238263.3 | G13: 202527891.6 | H13: 201132613.6 | I13: 197611831.7
A14: TRAB0103 | B14: Straight line depreciation | C14: -298031001.8 | D14: -315905662.2 | E14: -308802484.3 | F14: -338431371.1 | G14: -370307850.5 | H14: -375909943.2 | I14: -382887672.8
A15: TRAB0105 | B15: Actual additions (recognised in RAB) | C15: 595676184.9 | D15: 397666162.5 | E15: 904819549.6 | F15: 1487896622 | G15: 313983954.7 | H15: 227011788.3 | I15: 389450517.8
A16: TRAB0106 | B16: Disposals | C16: -4491789.842 | D16: -4469984.908 | E16: -4446077 | F16: -4446077 | G16: -4446077 | H16: -4446077 | I16: -4446077
A17: TRAB0107 | B17: Closing value | C17: =SUM(C12:C16) -> 7007024533 | D17: 7084315049 | E17: 7675886037 | F17: 8820905211 | G17: 8760135238 | H17: 8606791006 | I17: 8608907774
B20: 3.3.2 - ASSET VALUE ROLL FORWARD
C21: =CONCATENATE("Forecast ($0's, real ",dms_DollarReal,")") -> Forecast ($0's, real June 2023)
C22: =dms_y1 -> 2021-22 | D22: =dms_y2 -> 2022-23 | E22: =dms_y3 -> 2023-24 | F22: =dms_y4 -> 2024-25 | G22: =dms_y5 -> 2025-26 | H22: =dms_y6 -> 2026-27 | I22: =dms_y7 -> 2027-28
B23: For overhead assets:
A24: TRAB0201 | B24: Opening value | C24: 1824255529 | D24: 1894018587 | E24: 2019587976 | F24: 2355395069 | G24: 3123948588 | H24: 3065259484 | I24: 2985313017
A25: TRAB0202 | B25: Inflation addition | C25: 59288304.69 | D25: 42615418.2 | E25: 47459385.85 | F25: 55350697.64 | G25: 73411350.81 | H25: 72032183.94 | I25: 70153478.86
A26: TRAB0203 | B26: Straight line depreciation | C26: -91303361.25 | D26: -94617054.43 | E26: -104949612.6 | F26: -113974191.9 | G26: -132032457.9 | H26: -133475450.3 | I26: -134508455.8
A27: TRAB0205 | B27: Actual additions (recognised in RAB) | C27: 144393532.4 | D27: 225030411.5 | E27: 448648017.5 | F27: 900588363.5 | G27: 71964186.9 | H27: 51650278.94 | I27: 92553602.51
A28: TRAB0206 | B28: Disposals | C28: 0 | D28: 0 | E28: 0 | F28: 0 | G28: 0 | H28: 0 | I28: 0
A29: TRAB0207 | B29: Closing value | C29: =SUM(C24:C28) -> 1936634005 | D29: 2067047362 | E29: 2410745767 | F29: 3197359938 | G29: 3137291667 | H29: 3055466496 | I29: 3013511643
B30: For underground assets:
A31: TRAB0301 | B31: Opening value | C31: 190493174.1 | D31: 185289937 | E31: 182436439.6 | F31: 174173956.2 | G31: 165911472.8 | H31: 161569202.2 | I31: 153219603
A32: TRAB0302 | B32: Inflation addition | C32: 6191028.158 | D32: 4169023.583 | E32: 4287172.178 | F32: 4093007.629 | G32: 3898843.08 | H32: 3796801.724 | I32: 3600589.993
A33: TRAB0303 | B33: Straight line depreciation | C33: -8201710.406 | D33: -8286986.668 | E33: -8456647.963 | F33: -8456647.963 | G33: -8456647.963 | H33: -8545810.986 | I33: -8545810.986
A34: TRAB0305 | B34: Actual additions (recognised in RAB) | C34: 976468.7559 | D34: 5551637.864 | E34: 0 | F34: 0 | G34: 4012336.029 | H34: 0 | I34: 3357105.784
A35: TRAB0306 | B35: Disposals | C35: 0 | D35: 0 | E35: 0 | F35: 0 | G35: 0 | H35: 0 | I35: 0
A36: TRAB0307 | B36: Closing value | C36: =SUM(C31:C35) -> 189458960.6 | D36: 186723611.8 | E36: 178266963.8 | F36: 169810315.9 | G36: 165366003.9 | H36: 156820192.9 | I36: 151631487.7
B37: For switchyards, substations
A38: TRAB0401 | B38: Opening value | C38: 3050069483 | D38: 3240156008 | E38: 3303824734 | F38: 3387226713 | G38: 3439922878 | H38: 3421333548 | I38: 3334979904
A39: TRAB0402 | B39: Inflation addition | C39: 99127258.21 | D39: 72903510.19 | E39: 77638357.29 | F39: 79598265.32 | G39: 80836600.88 | H39: 80399760.2 | I39: 78370489.4
A40: TRAB0403 | B40: Straight line depreciation | C40: -134126439.3 | D40: -142779420.1 | E40: -149307540.5 | F40: -155174276.2 | G40: -160401995.6 | H40: -163936391.2 | I40: -165825228.1
A41: TRAB0405 | B41: Actual additions (recognised in RAB) | C41: 297989216.3 | D41: 211182993.2 | E41: 234669427.5 | F41: 209108776.2 | G41: 141375824.8 | H41: 75553476.82 | I41: 124188898.8
A42: TRAB0406 | B42: Disposals | C42: 0 | D42: 0 | E42: 0 | F42: 0 | G42: 0 | H42: 0 | I42: 0
A43: TRAB0407 | B43: Closing value | C43: =SUM(C38:C42) -> 3313059518 | D43: 3381463092 | E43: 3466824979 | F43: 3520759479 | G43: 3501733308 | H43: 3413350393 | I43: 3371714064
B44: For easements:
A45: TRAB0501 | B45: Opening value | C45: 953536574.1 | D45: 962597862.6 | E45: 957485548.9 | F45: 1029733005 | G45: 1205072569 | H45: 1204763140 | I45: 1204453712
A46: TRAB0502 | B46: Inflation addition | C46: 30989938.66 | D46: 21658451.91 | E46: 22500468.74 | F46: 24198250.62 | G46: 28318649.5 | H46: 28311378.07 | I46: 28304106.64
A47: TRAB0503 | B47: Straight line depreciation | C47: 0 | D47: 0 | E47: 0 | F47: 0 | G47: 0 | H47: 0 | I47: 0
A48: TRAB0505 | B48: Actual additions (recognised in RAB) | C48: 49757.96556 | D48: -3951893.761 | E48: 74261937.7 | F48: 179776663 | G48: 0 | H48: 0 | I48: 16652379.6
A49: TRAB0506 | B49: Disposals | C49: -319956.2373 | D49: -318403.0425 | E49: -316700.05 | F49: -316700.05 | G49: -316700.05 | H49: -316700.05 | I49: -316700.05
A50: TRAB0507 | B50: Closing value | C50: =SUM(C45:C49) -> 984256314.5 | D50: 979986017.7 | E50: 1053931255 | F50: 1233391218 | G50: 1233074518 | H50: 1232757818 | I50: 1249093498
B51: For “other” assets with long lives:
A52: TRAB0601 | B52: Opening value | C52: 415008160.9 | D52: 481131502.9 | E52: 405411747.3 | F52: 471090043.5 | G52: 575763730.8 | H52: 595707192.5 | I52: 612446260.2
A53: TRAB0602 | B53: Inflation addition | C53: 13487765.23 | D53: 10825458.82 | E53: 9526989.056 | F53: 11070398.72 | G53: 13530182.09 | H53: 13998844.24 | I53: 14392204.61
A54: TRAB0603 | B54: Straight line depreciation | C54: -39613363.7 | D54: -41027569.78 | E54: -30340338.08 | F54: -34331781.96 | G54: -39936923.47 | H54: -44029993.93 | I54: -42929121.26
A55: TRAB0605 | B55: Actual additions (recognised in RAB) | C55: 103074399.3 | D55: -35990655.56 | E55: 97562043.92 | F55: 141465252.7 | G55: 60349047.3 | H55: 61162421.98 | I55: 119058641.8
A56: TRAB0606 | B56: Disposals | C56: 0 | D56: 0 | E56: 0 | F56: 0 | G56: 0 | H56: 0 | I56: 0
A57: TRAB0607 | B57: Closing value | C57: =SUM(C52:C56) -> 491956961.7 | D57: 414938736.4 | E57: 482160442.2 | F57: 589293912.9 | G57: 609706036.8 | H57: 626838464.8 | I57: 702967985.3
B58: For “other” assets with short lives:
A59: TRAB0701 | B59: Opening value | C59: 69175713.21 | D59: 89641832.11 | E59: 52912803.01 | F59: 82028987 | G59: 107758081.4 | H59: 110370058.2 | I59: 118766678.3
A60: TRAB0702 | B60: Inflation addition | C60: 2248210.679 | D60: 2016941.222 | E60: 1243426.464 | F60: 1927643.357 | G60: 2532265.208 | H60: 2593645.458 | I60: 2790962.156
A61: TRAB0703 | B61: Straight line depreciation | C61: -24786127.1 | D61: -29194631.23 | E61: -15748345.19 | F61: -26494473.15 | G61: -29479825.67 | H61: -25922296.81 | I61: -31079056.61
A62: TRAB0705 | B62: Actual additions (recognised in RAB) | C62: 49192810.14 | D62: -4156330.76 | E62: 49678123.02 | F62: 56957566.4 | G62: 36282559.66 | H62: 38645610.51 | I62: 33639889.41
A63: TRAB0706 | B63: Disposals | C63: -4171833.604 | D63: -4151581.865 | E63: -4129376.95 | F63: -4129376.95 | G63: -4129376.95 | H63: -4129376.95 | I63: -4129376.95
A64: TRAB0707 | B64: Closing value | C64: =SUM(C59:C63) -> 91658773.33 | D64: 54156229.48 | E64: 83956630.36 | F64: 110290346.7 | G64: 112963703.7 | H64: 121557640.4 | I64: 119989096.3
B68: 3.3.3 - TOTAL DISAGGREGATED RAB ASSET VALUES
C69: =CONCATENATE("Forecast ($0's, real ",dms_DollarReal,")") -> Forecast ($0's, real June 2023)
C70: =dms_y1 -> 2021-22 | D70: =dms_y2 -> 2022-23 | E70: =dms_y3 -> 2023-24 | F70: =dms_y4 -> 2024-25 | G70: =dms_y5 -> 2025-26 | H70: =dms_y6 -> 2026-27 | I70: =dms_y7 -> 2027-28
A71: TRAB0801 | B71: Overhead transmission assets (wires and towers/poles etc) | C71: 1880444767 | D71: 1980532974 | E71: 2215166871 | F71: 2776377504 | G71: 3130620128 | H71: 3060362990 | I71: 2999412330
A72: TRAB0802 | B72: Underground transmission assets (cables, ducts etc) | C72: 189976067.3 | D72: 186006774.4 | E72: 180351701.7 | F72: 171992136 | G72: 165638738.4 | H72: 159194697.6 | I72: 152425545.3
A73: TRAB0803 | B73: Substations, switchyards, transformers etc with transmission function | C73: 3181564501 | D73: 3310809550 | E73: 3385324856 | F73: 3453993096 | G73: 3470828093 | H73: 3417341970 | I73: 3353346984
A74: TRAB0804 | B74: Easements | C74: 968896444.3 | D74: 971291940.1 | E74: 1005708402 | F74: 1131562112 | G74: 1219073544 | H74: 1218760479 | I74: 1226773605
A75: TRAB0805 | B75: Other assets with long lives (please specify) | C75: 453482561.3 | D75: 448035119.6 | E75: 443786094.8 | F75: 530191978.2 | G75: 592734883.8 | H75: 611272828.7 | I75: 657707122.7
A76: TRAB0806 | B76: Other assets with short lives (please specify) | C76: 80417243.27 | D76: 71899030.79 | E76: 68434716.69 | F76: 96159666.83 | G76: 110360892.6 | H76: 115963849.3 | I76: 119377887.3
B79: 3.3.4 - ASSET LIVES
C80: Asset Life
C81: =dms_y1 -> 2021-22 | D81: =dms_y2 -> 2022-23 | E81: =dms_y3 -> 2023-24 | F81: =dms_y4 -> 2024-25 | G81: =dms_y5 -> 2025-26 | H81: =dms_y6 -> 2026-27 | I81: =dms_y7 -> 2027-28
B82: ESTIMATED SERVICE LIFE OF NEW ASSETS
A83: TRAB0901 | B83: Overhead transmission assets (wires and towers/poles etc) | C83: 40.1 | D83: 40.1 | E83: 40.1 | F83: 40.1 | G83: 40.1 | H83: 40.1 | I83: 40.1
A84: TRAB0902 | B84: Underground transmission assets (cables, ducts etc) | C84: 45 | D84: 45 | E84: 0 | F84: 0 | G84: 45 | H84: 0 | I84: 45
A85: TRAB0903 | B85: Substations, switchyards, transformers etc with transmission function | C85: 40 | D85: 40 | E85: 40 | F85: 40 | G85: 40 | H85: 40 | I85: 40
A86: TRAB0904 | B86: Other assets with long lives | C86: 13.3 | D86: 13.3 | E86: 13.3 | F86: 13.3 | G86: 13.3 | H86: 13.3 | I86: 13.3
A87: TRAB0905 | B87: Other assets with short lives | C87: 5 | D87: 5 | E87: 5 | F87: 5 | G87: 5 | H87: 5 | I87: 5
B88: ESTIMATED RESIDUAL SERVICE LIFE
A89: TRAB1001 | B89: Overhead transmission assets (wires and towers/poles etc) | C89: 19.9801574 | D89: 20.01772934 | E89: 19.24340573 | F89: 20.66603878 | G89: 23.66045924 | H89: 22.9649683 | I89: 22.19424049
A90: TRAB1002 | B90: Underground transmission assets (cables, ducts etc) | C90: 23.22603026 | D90: 22.35914506 | E90: 21.57313872 | F90: 20.59609871 | G90: 19.6190587 | H90: 18.9062457 | I90: 17.92920569
A91: TRAB1003 | B91: Substations, switchyards, transformers etc with transmission function | C91: 22.74025538 | D91: 22.69343863 | E91: 22.12764823 | F91: 21.82853239 | G91: 21.44563642 | H91: 20.86988449 | I91: 20.11141454
A92: TRAB1004 | B92: Other assets with long lives | C92: 10.4764686 | D92: 11.72702905 | E92: 13.3 | F92: 13.3 | G92: 13.3 | H92: 13.3 | I92: 13.3
A93: TRAB1005 | B93: Other assets with short lives | C93: 2.790904482 | D93: 3.070490304 | E93: 3.359896064 | F93: 3.096079191 | G93: 3.655316102 | H93: 4.257726815 | I93: 3.821437689

Sheet 3.4 Operational data
B1: =(LOOKUP(dms_Model,dms_Model_List,dms_Worksheet_List)) -> REGULATORY REPORTING STATEMENT
B2: =INDEX(dms_TradingNameFull_List,MATCH(dms_TradingName,dms_TradingName_List)) -> NSW Electricity Networks Operations Pty Ltd trading as TransGrid
B3: =IF(SUM(dms_SingleYear_Model)>0,CRY,CONCATENATE(FRCP_y1," to ",dms_MultiYear_FinalYear_Result)) -> 2023-24 to 2027-28
B4: 3.4 OPERATIONAL DATA
B6: There are THREE tables on this worksheet. Each table has been grouped for ease of navigation. See the Instructions sheet on how to group or ungroup tables.
B8: 3.4.1 - ENERGY DELIVERY
D9: Forecast (0's)
C10: Units | D10: =dms_y1 -> 2021-22 | E10: =dms_y2 -> 2022-23 | F10: =dms_y3 -> 2023-24 | G10: =dms_y4 -> 2024-25 | H10: =dms_y5 -> 2025-26 | I10: =dms_y6 -> 2026-27 | J10: =dms_y7 -> 2027-28
B11: Energy grouping by downstream connection type
A12: TOPED0101 | B12: To Other connected transmission networks | C12: GWh | D12: 8074.532116 | E12: 8082.985858 | F12: 8040.450224 | G12: 8042.867314 | H12: 8042.867314 | I12: 8075.375909 | J12: 8132.988579
A13: TOPED0102 | B13: To Distribution networks | C13: GWh | D13: 51637.13131 | E13: 51691.19351 | F13: 51419.17551 | G13: 51434.63295 | H13: 51434.63295 | I13: 51642.52742 | J13: 52010.964
A14: TOPED0103 | B14: To Directly connected end–users (330 kV) | C14: GWh | D14: 8373.588861 | E14: 8382.355705 | F14: 8338.244677 | G14: 8340.751289 | H14: 8340.751289 | I14: 8374.463906 | J14: 8434.210379
A15: TOPED0104 | B15: To Directly connected end–users (275 kV) | C15: GWh
A16: TOPED0105 | B16: To Directly connected end–users (220 kV) | C16: GWh | D16: 199.3711633 | E16: 199.5798977 | F16: 198.5296352 | G16: 198.5893164 | H16: 198.5893164 | I16: 199.3919978 | J16: 200.8145328
A17: TOPED0106 | B17: To Directly connected end–users (132 kV) | C17: GWh | D17: 2292.768378 | E17: 2295.168824 | F17: 2283.090804 | G17: 2283.777139 | H17: 2283.777139 | I17: 2293.007974 | J17: 2309.367128
A18: TOPED0107 | B18: To Directly connected end–users (110 kV) | C18: GWh
A19: TOPED0108 | B19: To Directly connected end–users (44 kV) | C19: GWh
A20: TOPED0109 | B20: To Directly connected end–users (33 kV) | C20: GWh
A21: TOPED0110 | B21: To Directly connected end–users (22 kV) | C21: GWh
A22: TOPED0111 | B22: To Directly connected end–users (11 kV) | C22: GWh
A23: TOPED0112 | B23: To Directly connected end–users (6.6 kV) | C23: GWh
A24: TOPED0113 | B24: Pumping and Power Station Auxillaries | C24: GWh | D24: 498.4279084 | E24: 498.9497443 | F24: 496.3240879 | G24: 496.473291 | H24: 496.473291 | I24: 498.4799944 | J24: 502.0363321
A25: TOPED01 | B25: Total energy transported | C25: GWh | D25: =SUM(D12:D24) -> 71075.81973 | E25: 71150.23354 | F25: 70775.81493 | G25: 70797.0913 | H25: 70797.0913 | I25: 71083.2472 | J25: 71590.38095
B28: 3.4.2 - CONNECTION POINTS
D29: Forecast (0's)
C30: Units | D30: =dms_y1 -> 2021-22 | E30: =dms_y2 -> 2022-23 | F30: =dms_y3 -> 2023-24 | G30: =dms_y4 -> 2024-25 | H30: =dms_y5 -> 2025-26 | I30: =dms_y6 -> 2026-27 | J30: =dms_y7 -> 2027-28
B31: Number of entry points at each transmission voltage level
A32: TOPCP0101 | B32: 500kV | C32: number | D32: 2 | E32: 3 | F32: 3 | G32: 3 | H32: 3 | I32: 3 | J32: 3
A33: TOPCP0102 | B33: 330kV | C33: number | D33: 17 | E33: 27 | F33: 28 | G33: 29 | H33: 31 | I33: 31 | J33: 31
A34: TOPCP0103 | B34: 275kV | C34: number
A35: TOPCP0104 | B35: 220kV | C35: number | D35: 4 | E35: 4 | F35: 4 | G35: 4 | H35: 4 | I35: 4 | J35: 4
A36: TOPCP0105 | B36: 132 kV | C36: number | D36: 17 | E36: 24 | F36: 24 | G36: 25 | H36: 26 | I36: 26 | J36: 26
A37: TOPCP0106 | B37: 110kV | C37: number
A38: TOPCP0107 | B38: 66 kV | C38: number | D38: 5 | E38: 5 | F38: 5 | G38: 5 | H38: 5 | I38: 5 | J38: 5
A39: TOPCP0108 | B39: 33 kV | C39: number | D39: 2 | E39: 3 | F39: 4 | G39: 4 | H39: 4 | I39: 4 | J39: 4
A40: TOPCP0109 | B40: 22 kV | C40: number | D40: 3 | E40: 4 | F40: 4 | G40: 4 | H40: 4 | I40: 4 | J40: 4
A41: TOPCP0110 | B41: 11 kV | C41: number
A42: TOPCP0111 | B42: 6.6 kV | C42: number
B43: Number of exit points at each transmission voltage level
A44: TOPCP0201 | B44: 500kV | C44: number | D44: 6 | E44: 6 | F44: 6 | G44: 6 | H44: 6 | I44: 6 | J44: 6
A45: TOPCP0202 | B45: 330kV | C45: number
A46: TOPCP0203 | B46: 275kV | C46: number | D46: 2 | E46: 2 | F46: 2 | G46: 2 | H46: 2 | I46: 2 | J46: 2
A47: TOPCP0204 | B47: 220kV | C47: number | D47: 59 | E47: 59 | F47: 59 | G47: 59 | H47: 59 | I47: 59 | J47: 60
A48: TOPCP0205 | B48: 132 kV | C48: number
A49: TOPCP0206 | B49: 110kV | C49: number | D49: 29 | E49: 29 | F49: 29 | G49: 29 | H49: 29 | I49: 29 | J49: 29
A50: TOPCP0207 | B50: 66 kV | C50: number
A51: TOPCP0208 | B51: 44 kV | C51: number | D51: 5 | E51: 5 | F51: 5 | G51: 5 | H51: 5 | I51: 5 | J51: 5
A52: TOPCP0209 | B52: 33kV | C52: number | D52: 2 | E52: 2 | F52: 2 | G52: 2 | H52: 2 | I52: 2 | J52: 2
A53: TOPCP0210 | B53: 22kV | C53: number | D53: 2 | E53: 2 | F53: 2 | G53: 2 | H53: 2 | I53: 2 | J53: 2
A54: TOPCP0211 | B54: 11kV | C54: number
A55: TOPCP0212 | B55: 6.6kV | C55: number
B59: 3.4.3 - SYSTEM DEMAND
D60: Forecast (0's)
C61: Units | D61: =dms_y1 -> 2021-22 | E61: =dms_y2 -> 2022-23 | F61: =dms_y3 -> 2023-24 | G61: =dms_y4 -> 2024-25 | H61: =dms_y5 -> 2025-26 | I61: =dms_y6 -> 2026-27 | J61: =dms_y7 -> 2027-28
B62: Annual system maximum demand characteristics – MW measure
A63: TOPSD0101 | B63: Transmission System coincident maximum demand | C63: MW
A64: TOPSD0102 | B64: Transmission System coincident weather adjusted maximum demand 10% POE | C64: MW | D64: 12849.72493 | E64: 12931.68632 | F64: 13022.69045 | G64: 13158.72134 | H64: 13321.6216 | I64: 13502.37631 | J64: 13700.94066
A65: TOPSD0103 | B65: Transmission System coincident weather adjusted maximum demand 50% POE | C65: MW | D65: 11951.97272 | E65: 11988.27332 | F65: 12042.64191 | G65: 12124.01111 | H65: 12250.11524 | I65: 12376.21936 | J65: 12529.0122
A66: TOPSD0104 | B66: Transmission System non-coincident summated maximum demand | C66: MW
A67: TOPSD0105 | B67: Transmission System non-coincident weather adjusted summated maximum demand 10% POE | C67: MW | D67: 19127.45314 | E67: 19249.45674 | F67: 19384.9209 | G67: 19587.40963 | H67: 19829.89475 | I67: 20098.9571 | J67: 20394.53
A68: TOPSD0106 | B68: Transmission System non-coincident weather adjusted summated maximum demand 50% POE | C68: MW | D68: 18319.82704 | E68: 18375.46812 | F68: 18458.80358 | G68: 18583.52522 | H68: 18776.81598 | I68: 18970.10673 | J68: 19204.30558
B69: Annual system maximum demand characteristics – MVA measure
A70: TOPSD0201 | B70: Transmission System coincident maximum demand | C70: MVA
A71: TOPSD0202 | B71: Transmission System coincident weather adjusted maximum demand 10% POE | C71: MVA | D71: 13247.1391 | E71: 13331.63539 | F71: 13425.45407 | G71: 13565.6921 | H71: 13733.63052 | I71: 13919.97557 | J71: 14124.6811
A72: TOPSD0203 | B72: Transmission System coincident weather adjusted maximum demand 50% POE | C72: MVA | D72: 12321.62136 | E72: 12359.04466 | F72: 12415.09475 | G72: 12498.98052 | H72: 12628.98478 | I72: 12758.98903 | J72: 12916.50742
A73: TOPSD0204 | B73: Transmission System non-coincident summated maximum demand | C73: MVA
A74: TOPSD0205 | B74: Transmission System non-coincident weather adjusted summated maximum demand 10% POE | C74: MVA | D74: 19719.02386 | E74: 19844.80076 | F74: 19984.45453 | G74: 20193.2058 | H74: 20443.19047 | I74: 20720.57433 | J74: 21025.28865
A75: TOPSD0206 | B75: Transmission System non-coincident weather adjusted summated maximum demand 50% POE | C75: MVA | D75: 18886.41963 | E75: 18943.78157 | F75: 19029.69441 | G75: 19158.27343 | H75: 19357.54224 | I75: 19556.81106 | J75: 19798.25317
B76: Power factor
B77: Power factor conversion between MVA and MW
A78: TOPSD0301 | B78: Average overall network power factor conversion between MVA and MW | C78: Factor | D78: 0.97 | E78: 0.97 | F78: 0.97 | G78: 0.97 | H78: 0.97 | I78: 0.97 | J78: 0.97
A79: TOPSD0302 | B79: Average power factor conversion for 500 kV lines | C79: Factor | D79: 0.93 | E79: 0.93 | F79: 0.93 | G79: 0.93 | H79: 0.93 | I79: 0.93 | J79: 0.93
A80: TOPSD0303 | B80: Average power factor conversion for 330 kV lines | C80: Factor | D80: 0.99 | E80: 0.99 | F80: 0.99 | G80: 0.99 | H80: 0.99 | I80: 0.99 | J80: 0.99
A81: TOPSD0304 | B81: Average power factor conversion for 275 kV lines | C81: Factor
A82: TOPSD0305 | B82: Average power factor conversion for 220 kV lines | C82: Factor | D82: 0.98 | E82: 0.98 | F82: 0.98 | G82: 0.98 | H82: 0.98 | I82: 0.98 | J82: 0.98
A83: TOPSD0306 | B83: Average power factor conversion for 132 kV lines | C83: Factor | D83: 0.98 | E83: 0.98 | F83: 0.98 | G83: 0.98 | H83: 0.98 | I83: 0.98 | J83: 0.98
A84: TOPSD0307 | B84: Average power factor conversion for 110 kV lines | C84: Factor
A85: TOPSD0308 | B85: Average power factor conversion for 88 kV lines | C85: Factor
A86: TOPSD0309 | B86: Average power factor conversion for 66 kV lines | C86: Factor
A87: TOPSD0310 | B87: Average power factor conversion for 33 kV lines | C87: Factor
A88: TOPSD0311 | B88: Average power factor conversion for 22 kV lines | C88: Factor
A89: TOPSD0311 | B89: Average power factor conversion for 11 kV lines | C89: Factor
A90: TOPSD0312 | B90: Average power factor conversion for 6.6 kV lines | C90: Factor

Sheet 3.5 Physical assets
B1: =(LOOKUP(dms_Model,dms_Model_List,dms_Worksheet_List)) -> REGULATORY REPORTING STATEMENT
B2: =INDEX(dms_TradingNameFull_List,MATCH(dms_TradingName,dms_TradingName_List)) -> NSW Electricity Networks Operations Pty Ltd trading as TransGrid
B3: =IF(SUM(dms_SingleYear_Model)>0,CRY,CONCATENATE(FRCP_y1," to ",dms_MultiYear_FinalYear_Result)) -> 2023-24 to 2027-28
B4: 3.5 PHYSICAL ASSETS
B6: There is ONE table on this worksheet. It has been sub-grouped for ease of navigation. See the Instructions sheet on how to group or ungroup tables.
B8: 3.5.1 - TRANSMISSION SYSTEM CAPACITIES
D9: Forecast (0's)
C10: Units | D10: =dms_y1 -> 2021-22 | E10: =dms_y2 -> 2022-23 | F10: =dms_y3 -> 2023-24 | G10: =dms_y4 -> 2024-25 | H10: =dms_y5 -> 2025-26 | I10: =dms_y6 -> 2026-27 | J10: =dms_y7 -> 2027-28
B11: Overhead network length of circuit at each voltage
A12: TPA0101 | B12: 500 kV | C12: km | D12: 1022.963 | E12: 1022.963 | F12: 1022.963 | G12: 1022.963 | H12: 1022.963 | I12: 1022.963 | J12: 1022.963
A13: TPA0102 | B13: 330 kV | C13: km | D13: 5487.273 | E13: 5487.273 | F13: 5757.273 | G13: 6831.273 | H13: 6831.273 | I13: 6831.273 | J13: 6831.273
A14: TPA0103 | B14: 275 kV | C14: km | D14: 0 | E14: 0 | F14: 0 | G14: 0 | H14: 0 | I14: 0 | J14: 0
A15: TPA0104 | B15: 220 kV | C15: km | D15: 681.215 | E15: 681.215 | F15: 705.111 | G15: 705.111 | H15: 705.111 | I15: 705.111 | J15: 705.111
A16: TPA0105 | B16: 132 kV | C16: km | D16: 5701.155 | E16: 5701.155 | F16: 5701.155 | G16: 5701.155 | H16: 5701.155 | I16: 5701.155 | J16: 5701.155
A17: TPA0106 | B17: 110 kV | C17: km | D17: 0 | E17: 0 | F17: 0 | G17: 0 | H17: 0 | I17: 0 | J17: 0
A18: TPA0107 | B18: 88 kV | C18: km | D18: 0 | E18: 0 | F18: 0 | G18: 0 | H18: 0 | I18: 0 | J18: 0
A19: TPA0108 | B19: 66 kV | C19: km | D19: 21.472 | E19: 21.472 | F19: 21.472 | G19: 21.472 | H19: 21.472 | I19: 21.472 | J19: 21.472
A20: TPA0109 | B20: 33 kV | C20: km | D20: 38.667 | E20: 38.667 | F20: 38.667 | G20: 38.667 | H20: 38.667 | I20: 38.667 | J20: 38.667
A21: TPA0109 | B21: 22 kV | C21: km | D21: 0 | E21: 0 | F21: 0 | G21: 0 | H21: 0 | I21: 0 | J21: 0
A22: TPA0109 | B22: 11 kV | C22: km | D22: 0 | E22: 0 | F22: 0 | G22: 0 | H22: 0 | I22: 0 | J22: 0
A23: TPA01 | B23: Total | D23: =SUM(D12:D22) -> 12952.745 | E23: 12952.745 | F23: 13246.641 | G23: 14320.641 | H23: 14320.641 | I23: 14320.641 | J23: 14320.641
B25: Underground cable circuit length at each voltage
A26: TPA0201 | B26: 500 kV | C26: km | D26: 0 | E26: 0 | F26: 0 | G26: 0 | H26: 0 | I26: 0 | J26: 0
A27: TPA0202 | B27: 330 kV | C27: km | D27: 81.241 | E27: 81.541 | F27: 81.541 | G27: 81.541 | H27: 81.541 | I27: 81.541 | J27: 81.541
A28: TPA0203 | B28: 275 kV | C28: km | D28: 0 | E28: 0 | F28: 0 | G28: 0 | H28: 0 | I28: 0 | J28: 0
A29: TPA0204 | B29: 220 kV | C29: km | D29: 0 | E29: 0 | F29: 0 | G29: 0 | H29: 0 | I29: 0 | J29: 0
A30: TPA0205 | B30: 132 kV | C30: km | D30: 4.167 | E30: 23.867 | F30: 23.867 | G30: 23.867 | H30: 23.867 | I30: 23.867 | J30: 23.867
A31: TPA0206 | B31: 110 kV | C31: km | D31: 0 | E31: 0 | F31: 0 | G31: 0 | H31: 0 | I31: 0 | J31: 0
A32: TPA0207 | B32: 88 kV | C32: km | D32: 0 | E32: 0 | F32: 0 | G32: 0 | H32: 0 | I32: 0 | J32: 0
A33: TPA0208 | B33: 66 kV | C33: km | D33: 0 | E33: 0 | F33: 0 | G33: 0 | H33: 0 | I33: 0 | J33: 0
A34: TPA0209 | B34: 33 kV | C34: km | D34: 0 | E34: 0 | F34: 0 | G34: 0 | H34: 0 | I34: 0 | J34: 0
A35: TPA0210 | B35: 22 kV | C35: km | D35: 0 | E35: 0 | F35: 0 | G35: 0 | H35: 0 | I35: 0 | J35: 0
A36: TPA0211 | B36: 11 kV | C36: km | D36: 0.3 | E36: 0.3 | F36: 0.3 | G36: 0.3 | H36: 0.3 | I36: 0.3 | J36: 0.3
A37: TPA02 | B37: Total | D37: =SUM(D26:D36) -> 85.708 | E37: 105.708 | F37: 105.708 | G37: 105.708 | H37: 105.708 | I37: 105.708 | J37: 105.708
B39: Estimated overhead network weighted average MVA capacity by voltage class
A40: TPA0301 | B40: 500 kV | C40: MVA | D40: 2629.89104 | E40: 2629.89104 | F40: 2629.89104 | G40: 2629.89104 | H40: 2629.89104 | I40: 2629.89104 | J40: 2629.89104
A41: TPA0302 | B41: 330 kV | C41: MVA | D41: 1020.294144 | E41: 1020.294144 | F41: 961.8180548 | G41: 976.9529792 | H41: 976.9529792 | I41: 976.9529792 | J41: 976.9529792
A42: TPA0303 | B42: 275 kV | C42: MVA | D42: 0 | E42: 0 | F42: 0 | G42: 0 | H42: 0 | I42: 0 | J42: 0
A43: TPA0304 | B43: 220 kV | C43: MVA | D43: 337.83524 | E43: 337.83524 | F43: 369.9059708 | G43: 369.9059708 | H43: 369.9059708 | I43: 369.9059708 | J43: 369.9059708
A44: TPA0305 | B44: 132 kV | C44: MVA | D44: 125.5975752 | E44: 125.6532769 | F44: 125.6532769 | G44: 126.0360769 | H44: 126.0360769 | I44: 126.0360769 | J44: 126.0360769
A45: TPA0306 | B45: 110 kV | C45: MVA | D45: 0 | E45: 0 | F45: 0 | G45: 0 | H45: 0 | I45: 0 | J45: 0
A46: TPA0307 | B46: 88 kV | C46: MVA | D46: 0 | E46: 0 | F46: 0 | G46: 0 | H46: 0 | I46: 0 | J46: 0
A47: TPA0308 | B47: 66 kV | C47: MVA | D47: 24.4947839 | E47: 24.4947839 | F47: 24.4947839 | G47: 24.4947839 | H47: 24.4947839 | I47: 24.4947839 | J47: 24.4947839
A48: TPA0309 | B48: 33 kV | C48: MVA | D48: 46 | E48: 46 | F48: 46 | G48: 46 | H48: 46 | I48: 46 | J48: 46
A49: TPA0310 | B49: 22 kV | C49: MVA | D49: 0 | E49: 0 | F49: 0 | G49: 0 | H49: 0 | I49: 0 | J49: 0
A50: TPA0311 | B50: 11 kV | C50: MVA | D50: 0 | E50: 0 | F50: 0 | G50: 0 | H50: 0 | I50: 0 | J50: 0
B52: Estimated underground network weighted average MVA capacity by voltage class
A53: TPA0401 | B53: 500 kV | C53: MVA | D53: 0 | E53: 0 | F53: 0 | G53: 0 | H53: 0 | I53: 0 | J53: 0
A54: TPA0402 | B54: 330 kV | C54: MVA | D54: 652.559422 | E54: 731.1951043 | F54: 731.1951043 | G54: 731.1951043 | H54: 731.1951043 | I54: 731.1951043 | J54: 731.1951043
A55: TPA0403 | B55: 275 kV | C55: MVA | D55: 0 | E55: 0 | F55: 0 | G55: 0 | H55: 0 | I55: 0 | J55: 0
A56: TPA0404 | B56: 220 kV | C56: MVA | D56: 0 | E56: 0 | F56: 0 | G56: 0 | H56: 0 | I56: 0 | J56: 0
A57: TPA0405 | B57: 132 kV | C57: MVA | D57: 276.700264 | E57: 273.6460385 | F57: 273.6460385 | G57: 273.6460385 | H57: 273.6460385 | I57: 273.6460385 | J57: 273.6460385
A58: TPA0406 | B58: 110 kV | C58: MVA | D58: 0 | E58: 0 | F58: 0 | G58: 0 | H58: 0 | I58: 0 | J58: 0
A59: TPA0407 | B59: 88 kV | C59: MVA | D59: 0 | E59: 0 | F59: 0 | G59: 0 | H59: 0 | I59: 0 | J59: 0
A60: TPA0408 | B60: 66 kV | C60: MVA | D60: 0 | E60: 0 | F60: 0 | G60: 0 | H60: 0 | I60: 0 | J60: 0
A61: TPA0409 | B61: 33 kV | C61: MVA | D61: 0 | E61: 0 | F61: 0 | G61: 0 | H61: 0 | I61: 0 | J61: 0
A62: TPA0410 | B62: 22 kV | C62: MVA | D62: 0 | E62: 0 | F62: 0 | G62: 0 | H62: 0 | I62: 0 | J62: 0
A63: TPA0411 | B63: 11 kV | C63: MVA | D63: 0.25 | E63: 0.25 | F63: 0.25 | G63: 0.25 | H63: 0.25 | I63: 0.25 | J63: 0.25
B65: Installed transmission system transformer capacity
A66: TPA0501 | B66: Transmission substations (eg 500 kV to 330 kV) | C66: MVA | D66: 21960 | E66: 21960 | F66: 21960 | G66: 23735 | H66: 23735 | I66: 23735 | J66: 24860
A67: TPA0502 | B67: Terminal points to DNSP systems | C67: MVA | D67: 31587.3 | E67: 31587.3 | F67: 31587.3 | G67: 32097.3 | H67: 32097.3 | I67: 32097.3 | J67: 32097.3
A68: TPA0503 | B68: Transformer capacity for directly connected end–users owned by the TNSP | C68: MVA | D68: 450 | E68: 450 | F68: 450 | G68: 450 | H68: 450 | I68: 450 | J68: 450
A69: TPA0504 | B69: Transformer capacity for directly connected end–users owned by the end–user | C69: MVA | D69: 2442.78 | E69: 2442.78 | F69: 2442.78 | G69: 2442.78 | H69: 2442.78 | I69: 2442.78 | J69: 2442.78
A70: TPA0505 | B70: Interconnector capacity | C70: MVA | D70: 0 | E70: 0 | F70: 0 | G70: 0 | H70: 0 | I70: 0 | J70: 0
A71: TPA0506 | B71: Other | C71: MVA | D71: 926 | E71: 926 | F71: 926 | G71: 1326 | H71: 1356 | I71: 1356 | J71: 1356
B73: Cold spare capacity
A74: TPA06 | B74: Cold spare capacity included in 3.5.1.5 | C74: MVA | D74: 2143.3 | E74: 2143.3 | F74: 2143.3 | G74: 2143.3 | H74: 2143.3 | I74: 2143.3 | J74: 2143.3

Sheet 3.7 Operating environment
B1: =(LOOKUP(dms_Model,dms_Model_List,dms_Worksheet_List)) -> REGULATORY REPORTING STATEMENT
B2: =INDEX(dms_TradingNameFull_List,MATCH(dms_TradingName,dms_TradingName_List)) -> NSW Electricity Networks Operations Pty Ltd trading as TransGrid
B3: =IF(SUM(dms_SingleYear_Model)>0,CRY,CONCATENATE(FRCP_y1," to ",dms_MultiYear_FinalYear_Result)) -> 2023-24 to 2027-28
B4: 3.7 OPERATING ENVIRONMENT FACTORS
A7: TEF01 | B7: 3.7.1 - TERRAIN FACTORS
D8: Forecast (0's)
C9: Units | D9: =dms_y1 -> 2021-22 | E9: =dms_y2 -> 2022-23 | F9: =dms_y3 -> 2023-24 | G9: =dms_y4 -> 2024-25 | H9: =dms_y5 -> 2025-26 | I9: =dms_y6 -> 2026-27 | J9: =dms_y7 -> 2027-28
A10: TEF0101 | B10: Total number of vegetation maintenance spans | C10: Number of spans | D10: 4740
A11: TEF0102 | B11: Average vegetation maintenance span cycle | C11: Years | D11: 3.99
A12: TEF0103 | B12: Average number of trees per vegetation maintenance span | C12: Trees | D12: 40
A13: TEF0104 | B13: Average number of defects per vegetation maintenance span | C13: Defects | D13: 1
A14: TEF0105 | B14: Tropical proportion | C14: Number of spans | D14: 705
A15: TEF0106 | B15: Standard vehicle access | C15: km | D15: 9100
A16: TEF0107 | B16: Altitude | C16: km | D16: 3750
A17: TEF0108 | B17: Bushfire risk | C17: Number of spans | D17: 3820
A19: TEF02 | B19: 3.7.2 - NETWORK CHARACTERISTICS
D20: Forecast (0's)
C21: Units | D21: =dms_y1 -> 2021-22 | E21: =dms_y2 -> 2022-23 | F21: =dms_y3 -> 2023-24 | G21: =dms_y4 -> 2024-25 | H21: =dms_y5 -> 2025-26 | I21: =dms_y6 -> 2026-27 | J21: =dms_y7 -> 2027-28
A22: TEF0201 | B22: Route line length | C22: km | D22: 11311.53 | E22: 11331.53 | F22: 11466.53 | G22: 12003.53 | H22: 12003.53 | I22: 12003.53 | J22: 12003.53
A23: TEF0202 | B23: Variability of dispatch | C23: % | D23: 0.191 | E23: 0.21 | F23: 0.229 | G23: 0.248 | H23: 0.267 | I23: 0.286 | J23: 0.305
A24: TEF0203 | B24: Concentrated load distance | C24: km | D24: 530 | E24: 530 | F24: 530 | G24: 530 | H24: 530 | I24: 530 | J24: 530
A25: TEF0204 | B25: Total number of spans | C25: number | D25: 37413 | E25: 37413 | F25: 37638 | G25: 38533 | H25: 38533 | I25: 38533 | J25: 38533

Sheet 5.4 MD & Utilisation - Spatial
B1: =(LOOKUP(dms_Model,dms_Model_List,dms_Worksheet_List)) -> REGULATORY REPORTING STATEMENT
B2: =INDEX(dms_TradingNameFull_List,MATCH(dms_TradingName,dms_TradingName_List)) -> NSW Electricity Networks Operations Pty Ltd trading as TransGrid
B3: =IF(SUM(dms_SingleYear_Model)>0,CRY,CONCATENATE(FRCP_y1," to ",dms_MultiYear_FinalYear_Result)) -> 2023-24 to 2027-28
B4: 5.4 MAXIMUM DEMAND AND UTILISATION AT SPATIAL LEVEL
B6: There is ONE table on this worksheet. It has been sub-grouped into blocks of approximately 500 rows for ease of navigation. See the Instructions sheet on how to group or ungroup data.
B8: 5.4.1 - NON-COINCIDENT & COINCIDENT MAXIMUM DEMAND
B9: CONNECTION POINT | C9: FORECASTING ELEMENTS | D9: UNIT | E9: MAX DEMAND | G9: TNSP NAME | H9: SERVICE | I9: SERVICE SUBCATEGORY | J9: DATA TYPE | K9: DATA TYPE SUBCATEGORY | L9: LOCATION | M9: LOCATION SUBCATEGORY | N9: MEASUREMENT | O9: DENOMINATION | Q9: =dms_y1 -> 2021-22 | R9: =dms_y2 -> 2022-23 | S9: =dms_y3 -> 2023-24 | T9: =dms_y4 -> 2024-25 | U9: =dms_y5 -> 2025-26 | V9: =dms_y6 -> 2026-27 | W9: =dms_y7 -> 2027-28
B10: c-i-c | C10: CONNECTION POINT RATING | D10: MVA | E10: Non-coincident | G10: TNSP NAME | H10: DEMAND FORECASTING | I10: NON-COINCIDENT MAXIMUM DEMAND | J10: DESCRIPTOR METRIC | K10: CONNECTION POINT RATING | L10: CONNECTION POINT | M10: =B10 -> c-i-c | N10: RATING | O10: MVA | Q10: c-i-c | R10: c-i-c | S10: c-i-c | T10: c-i-c | U10: c-i-c | V10: c-i-c | W10: c-i-c
B11: 0 | E11: Coincident | G11: TNSP NAME | H11: DEMAND FORECASTING | I11: COINCIDENT MAXIMUM DEMAND | J11: DESCRIPTOR METRIC | K11: CONNECTION POINT RATING | L11: CONNECTION POINT | M11: =M10 -> c-i-c | N11: RATING | O11: MVA | Q11: c-i-c | R11: c-i-c | S11: c-i-c | T11: c-i-c | U11: c-i-c | V11: c-i-c | W11: c-i-c
B12: 0 | C12: WINTER/SUMMER PEAKING | E12: Non-coincident | G12: TNSP NAME | H12: DEMAND FORECASTING | I12: NON-COINCIDENT MAXIMUM DEMAND | J12: DESCRIPTOR METRIC | K12: WINTER/SUMMER PEAKING | L12: CONNECTION POINT | M12: =#REF! ->  | N12: WINTER/SUMMER | O12: WINTER/SUMMER | Q12: c-i-c | R12: c-i-c | S12: c-i-c | T12: c-i-c | U12: c-i-c | V12: c-i-c | W12: c-i-c
B13: 0 | E13: Coincident | G13: TNSP NAME | H13: DEMAND FORECASTING | I13: COINCIDENT MAXIMUM DEMAND | J13: DESCRIPTOR METRIC | K13: WINTER/SUMMER PEAKING | L13: CONNECTION POINT | M13: =M12 ->  | N13: WINTER/SUMMER | O13: WINTER/SUMMER | Q13: c-i-c | R13: c-i-c | S13: c-i-c | T13: c-i-c | U13: c-i-c | V13: c-i-c | W13: c-i-c
B14: 0 | C14: ADJUSTMENTS - EMBEDDED GENERATION | D14: MW | E14: Non-coincident | G14: TNSP NAME | H14: DEMAND FORECASTING | I14: NON-COINCIDENT MAXIMUM DEMAND | J14: DESCRIPTOR METRIC | K14: ADJUSTMENTS - EMBEDDED GENERATION | L14: CONNECTION POINT | N14: GENERATED LOAD | O14: MW | Q14: c-i-c | R14: c-i-c | S14: c-i-c | T14: c-i-c | U14: c-i-c | V14: c-i-c | W14: c-i-c
B15: 0 | E15: Coincident | G15: TNSP NAME | H15: DEMAND FORECASTING | I15: COINCIDENT MAXIMUM DEMAND | J15: DESCRIPTOR METRIC | K15: ADJUSTMENTS - EMBEDDED GENERATION | L15: CONNECTION POINT | N15: GENERATED LOAD | O15: MW | Q15: c-i-c | R15: c-i-c | S15: c-i-c | T15: c-i-c | U15: c-i-c | V15: c-i-c | W15: c-i-c
B16: 0 | C16: WEATHER CORRECTED MD 10% POE | D16: MW | E16: Non-coincident | G16: TNSP NAME | H16: DEMAND FORECASTING | I16: NON-COINCIDENT MAXIMUM DEMAND | J16: DESCRIPTOR METRIC | K16: WEATHER CORRECTED MD 10% POE | L16: CONNECTION POINT | N16: MAXIMUM DEMAND | O16: MW | Q16: c-i-c | R16: c-i-c | S16: c-i-c | T16: c-i-c | U16: c-i-c | V16: c-i-c | W16: c-i-c
B17: 0 | E17: Coincident | G17: TNSP NAME | H17: DEMAND FORECASTING | I17: COINCIDENT MAXIMUM DEMAND | J17: DESCRIPTOR METRIC | K17: WEATHER CORRECTED MD 10% POE | L17: CONNECTION POINT | N17: MAXIMUM DEMAND | O17: MW | Q17: c-i-c | R17: c-i-c | S17: c-i-c | T17: c-i-c | U17: c-i-c | V17: c-i-c | W17: c-i-c
B18: 0 | C18: WEATHER CORRECTED MD 10% POE | D18: MVA | E18: Non-coincident | G18: TNSP NAME | H18: DEMAND FORECASTING | I18: NON-COINCIDENT MAXIMUM DEMAND | J18: DESCRIPTOR METRIC | K18: WEATHER CORRECTED MD 10% POE | L18: CONNECTION POINT | N18: MAXIMUM DEMAND | O18: MVA | Q18: c-i-c | R18: c-i-c | S18: c-i-c | T18: c-i-c | U18: c-i-c | V18: c-i-c | W18: c-i-c
B19: 0 | E19: Coincident | G19: TNSP NAME | H19: DEMAND FORECASTING | I19: COINCIDENT MAXIMUM DEMAND | J19: DESCRIPTOR METRIC | K19: WEATHER CORRECTED MD 10% POE | L19: CONNECTION POINT | N19: MAXIMUM DEMAND | O19: MVA | Q19: c-i-c | R19: c-i-c | S19: c-i-c | T19: c-i-c | U19: c-i-c | V19: c-i-c | W19: c-i-c
B20: 0 | C20: WEATHER CORRECTED MD 50% POE | D20: MW | E20: Non-coincident | G20: TNSP NAME | H20: DEMAND FORECASTING | I20: NON-COINCIDENT MAXIMUM DEMAND | J20: DESCRIPTOR METRIC | K20: WEATHER CORRECTED MD 50% POE | L20: CONNECTION POINT | N20: MAXIMUM DEMAND | O20: MW | Q20: c-i-c | R20: c-i-c | S20: c-i-c | T20: c-i-c | U20: c-i-c | V20: c-i-c | W20: c-i-c
B21: 0 | E21: Coincident | G21: TNSP NAME | H21: DEMAND FORECASTING | I21: COINCIDENT MAXIMUM DEMAND | J21: DESCRIPTOR METRIC | K21: WEATHER CORRECTED MD 50% POE | L21: CONNECTION POINT | N21: MAXIMUM DEMAND | O21: MW | Q21: c-i-c | R21: c-i-c | S21: c-i-c | T21: c-i-c | U21: c-i-c | V21: c-i-c | W21: c-i-c
B22: 0 | C22: WEATHER CORRECTED MD 50% POE | D22: MVA | E22: Non-coincident | G22: TNSP NAME | H22: DEMAND FORECASTING | I22: NON-COINCIDENT MAXIMUM DEMAND | J22: DESCRIPTOR METRIC | K22: WEATHER CORRECTED MD 50% POE | L22: CONNECTION POINT | N22: MAXIMUM DEMAND | O22: MVA | Q22: c-i-c | R22: c-i-c | S22: c-i-c | T22: c-i-c | U22: c-i-c | V22: c-i-c | W22: c-i-c
B23: 0 | E23: Coincident | G23: TNSP NAME | H23: DEMAND FORECASTING | I23: COINCIDENT MAXIMUM DEMAND | J23: DESCRIPTOR METRIC | K23: WEATHER CORRECTED MD 50% POE | L23: CONNECTION POINT | N23: MAXIMUM DEMAND | O23: MVA | Q23: c-i-c | R23: c-i-c | S23: c-i-c | T23: c-i-c | U23: c-i-c | V23: c-i-c | W23: c-i-c
B24: Broken Hill Town | C24: CONNECTION POINT RATING | D24: MVA | E24: Non-coincident | G24: TNSP NAME | H24: DEMAND FORECASTING | I24: NON-COINCIDENT MAXIMUM DEMAND | J24: DESCRIPTOR METRIC | K24: CONNECTION POINT RATING | L24: CONNECTION POINT | M24: =B24 -> Broken Hill Town | N24: RATING | O24: MVA | Q24: 200 | R24: 200 | S24: 200 | T24: 200 | U24: 200 | V24: 200 | W24: 200
B25: 0 | E25: Coincident | G25: TNSP NAME | H25: DEMAND FORECASTING | I25: COINCIDENT MAXIMUM DEMAND | J25: DESCRIPTOR METRIC | K25: CONNECTION POINT RATING | L25: CONNECTION POINT | M25: =M24 -> Broken Hill Town | N25: RATING | O25: MVA | Q25: 200 | R25: 200 | S25: 200 | T25: 200 | U25: 200 | V25: 200 | W25: 200
B26: 0 | C26: WINTER/SUMMER PEAKING | E26: Non-coincident | G26: TNSP NAME | H26: DEMAND FORECASTING | I26: NON-COINCIDENT MAXIMUM DEMAND | J26: DESCRIPTOR METRIC | K26: WINTER/SUMMER PEAKING | L26: CONNECTION POINT | M26: =#REF! ->  | N26: WINTER/SUMMER | O26: WINTER/SUMMER | Q26: Summer | R26: Summer | S26: Summer | T26: Summer | U26: Summer | V26: Summer | W26: Summer
B27: 0 | E27: Coincident | G27: TNSP NAME | H27: DEMAND FORECASTING | I27: COINCIDENT MAXIMUM DEMAND | J27: DESCRIPTOR METRIC | K27: WINTER/SUMMER PEAKING | L27: CONNECTION POINT | M27: =M26 ->  | N27: WINTER/SUMMER | O27: WINTER/SUMMER | Q27: Summer | R27: Summer | S27: Summer | T27: Summer | U27: Summer | V27: Summer | W27: Summer
B28: 0 | C28: ADJUSTMENTS - EMBEDDED GENERATION | D28: MW | E28: Non-coincident | G28: TNSP NAME | H28: DEMAND FORECASTING | I28: NON-COINCIDENT MAXIMUM DEMAND | J28: DESCRIPTOR METRIC | K28: ADJUSTMENTS - EMBEDDED GENERATION | L28: CONNECTION POINT | N28: GENERATED LOAD | O28: MW
B29: 0 | E29: Coincident | G29: TNSP NAME | H29: DEMAND FORECASTING | I29: COINCIDENT MAXIMUM DEMAND | J29: DESCRIPTOR METRIC | K29: ADJUSTMENTS - EMBEDDED GENERATION | L29: CONNECTION POINT | N29: GENERATED LOAD | O29: MW
B30: 0 | C30: WEATHER CORRECTED MD 10% POE | D30: MW | E30: Non-coincident | G30: TNSP NAME | H30: DEMAND FORECASTING | I30: NON-COINCIDENT MAXIMUM DEMAND | J30: DESCRIPTOR METRIC | K30: WEATHER CORRECTED MD 10% POE | L30: CONNECTION POINT | N30: MAXIMUM DEMAND | O30: MW | Q30: 40.52169013 | R30: 40.66812459 | S30: 40.93743902 | T30: 41.16518085 | U30: 41.22196579 | V30: 41.28910512 | W30: 41.55984677
B31: 0 | E31: Coincident | G31: TNSP NAME | H31: DEMAND FORECASTING | I31: COINCIDENT MAXIMUM DEMAND | J31: DESCRIPTOR METRIC | K31: WEATHER CORRECTED MD 10% POE | L31: CONNECTION POINT | N31: MAXIMUM DEMAND | O31: MW
B32: 0 | C32: WEATHER CORRECTED MD 10% POE | D32: MVA | E32: Non-coincident | G32: TNSP NAME | H32: DEMAND FORECASTING | I32: NON-COINCIDENT MAXIMUM DEMAND | J32: DESCRIPTOR METRIC | K32: WEATHER CORRECTED MD 10% POE | L32: CONNECTION POINT | N32: MAXIMUM DEMAND | O32: MVA | Q32: 41.81254651 | R32: 41.95584867 | S32: 42.23042251 | T32: 42.46318832 | U32: 42.51248078 | V32: 42.58695148 | W32: 42.84823799
B33: 0 | E33: Coincident | G33: TNSP NAME | H33: DEMAND FORECASTING | I33: COINCIDENT MAXIMUM DEMAND | J33: DESCRIPTOR METRIC | K33: WEATHER CORRECTED MD 10% POE | L33: CONNECTION POINT | N33: MAXIMUM DEMAND | O33: MVA
B34: 0 | C34: WEATHER CORRECTED MD 50% POE | D34: MW | E34: Non-coincident | G34: TNSP NAME | H34: DEMAND FORECASTING | I34: NON-COINCIDENT MAXIMUM DEMAND | J34: DESCRIPTOR METRIC | K34: WEATHER CORRECTED MD 50% POE | L34: CONNECTION POINT | N34: MAXIMUM DEMAND | O34: MW | Q34: 37.3335296 | R34: 37.33531101 | S34: 37.35798217 | T34: 37.35154495 | U34: 37.34891546 | V34: 37.34623373 | W34: 37.34342719
B35: 0 | E35: Coincident | G35: TNSP NAME | H35: DEMAND FORECASTING | I35: COINCIDENT MAXIMUM DEMAND | J35: DESCRIPTOR METRIC | K35: WEATHER CORRECTED MD 50% POE | L35: CONNECTION POINT | N35: MAXIMUM DEMAND | O35: MW
B36: 0 | C36: WEATHER CORRECTED MD 50% POE | D36: MVA | E36: Non-coincident | G36: TNSP NAME | H36: DEMAND FORECASTING | I36: NON-COINCIDENT MAXIMUM DEMAND | J36: DESCRIPTOR METRIC | K36: WEATHER CORRECTED MD 50% POE | L36: CONNECTION POINT | N36: MAXIMUM DEMAND | O36: MVA | Q36: 38.33140007 | R36: 38.33335282 | S36: 38.35726925 | T36: 38.3520966 | U36: 38.34635485 | V36: 38.34074124 | W36: 38.33798878
B37: 0 | E37: Coincident | G37: TNSP NAME | H37: DEMAND FORECASTING | I37: COINCIDENT MAXIMUM DEMAND | J37: DESCRIPTOR METRIC | K37: WEATHER CORRECTED MD 50% POE | L37: CONNECTION POINT | N37: MAXIMUM DEMAND | O37: MVA
B38: Tuggerah | C38: CONNECTION POINT RATING | D38: MVA | E38: Non-coincident | Q38: 750 | R38: 750 | S38: 750 | T38: 750 | U38: 750 | V38: 750 | W38: 750
B39: 0 | E39: Coincident | Q39: 750 | R39: 750 | S39: 750 | T39: 750 | U39: 750 | V39: 750 | W39: 750
B40: 0 | C40: WINTER/SUMMER PEAKING | E40: Non-coincident | Q40: Summer | R40: Summer | S40: Summer | T40: Summer | U40: Summer | V40: Summer | W40: Summer
B41: 0 | E41: Coincident | Q41: Summer | R41: Summer | S41: Summer | T41: Summer | U41: Summer | V41: Summer | W41: Summer
B42: 0 | C42: ADJUSTMENTS - EMBEDDED GENERATION | D42: MW | E42: Non-coincident
B43: 0 | E43: Coincident
B44: 0 | C44: WEATHER CORRECTED MD 10% POE | D44: MW | E44: Non-coincident | Q44: 259.39 | R44: 265.97 | S44: 265.01 | T44: 261.62 | U44: 260.29 | V44: 261.42 | W44: 258.42
B45: 0 | E45: Coincident
B46: 0 | C46: WEATHER CORRECTED MD 10% POE | D46: MVA | E46: Non-coincident | Q46: 283.8979116 | R46: 295.6159363 | S46: 293.1388581 | T46: 282.4287245 | U46: 279.1733315 | V46: 282.5080997 | W46: 275.0057818
B47: 0 | E47: Coincident
B48: 0 | C48: WEATHER CORRECTED MD 50% POE | D48: MW | E48: Non-coincident | Q48: 232.52 | R48: 235.78 | S48: 235.44 | T48: 231.32 | U48: 231.65 | V48: 231.73 | W48: 231.94
B49: 0 | E49: Coincident
B50: 0 | C50: WEATHER CORRECTED MD 50% POE | D50: MVA | E50: Non-coincident | Q50: 254.8575798 | R50: 255.2319755 | S50: 255.6991515 | T50: 242.6376723 | U50: 244.4261905 | V50: 244.5403136 | W50: 246.6652916
B51: 0 | E51: Coincident
B52: Vales Pt 132 kV | C52: CONNECTION POINT RATING | D52: MVA | E52: Non-coincident | Q52: 400 | R52: 400 | S52: 400 | T52: 400 | U52: 400 | V52: 400 | W52: 400
B53: 0 | E53: Coincident | Q53: 400 | R53: 400 | S53: 400 | T53: 400 | U53: 400 | V53: 400 | W53: 400
B54: 0 | C54: WINTER/SUMMER PEAKING | E54: Non-coincident | Q54: Winter | R54: Winter | S54: Winter | T54: Winter | U54: Winter | V54: Winter | W54: Winter
B55: 0 | E55: Coincident | Q55: Summer | R55: Summer | S55: Summer | T55: Summer | U55: Summer | V55: Summer | W55: Summer
B56: 0 | C56: ADJUSTMENTS - EMBEDDED GENERATION | D56: MW | E56: Non-coincident
B57: 0 | E57: Coincident
B58: 0 | C58: WEATHER CORRECTED MD 10% POE | D58: MW | E58: Non-coincident | Q58: 101.43 | R58: 109.77 | S58: 110.16 | T58: 110.75 | U58: 111.45 | V58: 111.7 | W58: 112.1
B59: 0 | E59: Coincident
B60: 0 | C60: WEATHER CORRECTED MD 10% POE | D60: MVA | E60: Non-coincident | Q60: 103.5186988 | R60: 111.9450513 | S60: 112.3766421 | T60: 112.9708219 | U60: 113.6278227 | V60: 114.025252 | W60: 114.4633985
B61: 0 | E61: Coincident
B62: 0 | C62: WEATHER CORRECTED MD 50% POE | D62: MW | E62: Non-coincident | Q62: 97.09 | R62: 105.48 | S62: 105.83 | T62: 106.44 | U62: 107.15 | V62: 107.39 | W62: 107.78
B63: 0 | E63: Coincident
B64: 0 | C64: WEATHER CORRECTED MD 50% POE | D64: MVA | E64: Non-coincident | Q64: 98.67589625 | R64: 107.1687123 | S64: 107.5061719 | T64: 108.140111 | U64: 108.8654445 | V64: 109.1496335 | W64: 109.5781972
B65: 0 | E65: Coincident
B66: Munmorah 132 kV | C66: CONNECTION POINT RATING | D66: MVA | E66: Non-coincident | Q66: 375 | R66: 375 | S66: 375 | T66: 375 | U66: 375 | V66: 375 | W66: 375
B67: 0 | E67: Coincident | Q67: 375 | R67: 375 | S67: 375 | T67: 375 | U67: 375 | V67: 375 | W67: 375
B68: 0 | C68: WINTER/SUMMER PEAKING | E68: Non-coincident | Q68: Summer | R68: Summer | S68: Summer | T68: Summer | U68: Summer | V68: Summer | W68: Summer
B69: 0 | E69: Coincident | Q69: Summer | R69: Summer | S69: Summer | T69: Summer | U69: Summer | V69: Summer | W69: Summer
B70: 0 | C70: ADJUSTMENTS - EMBEDDED GENERATION | D70: MW | E70: Non-coincident
B71: 0 | E71: Coincident
B72: 0 | C72: WEATHER CORRECTED MD 10% POE | D72: MW | E72: Non-coincident | Q72: 139.96 | R72: 133.93 | S72: 141.53 | T72: 140.22 | U72: 141.33 | V72: 142.52 | W72: 142.1
B73: 0 | E73: Coincident
B74: 0 | C74: WEATHER CORRECTED MD 10% POE | D74: MVA | E74: Non-coincident | Q74: 148.5022936 | R74: 140.0505173 | S74: 149.1141958 | T74: 145.9350609 | U74: 149.0668605 | V74: 148.8944606 | W74: 149.2923923
B75: 0 | E75: Coincident
B76: 0 | C76: WEATHER CORRECTED MD 50% POE | D76: MW | E76: Non-coincident | Q76: 126.87 | R76: 122.08 | S76: 128.46 | T76: 127.68 | U76: 128.59 | V76: 130.76 | W76: 129.27
B77: 0 | E77: Coincident
B78: 0 | C78: WEATHER CORRECTED MD 50% POE | D78: MVA | E78: Non-coincident | Q78: 131.4483511 | R78: 127.2350144 | S78: 133.3230438 | T78: 132.4512563 | U78: 133.9016942 | V78: 136.1585076 | W78: 133.0100571
B79: 0 | E79: Coincident
B80: Macksville | C80: CONNECTION POINT RATING | D80: MVA | E80: Non-coincident | Q80: 60 | R80: 60 | S80: 60 | T80: 60 | U80: 60 | V80: 60 | W80: 60
B81: 0 | E81: Coincident | Q81: 60 | R81: 60 | S81: 60 | T81: 60 | U81: 60 | V81: 60 | W81: 60
B82: 0 | C82: WINTER/SUMMER PEAKING | E82: Non-coincident | Q82: Winter | R82: Winter | S82: Winter | T82: Winter | U82: Winter | V82: Winter | W82: Winter
B83: 0 | E83: Coincident | Q83: Summer | R83: Summer | S83: Summer | T83: Summer | U83: Summer | V83: Summer | W83: Summer
B84: 0 | C84: ADJUSTMENTS - EMBEDDED GENERATION | D84: MW | E84: Non-coincident
B85: 0 | E85: Coincident
B86: 0 | C86: WEATHER CORRECTED MD 10% POE | D86: MW | E86: Non-coincident | Q86: 10.62967214 | R86: 10.72964571 | S86: 10.81514866 | T86: 10.92054343 | U86: 11.01271957 | V86: 11.09761733 | W86: 11.20808903
B87: 0 | E87: Coincident
B88: 0 | C88: WEATHER CORRECTED MD 10% POE | D88: MVA | E88: Non-coincident | Q88: 10.66866864 | R88: 10.76854225 | S88: 10.85453486 | T88: 10.95992535 | U88: 11.05248609 | V88: 11.13802978 | W88: 11.2486225
B89: 0 | E89: Coincident
B90: 0 | C90: WEATHER CORRECTED MD 50% POE | D90: MW | E90: Non-coincident | Q90: 9.98625622 | R90: 10.04233732 | S90: 10.13680209 | T90: 10.21170817 | U90: 10.28643897 | V90: 10.37820823 | W90: 10.45553144
B91: 0 | E91: Coincident
B92: 0 | C92: WEATHER CORRECTED MD 50% POE | D92: MVA | E92: Non-coincident | Q92: 9.997432138 | R92: 10.05350615 | S92: 10.14808254 | T92: 10.22308334 | U92: 10.29782262 | V92: 10.38976978 | W92: 10.46711937
B93: 0 | E93: Coincident
B94: Nambucca Heads | C94: CONNECTION POINT RATING | D94: MVA | E94: Non-coincident | Q94: 120 | R94: 120 | S94: 120 | T94: 120 | U94: 120 | V94: 120 | W94: 120
B95: 0 | E95: Coincident | Q95: 120 | R95: 120 | S95: 120 | T95: 120 | U95: 120 | V95: 120 | W95: 120
B96: 0 | C96: WINTER/SUMMER PEAKING | E96: Non-coincident | Q96: Winter | R96: Winter | S96: Winter | T96: Winter | U96: Winter | V96: Winter | W96: Winter
B97: 0 | E97: Coincident | Q97: Summer | R97: Summer | S97: Summer | T97: Summer | U97: Summer | V97: Summer | W97: Summer
B98: 0 | C98: ADJUSTMENTS - EMBEDDED GENERATION | D98: MW | E98: Non-coincident
B99: 0 | E99: Coincident
B100: 0 | C100: WEATHER CORRECTED MD 10% POE | D100: MW | E100: Non-coincident | Q100: 9.377560136 | R100: 9.409879049 | S100: 9.414430547 | T100: 9.457894898 | U100: 9.477778278 | V100: 9.508239239 | W100: 9.540576148
B101: 0 | E101: Coincident
B102: 0 | C102: WEATHER CORRECTED MD 10% POE | D102: MVA | E102: Non-coincident | Q102: 9.434992479 | R102: 9.467663883 | S102: 9.471903499 | T102: 9.515758422 | U102: 9.535991903 | V102: 9.566821462 | W102: 9.599213194
B103: 0 | E103: Coincident
B104: 0 | C104: WEATHER CORRECTED MD 50% POE | D104: MW | E104: Non-coincident | Q104: 8.796919612 | R104: 8.823850392 | S104: 8.843632735 | T104: 8.880586464 | U104: 8.892302867 | V104: 8.923383891 | W104: 8.948549722
B105: 0 | E105: Coincident
B106: 0 | C106: WEATHER CORRECTED MD 50% POE | D106: MVA | E106: Non-coincident | Q106: 8.810924623 | R106: 8.837844582 | S106: 8.857750041 | T106: 8.894637986 | U106: 8.906409233 | V106: 8.937639241 | W106: 8.96271575
B107: 0 | E107: Coincident
B108: Raleigh | C108: CONNECTION POINT RATING | D108: MVA | E108: Non-coincident | Q108: 120 | R108: 120 | S108: 120 | T108: 120 | U108: 120 | V108: 120 | W108: 120
B109: 0 | E109: Coincident | Q109: 120 | R109: 120 | S109: 120 | T109: 120 | U109: 120 | V109: 120 | W109: 120
B110: 0 | C110: WINTER/SUMMER PEAKING | E110: Non-coincident | Q110: Winter | R110: Winter | S110: Winter | T110: Winter | U110: Winter | V110: Winter | W110: Winter
B111: 0 | E111: Coincident | Q111: Summer | R111: Summer | S111: Summer | T111: Summer | U111: Summer | V111: Summer | W111: Summer
B112: 0 | C112: ADJUSTMENTS - EMBEDDED GENERATION | D112: MW | E112: Non-coincident
B113: 0 | E113: Coincident
B114: 0 | C114: WEATHER CORRECTED MD 10% POE | D114: MW | E114: Non-coincident | Q114: 11.50246504 | R114: 11.65341727 | S114: 11.79686679 | T114: 11.97839602 | U114: 12.11713769 | V114: 12.29643443 | W114: 12.44098635
B115: 0 | E115: Coincident
B116: 0 | C116: WEATHER CORRECTED MD 10% POE | D116: MVA | E116: Non-coincident | Q116: 11.56261575 | R116: 11.71397294 | S116: 11.85825493 | T116: 12.0404424 | U116: 12.18032644 | V116: 12.35919093 | W116: 12.50522063
B117: 0 | E117: Coincident
B118: 0 | C118: WEATHER CORRECTED MD 50% POE | D118: MW | E118: Non-coincident | Q118: 10.82982211 | R118: 10.97320075 | S118: 11.10243695 | T118: 11.2531285 | U118: 11.40323627 | V118: 11.54094518 | W118: 11.69489977
B119: 0 | E119: Coincident
B120: 0 | C120: WEATHER CORRECTED MD 50% POE | D120: MVA | E120: Non-coincident | Q120: 10.84810946 | R120: 10.99174251 | S120: 11.12126654 | T120: 11.2722009 | U120: 11.42255332 | V120: 11.5604629 | W120: 11.71461343
B121: 0 | E121: Coincident
B122: Boambee Sth | C122: CONNECTION POINT RATING | D122: MVA | E122: Non-coincident | Q122: 120 | R122: 120 | S122: 120 | T122: 120 | U122: 120 | V122: 120 | W122: 120
B123: 0 | E123: Coincident | Q123: 120 | R123: 120 | S123: 120 | T123: 120 | U123: 120 | V123: 120 | W123: 120
B124: 0 | C124: WINTER/SUMMER PEAKING | E124: Non-coincident | Q124: Winter | R124: Winter | S124: Winter | T124: Winter | U124: Winter | V124: Winter | W124: Winter
B125: 0 | E125: Coincident | Q125: Summer | R125: Summer | S125: Summer | T125: Summer | U125: Summer | V125: Summer | W125: Summer
B126: 0 | C126: ADJUSTMENTS - EMBEDDED GENERATION | D126: MW | E126: Non-coincident
B127: 0 | E127: Coincident
B128: 0 | C128: WEATHER CORRECTED MD 10% POE | D128: MW | E128: Non-coincident | Q128: 18.44492478 | R128: 18.4649033 | S128: 18.43219148 | T128: 18.41700246 | U128: 18.44317739 | V128: 18.42848341 | W128: 18.45402833
B129: 0 | E129: Coincident
B130: 0 | C130: WEATHER CORRECTED MD 10% POE | D130: MVA | E130: Non-coincident | Q130: 18.4494577 | R130: 18.46941138 | S130: 18.4367248 | T130: 18.4214874 | U130: 18.44765186 | V130: 18.43299751 | W130: 18.45856417
B131: 0 | E131: Coincident
B132: 0 | C132: WEATHER CORRECTED MD 50% POE | D132: MW | E132: Non-coincident | Q132: 17.30238279 | R132: 17.31161012 | S132: 17.29558467 | T132: 17.26159225 | U132: 17.27498247 | V132: 17.26830091 | W132: 17.28109592
B133: 0 | E133: Coincident
B134: 0 | C134: WEATHER CORRECTED MD 50% POE | D134: MVA | E134: Non-coincident | Q134: 17.32494672 | R134: 17.3340996 | S134: 17.31829205 | T134: 17.28413474 | U134: 17.29751783 | V134: 17.29077895 | W134: 17.30361922
B135: 0 | E135: Coincident
B136: Coffs Harbour | C136: CONNECTION POINT RATING | D136: MVA | E136: Non-coincident | Q136: 240 | R136: 240 | S136: 240 | T136: 240 | U136: 240 | V136: 240 | W136: 240
B137: 0 | E137: Coincident | Q137: 240 | R137: 240 | S137: 240 | T137: 240 | U137: 240 | V137: 240 | W137: 240
B138: 0 | C138: WINTER/SUMMER PEAKING | E138: Non-coincident | Q138: Winter | R138: Winter | S138: Winter | T138: Winter | U138: Winter | V138: Winter | W138: Winter
B139: 0 | E139: Coincident | Q139: Summer | R139: Summer | S139: Summer | T139: Summer | U139: Summer | V139: Summer | W139: Summer
B140: 0 | C140: ADJUSTMENTS - EMBEDDED GENERATION | D140: MW | E140: Non-coincident
B141: 0 | E141: Coincident
B142: 0 | C142: WEATHER CORRECTED MD 10% POE | D142: MW | E142: Non-coincident | Q142: 61.97686876 | R142: 62.28836513 | S142: 62.58812655 | T142: 62.87296271 | U142: 63.01873375 | V142: 63.20204702 | W142: 63.4363423
B143: 0 | E143: Coincident
B144: 0 | C144: WEATHER CORRECTED MD 10% POE | D144: MVA | E144: Non-coincident | Q144: 61.97689695 | R144: 62.28839394 | S144: 62.58815484 | T144: 62.87299232 | U144: 63.01876256 | V144: 63.20207485 | W144: 63.43637089
B145: 0 | E145: Coincident
B146: 0 | C146: WEATHER CORRECTED MD 50% POE | D146: MW | E146: Non-coincident | Q146: 58.33758007 | R146: 58.54288255 | S146: 58.74886065 | T146: 59.03176388 | U146: 59.176393 | V146: 59.45992644 | W146: 59.61822194
B147: 0 | E147: Coincident
B148: 0 | C148: WEATHER CORRECTED MD 50% POE | D148: MVA | E148: Non-coincident | Q148: 58.43275026 | R148: 58.63771552 | S148: 58.84245349 | T148: 59.12785504 | U148: 59.27260565 | V148: 59.55555702 | W148: 59.71512264
B149: 0 | E149: Coincident
B150: Dorrigo | C150: CONNECTION POINT RATING | D150: MVA | E150: Non-coincident | Q150: 10 | R150: 10 | S150: 10 | T150: 10 | U150: 10 | V150: 10 | W150: 10
B151: 0 | E151: Coincident | Q151: 10 | R151: 10 | S151: 10 | T151: 10 | U151: 10 | V151: 10 | W151: 10
B152: 0 | C152: WINTER/SUMMER PEAKING | E152: Non-coincident | Q152: Winter | R152: Winter | S152: Winter | T152: Winter | U152: Winter | V152: Winter | W152: Winter
B153: 0 | E153: Coincident | Q153: Summer | R153: Summer | S153: Summer | T153: Summer | U153: Summer | V153: Summer | W153: Summer
B154: 0 | C154: ADJUSTMENTS - EMBEDDED GENERATION | D154: MW | E154: Non-coincident
B155: 0 | E155: Coincident
B156: 0 | C156: WEATHER CORRECTED MD 10% POE | D156: MW | E156: Non-coincident | Q156: 2.935255349 | R156: 2.93637509 | S156: 2.932431179 | T156: 2.935366895 | U156: 2.930646822 | V156: 2.934576378 | W156: 2.935226382
B157: 0 | E157: Coincident
B158: 0 | C158: WEATHER CORRECTED MD 10% POE | D158: MVA | E158: Non-coincident | Q158: 3.014641083 | R158: 3.015302395 | S158: 3.012185235 | T158: 3.01520739 | U158: 3.010167064 | V158: 3.014029396 | W158: 3.015009771
B159: 0 | E159: Coincident
B160: 0 | C160: WEATHER CORRECTED MD 50% POE | D160: MW | E160: Non-coincident | Q160: 2.72822417 | R160: 2.72753616 | S160: 2.729203007 | T160: 2.722182314 | U160: 2.728521187 | V160: 2.730515986 | W160: 2.726452815
B161: 0 | E161: Coincident
B162: 0 | C162: WEATHER CORRECTED MD 50% POE | D162: MVA | E162: Non-coincident | Q162: 2.7822049 | R162: 2.781471527 | S162: 2.782941851 | T162: 2.775923042 | U162: 2.782441454 | V162: 2.784422918 | W162: 2.780200671
B163: 0 | E163: Coincident
B164: Koolkhan | C164: CONNECTION POINT RATING | D164: MVA | E164: Non-coincident | Q164: 180 | R164: 180 | S164: 180 | T164: 180 | U164: 180 | V164: 180 | W164: 180
B165: 0 | E165: Coincident | Q165: 180 | R165: 180 | S165: 180 | T165: 180 | U165: 180 | V165: 180 | W165: 180
B166: 0 | C166: WINTER/SUMMER PEAKING | E166: Non-coincident | Q166: Summer | R166: Summer | S166: Summer | T166: Summer | U166: Summer | V166: Summer | W166: Summer
B167: 0 | E167: Coincident | Q167: Summer | R167: Summer | S167: Summer | T167: Summer | U167: Summer | V167: Summer | W167: Summer
B168: 0 | C168: ADJUSTMENTS - EMBEDDED GENERATION | D168: MW | E168: Non-coincident
B169: 0 | E169: Coincident
B170: 0 | C170: WEATHER CORRECTED MD 10% POE | D170: MW | E170: Non-coincident | Q170: 62.259475 | R170: 62.2468091 | S170: 62.52692385 | T170: 62.66187896 | U170: 62.84909911 | V170: 63.21244645 | W170: 63.45720249
B171: 0 | E171: Coincident
B172: 0 | C172: WEATHER CORRECTED MD 10% POE | D172: MVA | E172: Non-coincident | Q172: 62.88500747 | R172: 62.88348195 | S172: 63.16248305 | T172: 63.30614566 | U172: 63.50218165 | V172: 63.86066824 | W172: 64.10888197
B173: 0 | E173: Coincident
B174: 0 | C174: WEATHER CORRECTED MD 50% POE | D174: MW | E174: Non-coincident | Q174: 54.90780702 | R174: 55.10748749 | S174: 55.19971201 | T174: 55.43959452 | U174: 55.63041026 | V174: 55.83549031 | W174: 56.10315025
B175: 0 | E175: Coincident
B176: 0 | C176: WEATHER CORRECTED MD 50% POE | D176: MVA | E176: Non-coincident | Q176: 54.9095978 | R176: 55.10933509 | S176: 55.20146423 | T176: 55.44143664 | U176: 55.63218619 | V176: 55.83735069 | W176: 56.10493902
B177: 0 | E177: Coincident
B178: Lismore 330 kV | C178: CONNECTION POINT RATING | D178: MVA | E178: Non-coincident | Q178: 750 | R178: 750 | S178: 750 | T178: 750 | U178: 750 | V178: 750 | W178: 750
B179: 0 | E179: Coincident | Q179: 750 | R179: 750 | S179: 750 | T179: 750 | U179: 750 | V179: 750 | W179: 750
B180: 0 | C180: WINTER/SUMMER PEAKING | E180: Non-coincident | Q180: Summer | R180: Summer | S180: Summer | T180: Summer | U180: Summer | V180: Summer | W180: Summer
B181: 0 | E181: Coincident | Q181: Summer | R181: Summer | S181: Summer | T181: Summer | U181: Summer | V181: Summer | W181: Summer
B182: 0 | C182: ADJUSTMENTS - EMBEDDED GENERATION | D182: MW | E182: Non-coincident
B183: 0 | E183: Coincident
B184: 0 | C184: WEATHER CORRECTED MD 10% POE | D184: MW | E184: Non-coincident | Q184: 109.7131585 | R184: 111.3394951 | S184: 113.2604832 | T184: 114.9698629 | U184: 117.0447605 | V184: 118.800263 | W184: 120.2844447
B185: 0 | E185: Coincident
B186: 0 | C186: WEATHER CORRECTED MD 10% POE | D186: MVA | E186: Non-coincident | Q186: 111.2052832 | R186: 112.844084 | S186: 114.7817444 | T186: 116.4952891 | U186: 118.5802751 | V186: 120.3337735 | W186: 121.8458841
B187: 0 | E187: Coincident
B188: 0 | C188: WEATHER CORRECTED MD 50% POE | D188: MW | E188: Non-coincident | Q188: 93.81477402 | R188: 94.5088278 | S188: 95.44177716 | T188: 96.00131052 | U188: 96.6194153 | V188: 97.57224862 | W188: 98.58493366
B189: 0 | E189: Coincident
B190: 0 | C190: WEATHER CORRECTED MD 50% POE | D190: MVA | E190: Non-coincident | Q190: 94.56836717 | R190: 95.26479173 | S190: 96.20481828 | T190: 96.76289363 | U190: 97.39853312 | V190: 98.35388948 | W190: 99.37404963
B191: 0 | E191: Coincident
B192: Casino | C192: CONNECTION POINT RATING | D192: MVA | E192: Non-coincident | Q192: 60 | R192: 60 | S192: 60 | T192: 60 | U192: 60 | V192: 60 | W192: 60
B193: 0 | E193: Coincident | Q193: 60 | R193: 60 | S193: 60 | T193: 60 | U193: 60 | V193: 60 | W193: 60
B194: 0 | C194: WINTER/SUMMER PEAKING | E194: Non-coincident | Q194: Summer | R194: Summer | S194: Summer | T194: Summer | U194: Summer | V194: Summer | W194: Summer
B195: 0 | E195: Coincident | Q195: Summer | R195: Summer | S195: Summer | T195: Summer | U195: Summer | V195: Summer | W195: Summer
B196: 0 | C196: ADJUSTMENTS - EMBEDDED GENERATION | D196: MW | E196: Non-coincident
B197: 0 | E197: Coincident
B198: 0 | C198: WEATHER CORRECTED MD 10% POE | D198: MW | E198: Non-coincident | Q198: 36.79609329 | R198: 37.16591362 | S198: 37.52249446 | T198: 37.69207511 | U198: 37.90212419 | V198: 38.27369633 | W198: 38.65505417
B199: 0 | E199: Coincident
B200: 0 | C200: WEATHER CORRECTED MD 10% POE | D200: MVA | E200: Non-coincident | Q200: 38.14063495 | R200: 38.52336974 | S200: 38.88730665 | T200: 39.06699561 | U200: 39.2794831 | V200: 39.67530681 | W200: 40.05100018
B201: 0 | E201: Coincident
B202: 0 | C202: WEATHER CORRECTED MD 50% POE | D202: MW | E202: Non-coincident | Q202: 31.77250326 | R202: 32.13290211 | S202: 32.37681716 | T202: 32.68719377 | U202: 32.91977369 | V202: 33.24653079 | W202: 33.49283885
... 4679 more rows

Sheet 7.1 Policies and Procedures
B1: =(LOOKUP(dms_Model,dms_Model_List,dms_Worksheet_List)) -> REGULATORY REPORTING STATEMENT
B2: =INDEX(dms_TradingNameFull_List,MATCH(dms_TradingName,dms_TradingName_List)) -> NSW Electricity Networks Operations Pty Ltd trading as TransGrid
B3: =IF(SUM(dms_SingleYear_Model)>0,CRY,CONCATENATE(FRCP_y1," to ",dms_MultiYear_FinalYear_Result)) -> 2023-24 to 2027-28
B4: 7.1 PLANS, POLICIES, PROCEDURES AND STRATEGIES
B7: Instructions
B8: =CONCATENATE(dms_TradingName, " must list and provide a brief description of key internal plans, "&"policies, procedures or strategies that are used by it to plan and conduct its day to day operations and that have been relied upon in the development of its regulatory proposal. "&dms_TradingName," must identify any internal plans, policies, procedures and strategies that have changed in the current regulatory control period "&"or that are expected to change before the next regulatory control period where the change has been identified as a step change.") -> TransGrid must list and provide a brief description of key internal plans, policies, procedures or strategies that are used by it to plan and conduct its day to day operations and that have been relied upon in the development of its regulatory proposal. TransGrid must identify any internal plans, policies, procedures and strategies that have changed in the current regulatory control period or that are expected to change before the next regulatory control period where the change has been identified as a step change.
B10: 7.1.1 - PLANS, POLICIES, PROCEDURES AND STRATEGIES
C11: Brief description | D11: Relevance to regulatory proposal | E11: Expenditure impact
C12: Description of the plan, policy, procedure or strategy. | D12: Identify the element of the proposal/supporting documents that the policy, plan, procedure or strategy is relevant to e.g. replacement capex, capacity utilisation thresholds, opex | E12: Is this policy, plan or procedure identified in the response to section 4 'Step Changes' of the notice (yes or no)?
B13: Corporate
B14: Corporate Strategy | C14: Outlines Transgrid's vision, purpose, strategic pillars and strategic focus areas in response to changes in our operating environment | D14: Revenue Proposal | E14: No
B15: Transgrid Risk Appetite Statement | C15: Defines the type and degree of risk that Transgrid is willing to accept in pursuit of its objectives | D15: Revenue Proposal | E15: No
B17: Governance framework
B18: Prescribed Network Capital Investment Process | C18: Sets out the capital investment process used by Transgrid to identify, deliver, justify and govern investments in assets that deliver prescribed transmission services | D18: Capital expenditure | E18: No
B19: Risk Management Framework | C19: Details Transgrid's Enterprise Risk Management framework which provides an integrated and structured approach to managing risks within the risk appetite established by Transgrid Board | D19: Revenue Proposal | E19: No
B20: Financial Authorities | C20: Sets out the responsibilities and level of authority for roles within the organisation and the process by which the Chief Executive Officer delegates this authority to officers of Transgrid | D20: Capital expenditure Operating expenditure | E20: No
B21: IT Governance Framework | C21: Sets out the governance framework to monitor and control key information technology functions | D21: Information and Communications Technology (ICT) expenditure | E21: No
B35: Accounting policies, procedures and methodologies (including a capitalisation policy, depreciation policy and an approved expenditure allocation methodology)
B36: Cost Allocation Methodology | C36: Sets out Transgrid's principles and policies for attributing costs to, or allocating costs between or within, the categories of prescribed, negotiated and non-regulated transmission services | D36: Capital expenditure Operating expenditure | E36: No
B37: Expenditure Capitalisation | C37: Sets out the guidelines for determining whether expenditure is capital in nature for Transgrid accounting purposes and the responsibilities for ensuring transaction costs defined as “capital expenditure” are properly identified and recorded | D37: Capital expenditure | E37: No
B38: Pricing Methodology | C38: Sets out the method used to allocate Transgrid's revenue allowances determined by the AER, between customers | D38: Revenue Proposal | E38: No
B39: Asset management plan or equivalent documentation
B40: Asset Management Policies
B41: Asset Management Policy | C41: Sets out the direction and framework to apply an effective system over the entire asset life cycle | D41: Capital expenditure Operating expenditure | E41: No
B43: Asset Management Strategies
B44: Asset Management System Description | C44: Describes the main elements of Transgrid's Asset Management System for its assets to enable the understanding of its structure, its supporting procedures and how it is implemented | D44: Capital expenditure Operating expenditure | E44: No
B45: Network Asset Risk Assessment Methodology | C45: Outlines the way network asset risks are analysed and assessed, to support the investment decision making process supporting the programs of work whilst ensuring a safe reliable network | D45: Capital expenditure Operating expenditure | E45: No
B46: Network Asset Criticality Framework | C46: Outlines the framework in which consequences associated with network asset failures are assessed and quantified | D46: Capital expenditure Operating expenditure | E46: No
B47: Network Asset Health Framework | C47: Outlines the framework adopted in the development of an effective asset health system for electricity network assets | D47: Capital expenditure Operating expenditure | E47: No
B48: Asset Management Plans
B49: Network Asset Strategy | C49: Sets out how Transgrid intends to improve the AMS and its integration across the business. | D49: Capital expenditure Operating expenditure | E49: No
B50: Substations Renewal and Maintenance Strategy | C50: This strategy guides the management of Transgrid’s existing Substation assets. It identifies the emerging issues with TransGrid’s substation primary assets, and details the renewal and maintenance initiatives to be implemented in response to these issues. | D50: Capital expenditure Operating expenditure | E50: No
B51: Transmission Lines Renewal and Maintenance Strategy | C51: This strategy guides the management of Transgrid’s existing transmission line assets. It identifies the emerging issues with TransGrid’s transmission line assets, and details the renewal and maintenance initiatives to be implemented in response to these issues. | D51: Capital expenditure Operating expenditure | E51: No
B52: Underground Cables Renewal and Maintenance Strategy | C52: This strategy guides the management of Transgrid’s existing underground cable assets. It identifies the emerging issues with TransGrid’s underground cable assets, and details the renewal and maintenance initiatives to be implemented in response to these issues. | D52: Capital expenditure Operating expenditure | E52: No
B53: Automation Renewal and Maintenance Strategy | C53: This strategy guides the management of Transgrid’s existing automation assets. It identifies the emerging issues with TransGrid’s automation assets, and details the renewal and maintenance initiatives to be implemented in response to these issues. | D53: Capital expenditure Operating expenditure | E53: No
B54: Market Metering Renewal and Maintenance Strategy | C54: This strategy guides the management of Transgrid’s existing market metering assets. It identifies the emerging issues with TransGrid’s market metering assets, and details the renewal and maintenance initiatives to be implemented in response to these issues. | D54: Capital expenditure Operating expenditure | E54: No
B55: Network Property Renewal and Maintenance Strategy | C55: This strategy guides the management of Transgrid’s existing network property assets. It identifies the emerging issues with TransGrid’s network property assets, and details the renewal and maintenance initiatives to be implemented in response to these issues. | D55: Capital expenditure Operating expenditure | E55: No
B56: Telecommunication Renewal and Maintenance Strategy | C56: This strategy guides the management of Transgrid’s existing telcommunications assets. It identifies the emerging issues with TransGrid’s telecommunications assets, and details the renewal and maintenance initiatives to be implemented in response to these issues. | D56: Capital expenditure Operating expenditure | E56: No
B57: Motor Vehicle and Mobile Plant Renewal and Maintenance Strategy | C57: Defines the renewal, disposal and maintenance strategies for Transgrid's motor vehicle and mobile plant fleet | D57: Capital expenditure Operating expenditure | E57: No
B72: Capital expenditure policies and procedures (including capex approval policies and procedures and replacement policy)
B73: Prescribed Network Capital Investment Process | C73: Sets out the capital investment process used by Transgrid to identify, deliver, justify and govern investments in assets that deliver prescribed transmission services | D73: Capital expenditure | E73: No
B77: Internal standards for network planning, design, maintenance and operation
B78: Electricity Network Safety Management System (ENSMS) Description | C78: This document sets out the elements of Transgrid's Electricity Network Safety Management System whose primary objective is to ensure that design, construction, commissioning, operation and decommissioning of its network (or any part of its network) is safe. | D78: Capital expenditure Operating expenditure | E78: No
B79: Network Planning Framework | C79: The framework governs the management of network stability and security through network planning across Transgrid's three planning horizons | D79: Augmentation expenditure | E79: No
B80: Network Operations Framework | C80: This framework governs Transgrid's network operations, ensuring the security and reliability of the transmission network throughout New South Wales and the ACT in accordance with the National Electricity Rules | D80: Capital expenditure Operating expenditure | E80: No
B157: Procurement and contracting out policies
B158: Procurement Framework | C158: Ensure consistent application across Transgrid for the procurement of all goods, materials, equipment, works and services | D158: Capital expenditure Operating expenditure | E158: No
B159: Procurement Procedure | C159: Outlines Transgrid's standards for the procurement of all goods, materials, equipment, works and services | D159: Capital expenditure Operating expenditure | E159: No
B162: Information technology policies or strategies
B163: ICT Strategy | C163: This document will provide the overall ICT strategy through the next regulatory period. This strategy document will be used to guide the overall planning, delivery and support of initiatives proposed in the 2023-2028 Revenue Proposal submission and ensure that they align to the organisations plans for enterprise ICT architecture, strategy and spend. | D163: Information and Communications Technology (ICT) expenditure | E163: No
B199: Demand management policies or strategies
B200: Transmission Annual Planning Report 2021 | C200: Provides information to interested parties on emerging network constraints and asset renewal requirements and potential opportunities for provision of demand management solutions | D200: Capital expenditure Operating expenditure | E200: No
B203: Self insurance guidelines or policy
B204: Corporate Insurance Procedure | C204: Outlines the process for managing Transgrid's insurances and associated accountabilities of parties to those processess | D204: Operating expenditure | E204: No
B208: Land and easement acquisition polices
B209: Property Acquisition Policy | C209: Covers the interation between Transgrid and landholders where interests in land need to be acquired for the safe and reliable construction, operation and maintenance of Transgrid's electricity transmission infrastructure | D209: Capital expenditure | E209: No
B210: Property Acquisition Procedure | C210: Sets out Transgrid's process for acquiring property interests by agreement to support its transmission network and other business activities | D210: Capital expenditure | E210: No
B213: Asset security plans and policies
B214: Information Security Policy | C214: Sets out the direction and framework to ensuring the availability, integrity and confidentiality of its information assets at all times | D214: Capital expenditure Operating expenditure | E214: No
B215: Physical Security Management Framework | C215: Sets out overaching governance arrangements that will alow for physical security risk management to occur throughout Transgrid | D215: Capital expenditure Operating expenditure | E215: No
B216: Physical and Environmental Security Standard | C216: Sets out the phyiscal and environmental security of information assets used to support the busienss | D216: Capital expenditure Operating expenditure | E216: No
B224: Disaster recovery policy
B225: Business Continuity Management Framework | C225: Describes the approach, obligations and responsiblities within Transgrid for the management of Business Continuity processes | D225: Capital expenditure Operating expenditure | E225: No
B226: IT Disaster Recovery Invocation Procedure | C226: Describes the process steps, commmunication mechanisms, roles and responsibilities required to execute a successful IT Disaster Recovery | D226: Capital expenditure Operating expenditure | E226: No
B227: IT Disaster Recovery Procedure | C227: Provides a guideline for the orderly restoration of technology services in the event of a disruption | D227: Capital expenditure Operating expenditure | E227: No
B228: Corporate Response and Emergency Management Plan | C228: Sets out the approach to respond to and manage as quickly as possible a Business Disruption Event that occurs to any aspect of Transgrid's business operations | D228: Capital expenditure Operating expenditure | E228: No
B229: Power System Emergency Response Plan | C229: Sets out the processes to manage power system network incidents and emergencies which impacts Transgrid's high voltage network | D229: Capital expenditure Operating expenditure | E229: No

Sheet 7.2 Contingent projects
B1: =(LOOKUP(dms_Model,dms_Model_List,dms_Worksheet_List)) -> REGULATORY REPORTING STATEMENT
B2: =INDEX(dms_TradingNameFull_List,MATCH(dms_TradingName,dms_TradingName_List)) -> NSW Electricity Networks Operations Pty Ltd trading as TransGrid
B3: =IF(SUM(dms_SingleYear_Model)>0,CRY,CONCATENATE(FRCP_y1," to ",dms_MultiYear_FinalYear_Result)) -> 2023-24 to 2027-28
B4: 7.2 CONTINGENT PROJECTS
B7: Instructions
B8: =CONCATENATE(dms_TradingName," is required to populate all input cells (yellow) in table 7.2.1 presented below. Additional rows may be added by ",dms_TradingName," if required." ) -> TransGrid is required to populate all input cells (yellow) in table 7.2.1 presented below. Additional rows may be added by TransGrid if required.
B10: 7.2.1 - PROPOSED CONTINGENT PROJECTS FOR THE FORTHCOMING REGULATORY CONTROL PERIOD
B11: Proposed contingent project name | C11: Proposed contingent capital expenditure ($0's, nominal) | D11: Proposed trigger events | E11: =CONCATENATE("Proposed MAR for ", FRCP_y1," ($0's, nominal)") -> Proposed MAR for 2023-24 ($0's, nominal) | F11: =CONCATENATE("5 per cent of the ", FRCP_y1," ($0's, nominal) MAR") -> 5 per cent of the 2023-24 ($0's, nominal) MAR
B12: Renewable Energy Zone in Central West NSW area | C12: 739081566.9 | D12: (a) New generation of more than 900 MW is reasonably anticipated to connect in central western NSW (west of Wollar and Mount Piper) (b) Successful completion of a RIT-T demonstrating that increasing capacity of the network in the Central West Orana region is the option or part of the option that maximises positive net economic benefits | E12: 797626727.6 | F12: =+E12*0.05 -> 39881336.38
B13: Improving stability of the South-Western NSW | C13: 129983643.4 | D13: (a) One or more of the following: (i) New generation of more than 400 MW is committed in South Western NSW (west of Wagga) (ii) New generation is committed in North West Victoria: (A) exceeding 800 MW for connection to the Ballarat - Waubra - Ararat - Horsham 220 kV Lines or connection point(s); and/or (B) exceeding 200 MW for connection to the Redcliffs – Weman – Kerang 220 kV Lines or connection point(s); and/or (C) exceeding 500 MW for connection to the Ballarat – Terang – Moorabool 220 kV Lines or connection point(s); and/or (D) exceeding 1,500 MW in the North West Victoria zone (b) Successful completion of a RIT-T demonstrating that increasing capacity of the network in South Western NSW at 330/220/132 kV or other voltages is the option that maximises positive net economic benefits (c) Where the optimal solution involves works in NSW and Victoria, successful completion of joint planning obligations under the NER demonstrating that strengthening the high voltage interconnection between New South Wales and Victoria is the option that maximises the positive net economic benefit | E13: =+$E$12 -> 797626727.6 | F13: 39881336.38
B14: Renewable Energy Zone in New England area | C14: 2137730479 | D14: (a) New generation of more than 1,100 MW is reasonably anticipated in the New England area of northern NSW (near Armidale and Tamworth) (b) Successful completion of a RIT-T demonstrating that increasing capacity of the network in Northern NSW is the option or part of the option that maximises positive net economic benefits | E14: 797626727.6 | F14: 39881336.38
B15: Meeting NSW system inertia requirement | C15: 116102268.6 | D15: (a) Notice by AEMO of the existence of an inertia shortfall in the New South Wales region, in line with NER 5.20B, and (b) Successful completion by Transgrid of a RIT–T that demonstrates that transmission investment in the 2023-2028 period is the preferred option (or part of the preferred option) (unless exempt under NER 5.16.3(a)(10)) | E15: 797626727.6 | F15: 39881336.38
B16: Meeting NSW system strength requirement | C16: 312244243.2 | D16: (a) Notice by AEMO of the existence of a system strength shortfall in the New South Wales region, in line with NER 5.20C (b) Identification by Transgrid that the requirements under the system strength standards set out in S5.1a and Schedule 5.1 of the NER are anticipated not to be met going forward, and (c) Successful completion by Transgrid of a RIT–T that demonstrates that transmission investment in the 2023-2028 period is the preferred option (or part of the preferred option) to meet the declared system strength shortfall (unless exempt under NER 5.16.3(a)(11)), or to enable the system strength standard to continue to be met. | E16: 797626727.6 | F16: 39881336.38
B17: Improve capacity of Southern NSW lines for renewables | C17: 302180458.4 | D17: (a) New generation of more than 1,000 MW is committed in Southern and/or South western NSW (b) Successful completion of a RIT-T demonstrating that increasing capacity of the network in southern NSW is the option or part of the option that maximises positive net economic benefits | E17: 797626727.6 | F17: 39881336.38
B18: Renewable Energy Zone in South Western NSW | C18: 1141033411 | D18: (a) New generation of more than 1,000 MW is reasonably anticipated in south western NSW (b) Successful completion of a RIT-T demonstrating that increasing capacity of the network in South Western NSW is the option or part of the option that maximises positive net economic benefits | E18: 797626727.6 | F18: 39881336.38
B19: Renewable energy zone in Hunter region | C19: 259103072.6 | D19: (a) New generation of more than 1,000 MW is reasonably anticipated in the Hunter region of NSW (b) Successful completion of a RIT-T demonstrating that increasing capacity of the network in the Hunter region of NSW is the option or part of the option that maximises positive net economic benefits | E19: 797626727.6 | F19: 39881336.38
B20: Renewable energy zone in Illawarra region | C20: 259103072.6 | D20: (a) New generation of more than 1,000 MW is reasonably anticipated in the Hunter region of NSW (b) Successful completion of a RIT-T demonstrating that increasing capacity of the network in the Illawarra region is the option or part of the option that maximises positive net economic benefits | E20: 797626727.6 | F20: 39881336.38
B21: Supply to ACT -Network Capability | C21: 78354588.62 | D21: (a) One or more of the following: (i) Combined demand between Canberra to Williamsdale exceeds 890 MW (ii) The ACT Utilities (Technical Regulation) (Electricity Transmission Supply Code) makes a change to the agreed maximum demand under a special contingency event, and (b) Successful completion of a RIT–T that demonstrates that transmission investment is the preferred option (or part of the preferred option) | E21: 797626727.6 | F21: 39881336.38
B22: Supply to Bathurst Orange and Parkes Stage 1 and Stage 2 | C22: 227480451.9 | D22: (a) Successful completion of a RIT-T demonstrating that increasing capacity of the network in the Bathurst, Orange and Parkes areas is the option or part of the option that maximises positive net economic benefits. | E22: 797626727.6 | F22: 39881336.38
B23: Line 86 refurbishment | C23: 354284025.9 | D23: (a) Successful completion of a RIT–T that demonstrates that transmission investment is the preferred option (or part of the preferred option) | E23: 797626727.6 | F23: 39881336.38
B24: Moree Special Activation Precinct | C24: 46119546.91 | D24: (a) Moree total demand forecast exceeds 50 MW (b) Successful completion of a RIT–T that demonstrates that transmission investment is the preferred option (or part of the preferred option) | E24: 797626727.6 | F24: 39881336.38
B25: Supply to North West Slopes Area | C25: 176612010.9 | D25: (a) Successful completion of a RIT–T that demonstrates that transmission investment is the preferred option (or part of the preferred option) | E25: 797626727.6 | F25: 39881336.38
B26: Strategic Easement acquisition for supply to Sydney from the south | C26: 267115042.8 | D26: (a) Inclusion of Southern 500 kV Ring (supply to Sydney, Newcastle and Wollongong future ISP project, southern section) in optimal development path in 2022 (or subsequent) ISP, and (b) Rezoning of land along the proposed easement between South Creek and Greendale from rural to residential, commercial or industrial . | E26: 797626727.6 | F26: 39881336.38
B27: Manage fault levels in Southern NSW | C27: 53881475.98 | D27: (a) Successful completion of a RIT–T that demonstrates that transmission investment in the HumeLink Project is the preferred option (or part of the preferred option) (b) Contingent Project Application approval for the HumeLink Project | E27: 797626727.6 | F27: 39881336.38
E28: 797626727.6 | F28: 39881336.38
E29: 797626727.6 | F29: 39881336.38
E30: 797626727.6 | F30: 39881336.38
E31: 797626727.6 | F31: 39881336.38

Sheet 7.3 Obligations
B1: =(LOOKUP(dms_Model,dms_Model_List,dms_Worksheet_List)) -> REGULATORY REPORTING STATEMENT
B2: =INDEX(dms_TradingNameFull_List,MATCH(dms_TradingName,dms_TradingName_List)) -> NSW Electricity Networks Operations Pty Ltd trading as TransGrid
B3: =IF(SUM(dms_SingleYear_Model)>0,CRY,CONCATENATE(FRCP_y1," to ",dms_MultiYear_FinalYear_Result)) -> 2023-24 to 2027-28
B4: 7.3 OBLIGATIONS, REQUIREMENTS & STANDARDS
B6: There is ONE table on this worksheet. It has been sub-grouped for ease of navigation. See the Instructions sheet on how to group or ungroup data.
B8: Instructions
B9: =CONCATENATE("Outline those obligations and requirements that ",dms_TradingName, " identifies as having a material impact on expenditure requirements.") -> Outline those obligations and requirements that TransGrid identifies as having a material impact on expenditure requirements.
B12: 7.3.1 - OBLIGATIONS OR REQUIREMENTS
C13: Brief description | D13: Relevance to regulatory proposal | E13: Expenditure impact
C14: Description of relevant obligations or requirements within the instrument (e.g. safety obligations, reliability targets) | D14: Identify what element of the proposal/supporting documents the obligation or requirement is relevant to e.g. replacement capex, capacity utilisation thresholds, opex | E14: Is the obligation or requirement identified in the response to section 4 'Step Changes' of the notice (yes or no)?
B15: Legislation
B16: National Electricity Law (National Electricity (South Australia) Act 1996) | C16: Electricity transmission entities have a large number of obligations under the National Electricity Law (NEL). The most significant obligations are to: register with AEMO as a "Registered Participant"; comply with the transmission determination that applies to the electricity transmission network services provided; provide the AER with the necessary information or prepare, maintain or keep the information as is requested by the AER in either a "relevant notice" or a "regulatory information instrument"; provide information to the AER for the purpose of the preparation of a NSP's performance or financial report; comply with the guidelines established by AEMO in relation to the shedding and restoration of loads in order to ensure the safety and security of the National Electricity System; comply with a wide range of obligations relating to the determination and resolution of access disputes, as well as to the restrictions on, variation of and compliance with access determinations; and comply with the general obligation not to prevent or hinder the access of another person to a regulated network service. | D16: Capital expenditure Operating expenditure | E16: No
B17: Electricity Supply Act 1995 (NSW) | C17: The Electricity Supply Act sets out: - Transgrid's obligation to the be the holder of and compliant with a Transmission Operator's Licence; - Requirements for the efficient and operationally responsible production and use of electricity and to deliver safe and reliable supply of electricity; - Powers of network operators to enable the construcion, operation, repair and maintenance of their electricity works; - Requirements to ensure the safety of electricity workers, members of the public and protection of property in relation to the generation, transmission, distribution and use of electricity; - Requirements on network operators to implement policies and procedures to manage cyber security risks and to identify and report cyber security incidents; - Prohibits cost recovery by network operators from providers of green hydrogen - Powers on the Premier to declare states of emergency due to potential impact on the electricity supply due to natural events (e.g. weather) and cyber incidents. The NSW Energy Legislation Amendment Bill 2021 for cyber security obligations and not allowing network cost recovery from producers of green hydrogen received Royal Assent on 28 November 2021 to amend the Electricity Supply Act 1995. | D17: Capital expenditure Operating expenditure | E17: Yes
B18: Electricity Supply (Safety and Network Management) Regulation 2014 (NSW) | C18: This Regulation prescribes obligations on network operators to operate their networks consistent with the requirements of Australian Standard 5577, Electricity Network Safety Management Systems (ENSMS). An ENSMS is required to define how network operators ensure the safe design, construction, commissioning, operation, maintenance and decommissioning of electricity networks. In relation to the management system AS 5577, the Regulation makes provisions in respect of the following requirements of Transgrid's ENSMS to address: - the safety and reliability of the network operator's network, - the safety of electrical installations of customers connected to the network operator's network, - advice to the public about the hazards associated with electricity in relation to the network operator's network, - management of bush fire risk relating to electricity lines and other assets of the network operator's network that are capable of initiating bush fire. | D18: Capital expenditure Operating expenditure | E18: No
B19: Work Health and Safety Act 2011 | C19: The Act sets out duties of employers and persons who manage or control workplaces to provide for the health, safety and welfare of employees and other persons including the public. Describes the principle of eliminating or reducing risks so far as is practicable. | D19: Capital expenditure Operating expenditure | E19: No
B20: Work Health and Safety Regulation 2011 | C20: Regulation to manage workplace health, safety and wellbeing, including: - General risk and workplace management; - Hazardous work involving noise, hazardous manual tasks, confined spaces, falls, work requiring a high risk work licence, demolition work, electrical safety and energised electrical work and diving work; - Plant and structures; - Construction work; - Hazardous chemicals; and - Asbestos | D20: Capital expenditure Operating expenditure | E20: No
B21: Protection of the Environment Operations Act 1997 (NSW) | C21: With respect to Transgrid activities, it must not undertake acts that is likely to harm the environment through water pollution, unlawful waste handling, air pollution, noise pollution, and make proper notifications of events where there is a risk of harm to the environment. | D21: Capital expenditure Operating expenditure | E21: No
B22: Environmental Planning and Assessment Act 1979 (NSW) | C22: With respect to Transgrid development and construction activities, it has a duty to consider the environmental impact under the Act inlcusing the preparation of environmental impact statements and comply with terms of development consents granted. | D22: Capital expenditure Operating expenditure | E22: No
B23: National Parks and Wildlife Act 1974 (NSW) | C23: With respect to Transgrid activities, it must not harm or desecrate an Aboriginal place or object unless authorised by an Aboriginal Heritage Impact Permit (AHIP). If granted all conditions of AHIPs must be complied with. Transgrid must notify the Office of Environment and Heritage of the location of any Aboriginal object if identified. Transgrid must not, unless authorised, damage or remove any vegetation, natural substance or harm protected fauna that has been reserved in a National Park | D23: Capital expenditure Operating expenditure | E23: No
B24: Heritage Act 1977 (NSW) | C24: With respect to Transgrid activities, it must not withough approval damage, move or develop around any place that is subject to an interim heritage order, is listed on a heritage register, or is listed in a local council environmental plan. | D24: Capital expenditure Operating expenditure | E24: No
B25: Biodiversity Conservation Act 2016 (NSW) | C25: Unless authorised, in Transgrid's activities it cannot: - harm protected animals or threatened species - damage protected plants or a plant that is a threatened species or is part of a threatened ecological community - damage the habitat of a threatened species Transgrid must otherwise comply with directions of an authorised officer to stop activities distressing to protected animals. | D25: Capital expenditure Operating expenditure | E25: No
B26: Contaminated Land Management Act 1997 (NSW) | C26: The Act requires Transgrid if it is the owner of contaminated land or has caused contamination to occur must notify NSW Environmental Protection Agency, investigate and remediate. | D26: Capital expenditure Operating expenditure | E26: No
B27: Crown Land Act 1989 (NSW) | C27: The Act defines what is Crown Land and prohibitions on Transgrid activities that can occur on Crown Land without approval or are prohibited. | D27: Capital expenditure | E27: No
B28: Rural Fires Act 1997 (NSW) | C28: Transgrid as an owner or occupier of land must not without authority cause fire to start or escape where it is likely to cause injury or damage to another person, land or property, and must comply with directions given in total fire bans. | D28: Capital expenditure Operating expenditure | E28: No
B29: Land Acquisition (Just Terms Compensation) Act 1991 | C29: Transgrid as a network operator has the power to compulsorily acquire land necessary for the transmission system. Compulsory acquisitions must be undertaken under the Act to ensure that compensation for the land will not be less than market value at the date of acquisition and establishes procedures for compulsory acquisition including Ministerial consent. | D29: Capital expenditure | E29: No
B30: Utilities Act 2000 (ACT) | C30: This Act provides a regulatory framework for the provision of utility services in the ACT, including the transmission, distribution and connection of electricity. In addition to the complying with the Act and the conditions imposed by licences, utilities must also: - Comply with established industry guidelines and technical codes that are applicable to utilities in the ACT, and directions given by the ICRC or the technical regulator; - Keep all records and documents necessary to enable it to meet any reporting requirements; - In carrying out network operations, take all reasonable steps to ensure it causes as little inconvenience, detriment and damages as is practicable; - Give a written notice to land owners and other public utilities at least 7 days before the start of proposed operations; - When carrying out network operations on land for which it is not the land-holder, take all reasonable steps to ensure that the land is restored as soon as practicable to a condition that is similar to its condition before the operations began. | D30: Capital expenditure Operating expenditure | E30: No
B31: Privay Act 1988 (Cth) | C31: Obligations to protect the privacy of individuals and the responsible and transparent handling of personal information in accordance with the Australian Privacy Principles (APPs). | D31: Capital expenditure Operating expenditure | E31: No
B32: National Greenhouse and Energy Reporting Act 2007 | C32: Provides for reporting and dissemination of information related to greenhouse emissions including annual reporting. | D32: Capital expenditure Operating expenditure | E32: No
B33: National Greenhouse and Energy Reporting Regulations 2008 | C33: Sets out requirements for reporting greenhouse emissions. | D33: Capital expenditure Operating expenditure | E33: No
B34: Telecommunications Act 1997 (Cth) | C34: The holder of a telecommunications carrier licence must: - Ensure the integrity of its network from disruption or interference and follow security risk management advice from the Department of Home Affairs Communications Access Coordinator. - Protect the confidentiality of information carried or supplied by carriers or carriage service providers, and personal information; - Not use its telecommunications network or facilities to contravene with any Act or Law. Assistance must be provided to Commonwealth, State and Territory officers and authorities in enforcing criminal law and safeguarding national security, among other things; - Comply with standards determined by ACMA; - Provide other carriers access to supplementary facilities; - Provide other carriers access to certain information relating to the operation of telecommunications networks; - Provide other carriers with access to telecommunications transmission towers, the sites of telecommunications transmission towers and underground facilities; - Regularly inspect/investigate their facilities, and take any remedial action that is reasonably required on facilities that are likely to endanger the health and safety of persons or cause damage to property. - If exercising powers to enter someone’s property to inspect land and install and maintain facilities, the carrier comply with certain conditions, including: (a) doing as little damage as practicable; (b) acting in accordance with good engineering practice; (c) complying with recognised industry standards; (d) complying with conditions specified in the regulations; (e) complying with conditions specified in a Ministerial Code of Practice; (f) complying with conditions specified in a facility installation permit; and (g) giving notice to the owner of land. | D34: Capital expenditure Operating expenditure | E34: No
B35: Security of Critical Infrastructure Act 2018 (Cth) | C35: The Act obliges Transgrid as the owner and operator of critical infrastrcuture to: - Register its assets and how it is operated in the Commonwealth Critical Infrastructure Registry - Monitor and report on cyber security incidents to the Commowealth - Undertake directions from the Commonwealth with respect to cyber security incidents and events | D35: Capital expenditure Operating expenditure | E35: Yes
B36: Security Legislation Amendment (Critical Infrastructure) Bill 2021 (Cth) | C36: The Bill imposes higher cyber and physical security capabilities than required under the Security of Critical Infrastructure Act 2018 (Cth). The Bill. The Bill builds on work completed by AEMO to develop the Australian Energy Sector Cyber Security Framework (AESCSF), which comprises of two measures - Maturity Indicator Level (MIL) and Security Profile (SP). It requires Transgrid to achieve a MIL rating of 3 and SP rating of 3. | D36: Operating expenditure | E36: Yes
B37: Ransomware Payments Bill 2021 (Cth) | C37: The Bill requires Transgrid to report to the Australian Cyber Security Centre ransonware payments paid in response to a ransomware attack. | D37: Revenue Proposal | E37: No
B227: Licences
B228: Transmission Operators Licence (NSW) as varied 29 November 2017 | C228: Licence obligations for the operation of the NSW transmission system set by the NSW Minister for Energy on 7 December 2015 and varied on 29 November 2017 in accordance with the Electricity Supply Act 1995 (NSW) Condition 1 - The Licence Holder must ensure that it is registered as an NSP under the National Electricity Rules and holds all authorisations to participate in the NEM Condition 2 - The Licence Holder must ensure for the duration of the licence that it satisfies all technical and prudential criteria required to meet Condition 1 Condition 3 - The Licence Holder must comply with the Reliability and Performance Standard issued by the Minister of Energy Condition 4 - The Licence Holder must submit all Annual Demand Forecasts to AEMO in sufficient time for AEMO to consider and produce an Annual Transmission Planning Review (i.e. TAPR per NER5.12) Condition 5 - The Licence Holder must have a documented system and arrangements in place to identify, assess, and manage business continuity risks and manage business disruptions relating to the operation of the transmission system Condition 6 - Critical Infrastructure Condition -- the Licence Holder must ensure that all maintenance, operation and control of the transmission system only occurs within Australia unless as agreed with the Commonwealth Representative (Department of Home Affairs Cyber and Infrastructure Security Centre); Licence Holder must have at least 2 independent directors and senior officers holding security clearance NV1 and be Australians resident in Australia Condition 7 - Critical Infrastructure Condition - the Licence Holder must ensure that data and information prescribed in the Licence is only accessible, held or used in Australia. Condition 8 - Critical Infrastructure Condition - the Licence Holder must report on its compliance with the Critical Infrastructure Conditions each year and the report must be independently audited. Condition 9 and 10 -- The Licence Holder must have and maintain a certified Asset Management System (ISO 55001) and Environmental Management System (ISO 14001) and implement such management systems for all relevant activities it undertakes as the network operator. Condition 11 - The Licence Holder must report to IPART on its compliance with the Conditions and on safety and reliability incidents related to the transmission system Condition 12 to 17 - The Licence Holder must ensure it has sufficient systems in place to manage its compliance under the Licence, respond to information requests or requests for statistical operating performance, comply with audit requests under IPART guidelines and pay the Licence fee. The Licence Holder must maintain a Business Continuity Plan relating to the operation of its transmission system "Condition 6.1 (a) maintenance of the transmission system must be undertaken solely from within Australia, and (b) the operation and control of the transmission system must be capable of being undertaken only from within Australia Condition 6.2 (a) at least two directors must be Australian citizens (b) must have senior officers responsible for operational technology (SCADA) and network operations who reside in Australia and have appropriate national security clearance (not less than Negative Vetting 1 or equivalent) issued by the NSW Government on advice from AGSVA NOTE: For the purposes of condition 6, 7 and 8 of the Transmission Operator's Licence, it is acknowledged that the assets which the Licence Holder operates may constitute ""critical infrastructure"" being those physical facilities, supply chains, information technologies and communication networks which, if destroyed or rendered for an unavailable period, would significantly impact on the security, social or economic wellbeing of the State of New South Wales and other States and Territories. These licence conditions will be reviewed by the Minister from time to time (and where necessary) in consultation with responsible Ministers of the Commonwealth and relevant States and Territories." "Historical and current load data, as well as personal information covered by the Privacy Act, must only be held in Australia, and be only accessed by a Relevant Person or authorised persons from within Australia. NOTE: For the purposes of condition 6, 7 and 8 of this Licence, it is acknowledged that the assets which the Licence Holder operates may constitute ""critical infrastructure"" being those physical facilities, supply chains, information technologies and communication networks which, if destroyed or rendered for an unavailable period, would significantly impact on the security, social or economic wellbeing of the State of New South Wales and other States and Territories. These licence conditions will be reviewed by the Minister from time to time (and where necessary) in consultation with responsible Ministers of the Commonwealth and relevant States and Territories." "Provide a report to IPART each year detailing compliance with conditions 6 and 7 for the preceding financial year to 30 June. The report must be audited by an auditor approved by IPART, and be accompanied by a certification in writing supported by the Board that the Licence Holder has complied with the conditions. NOTE: For the purposes of condition 6, 7 and 8 of this Licence, it is acknowledged that the assets which the Licence Holder operates may constitute ""critical infrastructure"" being those physical facilities, supply chains, information technologies and communication networks which, if destroyed or rendered for an unavailable period, would significantly impact on the security, social or economic wellbeing of the State of New South Wales and other States and Territories. These licence conditions will be reviewed by the Minister from time to time (and where necessary) in consultation with responsible Ministers of the Commonwealth and relevant States and Territories." Asset Management System: 9.1(a) and 10 - The Licence holder must maintain and implement its asset management system consistent with ISO 55000, and all relevant activities are undertaken in accordance with the asset management system. 9.1(b) - The asset management system must be certified by an appropriately qualified person to be consistent with ISO 55000 9.1(c) - Proposals to change the asset management system must be reported to IPART." The Licence holder must maintain and implement its environment management system consistent with 14000:2014. Proposals to make significant changes to the management system must be reported to IPART in accordance with the Reporting Manuals. The Licence holder must provide IPART with reports in accordance with IPART's Reporting Manual. The Licence Holder must also comply with audit guidelines issued by IPART. The Licence holder must maintain internal systems for monitoring compliance with the licence conditions. "Condition 14 Provide the Tribunal such operating and statistics and performance indicators as required by IPART from time to time. Condition 15 Furnish information (at such times and in respect of such periods that the Tribunal may determine and in the manner and form specified by the Tribunal) that would assist in the Tribunal in assessing compliance with Licence Conditions, the Act or the Regulations." "The Licence holder must provide information on its compliance with the Employment Guarantees. The Licence holder must pay licence fees as determined by the Minister within the period specified by IPART. | D228: Capital expenditure Operating expenditure | E228: No
B229: Utility Services Licence (ACT) as varied 1 March 2021 | C229: Sets out transmission the technical and economic licence conditions for operation in the ACT as set by the Senior Commissioner for the Independent Competition and Regulatory Commission with effect from 1 March 2021. Conditions include: '- Monitor its compliance, including reporting to the ICRC any breaches, with the Licence and any law or code of practice, directions and guidelines applicable; '- Provide the ICRC a report on its obligations by 1 October every year; '- Undertake audits of the services and operations authorised by this licence and of its compliance with its obligations; ' - Satisfy technical and prudential criteria established by the ICRC or under the Utilities Technical Regulation; ' - Consult the ICRC if any of the following apply that would adversement affect compliance with its obligations; (1) intends to dispose of any major asset; (2) intends to enter into any major transaction; (3) is granted a security interest or a lien over the Licensee’ network facilities; or (4) intends to engage in any other business activity. that would adversely affect compliance with its obligations. | D229: Capital expenditure Operating expenditure | E229: No
B230: Telecommunications Carrier Licence as issued 31 March 2016 | C230: Carriers that supply telecommunications services to the public must hold a carrier licence (or be exempt from such a licence) under the Telecommunications Act (Cth). When an organisation is granted a carrier licence, it must comply with a range of statutory obligations including: '- Standard carrier licence conditions such as providing access to facilities and network information to other carriers. '- Special conditions such as complying with the standard access obligations under the Competition and Consumer Act (Cth). '- Providing interception of communications passing over its network and to provide assistance to national security and enforcement agencies. '- Data retention of specific telecommunications data for two years. '- The protection of customer information that relates to the content of communications carried over a carrier’s network. | D230: Capital expenditure Operating expenditure | E230: No
B231: NSW Environmental Protection Licence (NSW) | C231: Licence required for the storage and handling of waste (hazardous, restricted liquids and solids, clinical and related waste and asbestos waste) related to the network. | D231: Capital expenditure Operating expenditure | E231: No
B232: Rules
B233: National Electricity Rules (NER) | C233: Relevant sections include: Chapters 3 (Market Rules) and 4 (Power System Security). Chapter 5 (Network Connection Access, Planning and Expansion) Parts D and J of Chapter 6A (Economic Regulation of Transmission Services) Parts B, C, E, F, G, H and I, and Schedules 6A.1, 6A.2 and 6A.3 of Chapter 6A (Economic Regulation of Transmission Services) Chapter 7 (Metering) | D233: Revenue Proposal | E233: No
B237: Orders
B238: NIL
B241: Codes
B242: Electricity Transmission Supply Code July 2016 (ACT) | C242: The Code provides technical requirements for electricity transmission supply in the ACT and requires Transgrid to to plan, design, maintain and operate its networks consistent with AS5577 Electricity Network Safety Management System (ENSMS). Transgrid must also operate two geographically separate connection points at 132kV or above to ensure redundance of supply to the ACT. Transgrid must develop and enforce safe operating procedures, Electricity Safety Rules, and an Emergency Plan. Reports are to be provided to the technical regulator in accordance with timeframes provided in the Code. | D242: Capital expenditure Operating expenditure | E242: No
B243: Building Code 2013 (Cth) | C243: The Code sets out requirements for new buildings and new parts of existing buildings, including accesiblity for people with disability and entry and exit requirements | D243: Capital expenditure | E243: No
B244: NSW Code of Practice for Authorised Network Operators | C244: The Code was established when the Transgrid (along with Endeavour and Ausgrid) was privatised. The NSW Government has prescribed all three entities as prescribed determining authorities for the purposes of section 111A of the Environment Planning and Assessment Act 1979. Transgrid can self-assess and determine activities that are unlikely to have a significant impact on the environment. The Code has been developed to support the self-assessment process and includes record keeping, community consultation and environmental assessment obligations. | D244: Capital expenditure Operating expenditure | E244: No
B257: Guidelines
B258: Transmission Ring-fencing Guidelines | C258: Transgrid expects the AER to revise the Transmission Ring-fencing Guidelines to be aligned with the Distribution Ring-fencing Guidelines | D258: Operating expenditure | E258: No
B259: AER's Better Regulation Guidelines and Schemes | C259: AER's guidelines for confidentiality, expenditure forecast assessment, cost allocation, capital expenditure incentive schemes, rate of return and consumer engagement. | D259: Revenue Proposal | E259: No
B296: Default agreements
B297: NIL
B301: Other
B302: NIL

Sheet 7.4 Shared Assets
B1: =(LOOKUP(dms_Model,dms_Model_List,dms_Worksheet_List)) -> REGULATORY REPORTING STATEMENT
B2: =INDEX(dms_TradingNameFull_List,MATCH(dms_TradingName,dms_TradingName_List)) -> NSW Electricity Networks Operations Pty Ltd trading as TransGrid
B3: =IF(SUM(dms_SingleYear_Model)>0,CRY,CONCATENATE(FRCP_y1," to ",dms_MultiYear_FinalYear_Result)) -> 2023-24 to 2027-28
B4: 7.4 SHARED ASSETS
B6: 7.4.1 - TOTAL UNREGULATED REVENUE EARNED WITH SHARED ASSETS
B7: Name of shared asset unregulated service | C7: Description of shared assets used to provide the service | G7: Shared asset unregulated revenue ($0's, nominal) | L7: =CONCATENATE("Shared asset unregulated revenue ($0's, real ", dms_DollarReal,")") -> Shared asset unregulated revenue ($0's, real June 2023)
D8: =PRCP_y1 -> 2014-15 | E8: =PRCP_y2 -> 2015-16 | F8: =PRCP_y3 -> 2016-17 | G8: 2016-17 | H8: 2017-18 | I8: =CRCP_y1 -> 2018-19 | J8: =CRCP_y2 -> 2019-20 | K8: =CRCP_y3 -> 2020-21 | L8: =dms_y1 -> 2021-22 | M8: =dms_y2 -> 2022-23 | N8: =dms_y3 -> 2023-24 | O8: =dms_y4 -> 2024-25 | P8: =dms_y5 -> 2025-26 | Q8: =dms_y6 -> 2026-27 | R8: =dms_y7 -> 2027-28 | S8: =CONCATENATE("Total ",FRCP_y1, " to ", dms_MultiYear_FinalYear_Result) -> Total 2023-24 to 2027-28
B9: Radio communications site leases (Radio Communication sites - towers, equipment building space and ground space) | C9: TransGrid provides access to radio communications sites to customers. | G9: c-i-c | H9: c-i-c | I9: c-i-c | J9: c-i-c | K9: c-i-c | L9: c-i-c | M9: c-i-c | N9: c-i-c | O9: c-i-c | P9: c-i-c | Q9: c-i-c | R9: c-i-c | S9: c-i-c
B10: Fibre optic communications data services (Optic Fibre) | C10: TransGrid provides both dark fibre and bandwidth backhaul service. | G10: c-i-c | H10: c-i-c | I10: c-i-c | J10: c-i-c | K10: c-i-c | L10: c-i-c | M10: c-i-c | N10: c-i-c | O10: c-i-c | P10: c-i-c | Q10: c-i-c | R10: c-i-c | S10: c-i-c
B11: Property leases (Rental properties) | C11: Office accommodation, land used for operational purposes, surplus land for agriculture and grazing purposes. | G11: 170620.28 | H11: 221423.26 | I11: 240474.88 | J11: 229446.71 | K11: 246487.37 | L11: 266442.5561 | M11: 260736.6798 | N11: 256194.6973 | O11: 251860.4062 | P11: 247518.7905 | Q11: 247100.7317 | R11: 247303.5052 | S11: =SUM(N11:R11) -> 1249978.131
B12: O&M services for third party other than Lumea (Third party Operation and Maintenance) | C12: Prescribed assets such as fleet and tools have been used to provide operation and maintenance services | G12: 468251.38 | H12: 373628.07 | I12: 1612251.51 | J12: 341000.16 | K12: 276511.05 | L12: 326799.2804 | M12: 325898.8238 | N12: 326129.8853 | O12: 325850.7036 | P12: 318369.1749 | Q12: 317840.5174 | R12: 318089.0949 | S12: 1606279.376
B13: O&M services for Lumea (Intercompany Operation and Maintenance) | C13: Recovery of costs for prescribed assets such as fleet and IT used to provide operations and maintenance servcies to Transgrid services (unregulated business) | G13: c-i-c | H13: c-i-c | I13: c-i-c | J13: c-i-c | K13: c-i-c | L13: c-i-c | M13: c-i-c | N13: c-i-c | O13: c-i-c | P13: c-i-c | Q13: c-i-c | R13: c-i-c | S13: c-i-c
S14: 0
S15: 0
S16: 0
S17: 0
S18: 0
S19: 0
S20: 0
S21: 0
S22: 0
S23: 0
B25: 7.4.2 - SHARED ASSET UNREGULATED SERVICES - APPORTIONMENT METHODOLOGY
B26: Name of shared asset unregulated service for which revenues were apportioned | C26: Apportionment methodology
B27: Fibre optic communications data services (Optic Fibre) | C27: 100% revenue from the use of the prescribed assets. Revenue from unregulated assets have been excluded
B28: Radio communications site leases (Radio Communication sites - towers, equipment building space and ground space) | C28: 100% revenue from the use of the prescribed assets. Revenue from unregulated sites have been excluded. Growth rate assumed to pipeline projects
B29: Property leases (Rental properties) | C29: 100% rental revenue from the prescribed properties, no apportionment applied.
B30: O&M services for third party other than Lumea (Third party Operations and Maintenance) | C30: 100% revenue from the use of the prescribed assets, no apportionment applied.
B31: O&M services for Lumea (Intercompany Operation and Maintenance) | C31: Intercompany revenue from Transgrid Services for O&M services by TOT, with apportionment applied based on support cost charged for Fleet and IT costs

Sheet 7.9 STPIS
B1: =(LOOKUP(dms_Model,dms_Model_List,dms_Worksheet_List)) -> REGULATORY REPORTING STATEMENT
B2: =INDEX(dms_TradingNameFull_List,MATCH(dms_TradingName,dms_TradingName_List)) -> NSW Electricity Networks Operations Pty Ltd trading as TransGrid
B3: =IF(SUM(dms_SingleYear_Model)>0,CRY,CONCATENATE(FRCP_y1," to ",dms_MultiYear_FinalYear_Result)) -> 2023-24 to 2027-28
B4: 7.9 SERVICE TARGET PERFORMANCE INCENTIVE SCHEME (STPIS)
B6: There are FOUR tables on this worksheet. Each table has been grouped (and sub-grouped) for ease of navigation. See the Instructions sheet on how to group or ungroup tables.
B8: 7.9.1 - Historical performance and proposed floor, caps and targets for the service component of the STPIS
B9: Parameter | C9: Performance actuals | I9: Average of actual performance | J9: Floor | K9: Target | L9: Cap | M9: Weighting (% of MAR)
C10: =D10-1 -> 2016 | D10: 2017 | E10: 2018 | F10: =(LEFT(CRCP_y1,2)&RIGHT(CRCP_y1,2)) -> 2019 | G10: =(LEFT(CRCP_y2,2)&RIGHT(CRCP_y2,2)) -> 2020 | H10: =(LEFT(CRCP_y3,2)&RIGHT(CRCP_y3,2)) -> 2021
B11: Unplanned outage circuit event rate:
B12: Transmission line outage - fault | C12: 0.1374407583 | D12: 0.1293413174 | E12: 0.1802371542 | F12: 0.1224970554 | G12: 0.1864801865 | I12: =+AVERAGE(C12:H12) -> 0.1511992943 | J12: 0.19956 | K12: 0.1511992943 | L12: 0.113 | M12: 0.002
B13: Transformer outage – fault | C13: 0.1755829904 | D13: 0.09479553903 | E13: 0.12861137 | F13: 0.06741573034 | G13: 0.1183654298 | I13: =+AVERAGE(C13:H13) -> 0.1169542119 | J13: 0.18723 | K13: 0.1169542119 | L13: 0.0615 | M13: 0.002
B14: Reactive plant – fault | C14: 0.05885959534 | D14: 0.1037037037 | E14: 0.1772307692 | F14: 0.1366906475 | G14: 0.1197183099 | I14: 0.1192406051 | J14: 0.18461 | K14: 0.1192406051 | L14: 0.05277 | M14: 0.001
B15: Transmission line outage – forced outage | C15: 0.1374407583 | D15: 0.1293413174 | E15: 0.08537549407 | F15: 0.07067137809 | G15: 0.1118881119 | I15: 0.1069434119 | J15: 0.15438 | K15: 0.1069434119 | L15: 0.06708 | M15: 0.001
B16: Transformer outage – forced outage | C16: 0.1975308642 | D16: 0.1895910781 | E16: 0.07828518173 | F16: 0.06741573034 | G16: 0.09581963363 | I16: 0.1257284976 | J16: 0.23835 | K16: 0.1257284976 | L16: 0.03119 | M16: 0.001
B17: Reactive plant – forced outage | C17: 0.2280809319 | D17: 0.1407407407 | E17: 0.08123076923 | F17: 0.1007194245 | G17: 0.09154929577 | I17: 0.1284642324 | J17: 0.2215 | K17: 0.1284642324 | L17: 0.07523 | M17: 0.0005
B18: Loss of supply event frequency (number of events):
B19: > (x) system minutes | C19: 2 | D19: 1 | E19: 1 | F19: 3 | G19: 1 | I19: 1.6 | J19: 4 | K19: 1.6 | L19: 0 | M19: 0.0015
B20: > (y) system minutes | C20: 0 | D20: 0 | E20: 0 | F20: 0 | G20: 1 | I20: 0.2 | J20: 2 | K20: 1 | L20: 0 | M20: 0.0015
B21: Average outage duration (minutes): | C21: 169.1775079 | D21: 35.6399999 | E21: 58.20000015 | F21: 69.82499979 | G21: 45.17142873 | I21: 75.6027873 | J21: 159.81 | K21: 75.6027873 | L21: 33.12 | M21: 0.002
B22: Proper operation of equipment (number of events):
B23: Failure of protection system | C23: 20 | D23: 11 | E23: 20 | F23: 12 | G23: 11 | I23: 14.8 | J23: 21 | K23: 14.8 | L23: 9 | M23: 0
B24: Material failure of SCADA | C24: 3 | D24: 0 | E24: 0 | F24: 0 | G24: 0 | I24: 0.6 | J24: 3 | K24: 0.6 | L24: 0 | M24: 0
B25: Incorrect operational isolation of primary or secondary equipment | C25: 5 | D25: 6 | E25: 6 | F25: 3 | G25: 6 | I25: 5.2 | J25: 9 | K25: 5.2 | L25: 2 | M25: 0
B29: 7.9.2 - Proposed priority projects for the network capability incentive parameter
B30: Project ranking | C30: Transmission Circuit / Injection Point | D30: Scope of works | E30: =CONCATENATE(("If applicable, the present value of quantified benefits associated with the project ($0's, "),CRCP_y5,")") -> If applicable, the present value of quantified benefits associated with the project ($0's, 2022-23) | F30: =CONCATENATE(("Project cost ($0's, "),CRCP_y5,")") -> Project cost ($0's, 2022-23)
F31: =FRCP_y1 -> 2023-24 | G31: =FRCP_y2 -> 2024-25 | H31: =FRCP_y3 -> 2025-26 | I31: =FRCP_y4 -> 2026-27 | J31: =FRCP_y5 -> 2027-28 | K31: Opex | L31: Capex
B32: 1 | C32: Darlington Point 330/132 kV transformers | D32: Upgrade cooler banks of 330/132 kV transformers at Darlington Point Substation to increase their rating | E32: 51000000 | F32: 507611.6501 | G32: 3453195.475 | H32: 0 | I32: 0 | J32: 0 | K32: 86781.10875 | L32: 3960807.125
B33: 2 | C33: Yass 330/132 kV transformers | D33: Installation of online monitoring and dynamic rating system for the Yass 330/132 kV transformers | E33: 24100000 | F33: 1046661.42 | G33: 476372.9372 | H33: 0 | I33: 0 | J33: 0 | K33: 33829.92375 | L33: 1523034.358
B34: 3 | C34: 94T Molong to Parkes 132 kV line | D34: Install Dynamic Line Rating system | E34: 5600000 | F34: 12012.13665 | G34: 409961.9868 | H34: 0 | I34: 0 | J34: 0 | K34: 9581.643 | L34: 421974.1235
B35: 4 | C35: Balranald 220 kV | D35: Install a 20 MVAr capacitor bank at Balranald 220 kV Substation to increase the capacity for generation by 5-10 MW | E35: 4270000 | F35: 851988.7676 | G35: 4359664.805 | H35: 0 | I35: 0 | J35: 0 | K35: 114307.32 | L35: 5211653.573
B36: 5 | C36: Multiple | D36: To combat climate change, installation of Dynamic Line Ratings on highly utilised lines | E36: 3500000 | F36: 40457.13991 | G36: 113453.0458 | H36: 4595043.921 | I36: 24395.94932 | J36: 0 | K36: 123552.765 | L36: 4773350.056
B37: 6 | C37: Darlington Point 330/220 kV transformers | D37: Install transformer tripping scheme on the two 330/220 kV transformers at Darlington Point Substation | E37: 476000 | F37: 128188.8072 | G37: 166097.6242 | H37: 0 | I37: 0 | J37: 0 | K37: 7711.541625 | L37: 294286.4314
B38: 7
B39: 8
B40: 9
B41: 10
B42: 11
B43: 12
B44: 13
B45: 14
B46: 15
B47: 16
B52: 7.9.3 – Network limit information
B53: Limit identification | C53: Define limit | D53: Reason for the limit | E53: Is limit addressed by priority project | F53: Supporting information reference
B54: 5A1 Eraring to Kemps Creek Transmission Line Normal Limit | C54: 1039 MVA | D54: Secondary of CT (protection metering or indication) | E54: No
B55: 5A1 Eraring to Kemps Creek Transmission Line Contingency Limit | C55: 1732 MVA | D55: Secondary of CT (protection metering or indication) | E55: No
B56: 5A1 Eraring to Kemps Creek Transmission Line 15 Minute Limit | C56: 1732 MVA | D56: Secondary of CT (protection metering or indication) | E56: No
B57: 5A1 Eraring to Kemps Creek Transmission Line 10 Minute Limit | C57: 1732 MVA | D57: Secondary of CT (protection metering or indication) | E57: No
B58: 5A1 Eraring to Kemps Creek Transmission Line 5 Minute Limit | C58: 1732 MVA | D58: Secondary of CT (protection metering or indication) | E58: No
B59: 5A2 Eraring to Kemps Creek Transmission Line Normal Limit | C59: 1039 MVA | D59: Secondary of CT (protection metering or indication) | E59: No
B60: 5A2 Eraring to Kemps Creek Transmission Line Contingency Limit | C60: 1732 MVA | D60: Secondary of CT (protection metering or indication) | E60: No
B61: 5A2 Eraring to Kemps Creek Transmission Line 15 Minute Limit | C61: 1732 MVA | D61: Secondary of CT (protection metering or indication) | E61: No
B62: 5A2 Eraring to Kemps Creek Transmission Line 10 Minute Limit | C62: 1732 MVA | D62: Secondary of CT (protection metering or indication) | E62: No
B63: 5A2 Eraring to Kemps Creek Transmission Line 5 Minute Limit | C63: 1732 MVA | D63: Secondary of CT (protection metering or indication) | E63: No
B64: 5A3 Bayswater to Mt Piper Transmission Line Normal Limit | C64: 3239 MVA | D64: Overhead transmission line | E64: No
B65: 5A3 Bayswater to Mt Piper Transmission Line Contingency Limit | C65: 3464 MVA | D65: Breaker | E65: No
B66: 5A3 Bayswater to Mt Piper Transmission Line 15 Minute Limit | C66: 3464 MVA | D66: Breaker | E66: No
B67: 5A3 Bayswater to Mt Piper Transmission Line 10 Minute Limit | C67: 3464 MVA | D67: Breaker | E67: No
B68: 5A3 Bayswater to Mt Piper Transmission Line 5 Minute Limit | C68: 3464 MVA | D68: Breaker | E68: No
B69: 5A4 Bayswater to Wollar Transmission Line Normal Limit | C69: 3239 MVA | D69: Overhead transmission line | E69: No
B70: 5A4 Bayswater to Wollar Transmission Line Contingency Limit | C70: 3394 MVA | D70: High voltage connections | E70: No
B71: 5A4 Bayswater to Wollar Transmission Line 15 Minute Limit | C71: 3394 MVA | D71: High voltage connections | E71: No
B72: 5A4 Bayswater to Wollar Transmission Line 10 Minute Limit | C72: 3394 MVA | D72: High voltage connections | E72: No
B73: 5A4 Bayswater to Wollar Transmission Line 5 Minute Limit | C73: 3394 MVA | D73: High voltage connections | E73: No
B74: 5A5 Wollar to Mt Piper Transmission Line Normal Limit | C74: 3239 MVA | D74: Overhead transmission line | E74: No
B75: 5A5 Wollar to Mt Piper Transmission Line Contingency Limit | C75: 3394 MVA | D75: High voltage connections | E75: No
B76: 5A5 Wollar to Mt Piper Transmission Line 15 Minute Limit | C76: 3394 MVA | D76: High voltage connections | E76: No
B77: 5A5 Wollar to Mt Piper Transmission Line 10 Minute Limit | C77: 3394 MVA | D77: High voltage connections | E77: No
B78: 5A5 Wollar to Mt Piper Transmission Line 5 Minute Limit | C78: 3394 MVA | D78: High voltage connections | E78: No
B79: 5A6 Mt Piper to Bannaby Transmission Line Normal Limit | C79: 3281 MVA | D79: Overhead transmission line | E79: No
B80: 5A6 Mt Piper to Bannaby Transmission Line Contingency Limit | C80: 3394 MVA | D80: High voltage connections | E80: No
B81: 5A6 Mt Piper to Bannaby Transmission Line 15 Minute Limit | C81: 3394 MVA | D81: High voltage connections | E81: No
B82: 5A6 Mt Piper to Bannaby Transmission Line 10 Minute Limit | C82: 3394 MVA | D82: High voltage connections | E82: No
B83: 5A6 Mt Piper to Bannaby Transmission Line 5 Minute Limit | C83: 3394 MVA | D83: High voltage connections | E83: No
B84: 5A7 Mt Piper to Bannaby Transmission Line Normal Limit | C84: 3281 MVA | D84: Overhead transmission line | E84: No
B85: 5A7 Mt Piper to Bannaby Transmission Line Contingency Limit | C85: 3394 MVA | D85: High voltage connections | E85: No
B86: 5A7 Mt Piper to Bannaby Transmission Line 15 Minute Limit | C86: 3394 MVA | D86: High voltage connections | E86: No
B87: 5A7 Mt Piper to Bannaby Transmission Line 10 Minute Limit | C87: 3394 MVA | D87: High voltage connections | E87: No
B88: 5A7 Mt Piper to Bannaby Transmission Line 5 Minute Limit | C88: 3394 MVA | D88: High voltage connections | E88: No
B89: 1 Upper Tumut to Canberra Transmission Line Normal Limit | C89: 915 MVA | D89: Overhead transmission line | E89: No
B90: 1 Upper Tumut to Canberra Transmission Line Contingency Limit | C90: 995 MVA | D90: Overhead transmission line | E90: No
B91: 1 Upper Tumut to Canberra Transmission Line 15 Minute Limit | C91: 1011 MVA | D91: Overhead transmission line | E91: No
B92: 1 Upper Tumut to Canberra Transmission Line 10 Minute Limit | C92: 1085 MVA | D92: Overhead transmission line | E92: No
B93: 1 Upper Tumut to Canberra Transmission Line 5 Minute Limit | C93: 1132 MVA | D93: Wave traps | E93: No
B94: 1 Canberra to Upper Tumut Transmission Line 15 Minute Limit | C94: 995 MVA | D94: Overhead transmission line | E94: No
B95: 1 Canberra to Upper Tumut Transmission Line 10 Minute Limit | C95: 995 MVA | D95: Overhead transmission line | E95: No
B96: 1 Canberra to Upper Tumut Transmission Line 5 Minute Limit | C96: 996 MVA | D96: Overhead transmission line | E96: No
B97: 2 Ravine to Yass Transmission Line Normal Limit | C97: 915 MVA | D97: Overhead transmission line | E97: No
B98: 2 Ravine to Yass Transmission Line Contingency Limit | C98: 995 MVA | D98: Overhead transmission line | E98: No
B99: 2 Ravine to Yass Transmission Line 15 Minute Limit | C99: 1011 MVA | D99: Overhead transmission line | E99: No
B100: 2 Ravine to Yass Transmission Line 10 Minute Limit | C100: 1085 MVA | D100: Overhead transmission line | E100: No
B101: 2 Ravine to Yass Transmission Line 5 Minute Limit | C101: 1280 MVA | D101: High voltage connections | E101: No
B102: 2 Yass to Ravine Transmission Line 15 Minute Limit | C102: 995 MVA | D102: Overhead transmission line | E102: No
B103: 2 Yass to Ravine Transmission Line 10 Minute Limit | C103: 995 MVA | D103: Overhead transmission line | E103: No
B104: 2 Yass to Ravine Transmission Line 5 Minute Limit | C104: 996 MVA | D104: Overhead transmission line | E104: No
B105: 3 Lower Tumut to Yass Transmission Line Normal Limit | C105: 972 MVA | D105: Overhead transmission line | E105: No
B106: 3 Lower Tumut to Yass Transmission Line Contingency Limit | C106: 1132 MVA | D106: Overhead transmission line | E106: No
B107: 3 Lower Tumut to Yass Transmission Line 15 Minute Limit | C107: 1200 MVA | D107: Wave traps | E107: No
B108: 3 Lower Tumut to Yass Transmission Line 10 Minute Limit | C108: 1235 MVA | D108: Wave traps | E108: No
B109: 3 Lower Tumut to Yass Transmission Line 5 Minute Limit | C109: 1257 MVA | D109: Wave traps | E109: No
B110: 3 Yass to Lower Tumut Transmission Line 15 Minute Limit | C110: 1145 MVA | D110: Overhead transmission line | E110: No
B111: 3 Yass to Lower Tumut Transmission Line 10 Minute Limit | C111: 1169 MVA | D111: Overhead transmission line | E111: No
B112: 3 Yass to Lower Tumut Transmission Line 5 Minute Limit | C112: 1257 MVA | D112: Wave traps | E112: No
B113: 4 Collector Wind Farm to Marulan Transmission Line Normal Limit | C113: 697 MVA | D113: Overhead transmission line | E113: No
B114: 4 Collector Wind Farm to Marulan Transmission Line Contingency Limit | C114: 880 MVA | D114: Overhead transmission line | E114: No
B115: 4 Collector Wind Farm to Marulan Transmission Line 15 Minute Limit | C115: 1141 MVA | D115: Overhead transmission line | E115: No
B116: 4 Collector Wind Farm to Marulan Transmission Line 10 Minute Limit | C116: 1205 MVA | D116: Overhead transmission line | E116: No
B117: 4 Collector Wind Farm to Marulan Transmission Line 5 Minute Limit | C117: 1280 MVA | D117: High voltage connections | E117: No
B118: 4 Marulan to Collector Wind Farm Transmission Line 15 Minute Limit | C118: 1107 MVA | D118: Overhead transmission line | E118: No
B119: 4 Marulan to Collector Wind Farm Transmission Line 10 Minute Limit | C119: 1140 MVA | D119: Overhead transmission line | E119: No
B120: 4 Marulan to Collector Wind Farm Transmission Line 5 Minute Limit | C120: 1280 MVA | D120: High voltage connections | E120: No
B121: 5 Yass to Marulan Transmission Line Normal Limit | C121: 697 MVA | D121: Overhead transmission line | E121: No
B122: 5 Yass to Marulan Transmission Line Contingency Limit | C122: 880 MVA | D122: Overhead transmission line | E122: No
B123: 5 Yass to Marulan Transmission Line 15 Minute Limit | C123: 1141 MVA | D123: Overhead transmission line | E123: No
B124: 5 Yass to Marulan Transmission Line 10 Minute Limit | C124: 1205 MVA | D124: Overhead transmission line | E124: No
B125: 5 Yass to Marulan Transmission Line 5 Minute Limit | C125: 1280 MVA | D125: High voltage connections | E125: No
B126: 5 Marulan to Yass Transmission Line 15 Minute Limit | C126: 1107 MVA | D126: Overhead transmission line | E126: No
B127: 5 Marulan to Yass Transmission Line 10 Minute Limit | C127: 1140 MVA | D127: Overhead transmission line | E127: No
B128: 5 Marulan to Yass Transmission Line 5 Minute Limit | C128: 1280 MVA | D128: High voltage connections | E128: No
B129: 6 Canberra to Capital Wind Farm Transmission Line Normal Limit | C129: 915 MVA | D129: Overhead transmission line | E129: No
B130: 6 Canberra to Capital Wind Farm Transmission Line Contingency Limit | C130: 995 MVA | D130: Overhead transmission line | E130: No
B131: 6 Canberra to Capital Wind Farm Transmission Line 15 Minute Limit | C131: 1011 MVA | D131: Overhead transmission line | E131: No
B132: 6 Canberra to Capital Wind Farm Transmission Line 10 Minute Limit | C132: 1085 MVA | D132: Overhead transmission line | E132: No
B133: 6 Canberra to Capital Wind Farm Transmission Line 5 Minute Limit | C133: 1280 MVA | D133: High voltage connections | E133: No
B134: 6 Capital Wind Farm to Canberra Transmission Line 15 Minute Limit | C134: 995 MVA | D134: Overhead transmission line | E134: No
B135: 6 Capital Wind Farm to Canberra Transmission Line 10 Minute Limit | C135: 995 MVA | D135: Overhead transmission line | E135: No
B136: 6 Capital Wind Farm to Canberra Transmission Line 5 Minute Limit | C136: 996 MVA | D136: Overhead transmission line | E136: No
B137: 7 Lower Tumut to Canberra Transmission Line Normal Limit | C137: 972 MVA | D137: Overhead transmission line | E137: No
B138: 7 Lower Tumut to Canberra Transmission Line Contingency Limit | C138: 1132 MVA | D138: Overhead transmission line | E138: No
B139: 7 Lower Tumut to Canberra Transmission Line 15 Minute Limit | C139: 1143 MVA | D139: Primary of CT | E139: No
B140: 7 Lower Tumut to Canberra Transmission Line 10 Minute Limit | C140: 1143 MVA | D140: Primary of CT | E140: No
B141: 7 Lower Tumut to Canberra Transmission Line 5 Minute Limit | C141: 1143 MVA | D141: Primary of CT | E141: No
B142: 7 Canberra to Lower Tumut Transmission Line Normal Limit | C142: 972 MVA | D142: Overhead transmission line | E142: No
B143: 7 Canberra to Lower Tumut Transmission Line Contingency Limit | C143: 1041 MVA | D143: Protection trip setting | E143: No
B144: 7 Canberra to Lower Tumut Transmission Line 15 Minute Limit | C144: 1041 MVA | D144: Protection trip setting | E144: No
B145: 7 Canberra to Lower Tumut Transmission Line 10 Minute Limit | C145: 1041 MVA | D145: Protection trip setting | E145: No
B146: 7 Canberra to Lower Tumut Transmission Line 5 Minute Limit | C146: 1041 MVA | D146: Protection trip setting | E146: No
B147: 8 Marulan to Dapto Transmission Line Normal Limit | C147: 915 MVA | D147: Overhead transmission line | E147: No
B148: 8 Marulan to Dapto Transmission Line Contingency Limit | C148: 995 MVA | D148: Overhead transmission line | E148: No
B149: 8 Marulan to Dapto Transmission Line 15 Minute Limit | C149: 1011 MVA | D149: Overhead transmission line | E149: No
B150: 8 Marulan to Dapto Transmission Line 10 Minute Limit | C150: 1085 MVA | D150: Overhead transmission line | E150: No
B151: 8 Marulan to Dapto Transmission Line 5 Minute Limit | C151: 1280 MVA | D151: High voltage connections | E151: No
B152: 8 Dapto to Marulan Transmission Line 15 Minute Limit | C152: 995 MVA | D152: Overhead transmission line | E152: No
B153: 8 Dapto to Marulan Transmission Line 10 Minute Limit | C153: 995 MVA | D153: Overhead transmission line | E153: No
B154: 8 Dapto to Marulan Transmission Line 5 Minute Limit | C154: 996 MVA | D154: Overhead transmission line | E154: No
B155: 9 Canberra to Yass Transmission Line Normal Limit | C155: 915 MVA | D155: Overhead transmission line | E155: No
B156: 9 Canberra to Yass Transmission Line Contingency Limit | C156: 995 MVA | D156: Overhead transmission line | E156: No
B157: 9 Canberra to Yass Transmission Line 15 Minute Limit | C157: 1011 MVA | D157: Overhead transmission line | E157: No
B158: 9 Canberra to Yass Transmission Line 10 Minute Limit | C158: 1085 MVA | D158: Overhead transmission line | E158: No
B159: 9 Canberra to Yass Transmission Line 5 Minute Limit | C159: 1280 MVA | D159: High voltage connections | E159: No
B160: 9 Yass to Canberra Transmission Line 15 Minute Limit | C160: 995 MVA | D160: Overhead transmission line | E160: No
B161: 9 Yass to Canberra Transmission Line 10 Minute Limit | C161: 995 MVA | D161: Overhead transmission line | E161: No
B162: 9 Yass to Canberra Transmission Line 5 Minute Limit | C162: 996 MVA | D162: Overhead transmission line | E162: No
B163: 10 Dapto to Avon Transmission Line Normal Limit | C163: 1260 MVA | D163: Secondary of CT (protection metering or indication) | E163: No
B164: 10 Dapto to Avon Transmission Line Contingency Limit | C164: 1260 MVA | D164: Secondary of CT (protection metering or indication) | E164: No
B165: 10 Dapto to Avon Transmission Line 15 Minute Limit | C165: 1260 MVA | D165: Secondary of CT (protection metering or indication) | E165: No
B166: 10 Dapto to Avon Transmission Line 10 Minute Limit | C166: 1260 MVA | D166: Secondary of CT (protection metering or indication) | E166: No
B167: 10 Dapto to Avon Transmission Line 5 Minute Limit | C167: 1260 MVA | D167: Secondary of CT (protection metering or indication) | E167: No
B168: 11 Dapto to Sydney South Transmission Line Normal Limit | C168: 1280 MVA | D168: Overhead transmission line | E168: No
B169: 11 Dapto to Sydney South Transmission Line Contingency Limit | C169: 1428 MVA | D169: High voltage connections | E169: No
B170: 11 Dapto to Sydney South Transmission Line 15 Minute Limit | C170: 1428 MVA | D170: High voltage connections | E170: No
B171: 11 Dapto to Sydney South Transmission Line 10 Minute Limit | C171: 1428 MVA | D171: High voltage connections | E171: No
B172: 11 Dapto to Sydney South Transmission Line 5 Minute Limit | C172: 1428 MVA | D172: High voltage connections | E172: No
B173: 12 Liverpool 330kV to Sydney South Transmission Line Normal Limit | C173: 1215 MVA | D173: Overhead transmission line | E173: No
B174: 12 Liverpool 330kV to Sydney South Transmission Line Contingency Limit | C174: 1429 MVA | D174: Overhead transmission line | E174: No
B175: 12 Liverpool 330kV to Sydney South Transmission Line 15 Minute Limit | C175: 1429 MVA | D175: High voltage connections | E175: No
B176: 12 Liverpool 330kV to Sydney South Transmission Line 10 Minute Limit | C176: 1429 MVA | D176: High voltage connections | E176: No
B177: 12 Liverpool 330kV to Sydney South Transmission Line 5 Minute Limit | C177: 1429 MVA | D177: High voltage connections | E177: No
B178: 13 Kemps Creek to Sydney South Transmission Line Normal Limit | C178: 1215 MVA | D178: Overhead transmission line | E178: No
B179: 13 Kemps Creek to Sydney South Transmission Line Contingency Limit | C179: 1428 MVA | D179: High voltage connections | E179: No
B180: 13 Kemps Creek to Sydney South Transmission Line 15 Minute Limit | C180: 1428 MVA | D180: High voltage connections | E180: No
B181: 13 Kemps Creek to Sydney South Transmission Line 10 Minute Limit | C181: 1428 MVA | D181: High voltage connections | E181: No
B182: 13 Kemps Creek to Sydney South Transmission Line 5 Minute Limit | C182: 1428 MVA | D182: High voltage connections | E182: No
B183: 14 Kemps Creek to Sydney North Transmission Line Normal Limit | C183: 1215 MVA | D183: Overhead transmission line | E183: No
B184: 14 Kemps Creek to Sydney North Transmission Line Contingency Limit | C184: 1429 MVA | D184: Overhead transmission line | E184: No
B185: 14 Kemps Creek to Sydney North Transmission Line 15 Minute Limit | C185: 1429 MVA | D185: Breaker | E185: No
B186: 14 Kemps Creek to Sydney North Transmission Line 10 Minute Limit | C186: 1429 MVA | D186: Breaker | E186: No
B187: 14 Kemps Creek to Sydney North Transmission Line 5 Minute Limit | C187: 1429 MVA | D187: Breaker | E187: No
B188: 16 Marulan to Avon Transmission Line Normal Limit | C188: 915 MVA | D188: Overhead transmission line | E188: No
B189: 16 Marulan to Avon Transmission Line Contingency Limit | C189: 995 MVA | D189: Overhead transmission line | E189: No
B190: 16 Marulan to Avon Transmission Line 15 Minute Limit | C190: 1011 MVA | D190: Overhead transmission line | E190: No
B191: 16 Marulan to Avon Transmission Line 10 Minute Limit | C191: 1085 MVA | D191: Overhead transmission line | E191: No
B192: 16 Marulan to Avon Transmission Line 5 Minute Limit | C192: 1189 MVA | D192: High voltage connections | E192: No
B193: 16 Avon to Marulan Transmission Line 15 Minute Limit | C193: 995 MVA | D193: Overhead transmission line | E193: No
B194: 16 Avon to Marulan Transmission Line 10 Minute Limit | C194: 995 MVA | D194: Overhead transmission line | E194: No
B195: 16 Avon to Marulan Transmission Line 5 Minute Limit | C195: 996 MVA | D195: Overhead transmission line | E195: No
B196: 17 Macarthur to Avon Transmission Line Normal Limit | C196: 1280 MVA | D196: Overhead transmission line | E196: No
B197: 17 Macarthur to Avon Transmission Line Contingency Limit | C197: 1428 MVA | D197: High voltage connections | E197: No
B198: 17 Macarthur to Avon Transmission Line 15 Minute Limit | C198: 1428 MVA | D198: High voltage connections | E198: No
B199: 17 Macarthur to Avon Transmission Line 10 Minute Limit | C199: 1428 MVA | D199: High voltage connections | E199: No
B200: 17 Macarthur to Avon Transmission Line 5 Minute Limit | C200: 1428 MVA | D200: High voltage connections | E200: No
B201: 18 Dapto to Kangaroo Valley Transmission Line Normal Limit | C201: 915 MVA | D201: Overhead transmission line | E201: No
B202: 18 Dapto to Kangaroo Valley Transmission Line Contingency Limit | C202: 995 MVA | D202: Overhead transmission line | E202: No
B203: 18 Dapto to Kangaroo Valley Transmission Line 15 Minute Limit | C203: 1011 MVA | D203: Overhead transmission line | E203: No
B204: 18 Dapto to Kangaroo Valley Transmission Line 10 Minute Limit | C204: 1085 MVA | D204: Overhead transmission line | E204: No
B205: 18 Dapto to Kangaroo Valley Transmission Line 5 Minute Limit | C205: 1134 MVA | D205: Secondary of CT (protection metering or indication) | E205: No
B206: 18 Kangaroo Valley to Dapto Transmission Line 15 Minute Limit | C206: 995 MVA | D206: Overhead transmission line | E206: No
B207: 18 Kangaroo Valley to Dapto Transmission Line 10 Minute Limit | C207: 995 MVA | D207: Overhead transmission line | E207: No
B208: 18 Kangaroo Valley to Dapto Transmission Line 5 Minute Limit | C208: 996 MVA | D208: Overhead transmission line | E208: No
B209: 19 Kangaroo Valley to Bendeela Transmission Line Normal Limit | C209: 153 MVA | D209: Secondary of CT (protection metering or indication) | E209: No
... 2908 more rows

Sheet 8.2 Capex
B1: =(LOOKUP(dms_Model,dms_Model_List,dms_Worksheet_List)) -> REGULATORY REPORTING STATEMENT
B2: =INDEX(dms_TradingNameFull_List,MATCH(dms_TradingName,dms_TradingName_List)) -> NSW Electricity Networks Operations Pty Ltd trading as TransGrid
B3: =IF(SUM(dms_SingleYear_Model)>0,CRY,CONCATENATE(FRCP_y1," to ",dms_MultiYear_FinalYear_Result)) -> 2023-24 to 2027-28
B4: 8.2 - CAPEX
B6: 8.2.7 - IMMEDIATE EXPENSING OF CAPEX
B7: ESTIMATED - AS COMMISSIONED
C8: $0's, (nominal) | D8: =CONCATENATE("($0's, real ", dms_DollarReal,")") -> ($0's, real June 2023)
B9: Asset class | C9: =dms_y1 -> 2021-22 | D9: =dms_y2 -> 2022-23
B10: Transmission Lines (pre 2004-05) | C10: 0 | D10: 0
B11: Underground Cables (pre 2004-05) | C11: 0 | D11: 0
B12: Substations including Buildings (pre 2004-05) | C12: 0 | D12: 0
B13: Transmission Lines (2004-09) | C13: 0 | D13: 0
B14: Underground Cables (2004-09) | C14: 0 | D14: 0
B15: Substations including Buildings (2004-09) | C15: 0 | D15: 0
B16: SCADA and Communications (2004-09) | C16: 0 | D16: 0
B17: Transmission Lines & Cables (09-14) | C17: 0 | D17: 0
B18: Substations (09-14) | C18: 0 | D18: 0
B19: Secondary Systems (09-14) | C19: 0 | D19: 0
B20: Communications (09-14) | C20: 0 | D20: 0
B21: Minor Plant, Motor Vehicles & Mobile Plant (2009-14) | C21: 0 | D21: 0
B22: Transmission Lines (2014-18) | C22: 0 | D22: 0
B23: Underground Cables (2014-18) | C23: 0 | D23: 0
B24: Substations (2014-18) | C24: 0 | D24: 0
B25: Secondary Systems (2014-18) | C25: 0 | D25: 0
B26: Communications (short life) (2014-18) | C26: 0 | D26: 0
B27: Business IT (2014-18) | C27: 0 | D27: 0
B28: Minor Plant, Motor Vehicles & Mobile Plant (2014-18) | C28: 0 | D28: 0
B29: Transmission Line Life Extension (2014-18) | C29: 0 | D29: 0
B30: Residual - other | C30: 0 | D30: 0
B31: Transmission Lines (2018 onwards) | C31: 0 | D31: 0
B32: Underground Cables (2018 onwards) | C32: 0 | D32: 0
B33: Substations (2018 onwards) | C33: 0 | D33: 0
B34: Secondary Systems (2018 onwards) | C34: 0 | D34: 0
B35: Communications (short life) (2018 onwards) | C35: 0 | D35: 0
B36: Business IT (2018 onwards) | C36: 0 | D36: 0
B37: Minor Plant, Motor Vehicles & Mobile Plant (2018 onwards) | C37: 7058091.927 | D37: 7803996.075
B38: Transmission Line Life Extension (2018 onwards) | C38: 0 | D38: 0
B39: Land and Easements | C39: 0 | D39: 0
B40: Synchronous Condensers | C40: 0 | D40: 0
B41: Leasehold Land and Property | C41: 0 | D41: 0
B42: 0 | C42: 0 | D42: 0
B43: 0 | C43: 0 | D43: 0
B44: 0 | C44: 0 | D44: 0
B45: 0 | C45: 0 | D45: 0
B46: 0 | C46: 0 | D46: 0
B47: 0 | C47: 0 | D47: 0
B48: 0 | C48: 0 | D48: 0
B49: 0 | C49: 0 | D49: 0
B50: 0 | C50: 0 | D50: 0
B51: 0 | C51: 0 | D51: 0
B52: 0 | C52: 0 | D52: 0
B53: 0 | C53: 0 | D53: 0
B54: 0 | C54: 0 | D54: 0
B55: 0 | C55: 0 | D55: 0
B56: 0 | C56: 0 | D56: 0
B57: Buildings - capital works | C57: 0 | D57: 0
B58: In-house software | C58: 0 | D58: 0
B59: Equity raising costs | C59: 0 | D59: 0
B60: Total | C60: =SUM(C10:C59) -> 7058091.927 | D60: =SUM(D10:D59) -> 7803996.075
